{"text_format":"1","workbook":"xlsx","n_sheets":25,"sheets":["1. Instructions","2. Participant Lists","3.  OH Indicators By Sector","4.HH Indicator x JPA Crosswalk ","4.W Indicator x JPA Crosswalk","4. AH Indicator x JPA Crosswalk","4. E Indicator x JPA Crosswalk","5.HH Indicator x Priority Area","5. AH Indicator x Priority Area","5. W Indicator x Priority Area","5. E Indicator x Priority Area","6. OH Indicators By Consensus","Figure 3 dashboard","7. Indicator x JPA Crosswalk ","8. Indicator x Priority Area","9. Results Dashboard","Dashboard_Figure_1","Sheet7","Hide","Hide IPA","backmatter (3)","Dashboard_Figure 2","10. Action Plan & Next Steps","11. Definitions","12. Acknowledgements"],"not_rendered":{"charts":21,"images":29,"macros":1,"external_links":0,"defined_names":5,"comments":0,"pivot_tables":1},"unopened":[],"bounds":{"document_bytes":16777216,"sheet_cells":100000,"rows_first":2000,"rows_last":500,"rows_between":2000,"halvings":0,"cell_chars":16384,"cell_head_chars":4096},"cells_cut":0,"cells_raw":0,"read":"whole","date_system":"1900"}

{"sheet":"1. Instructions","index":0,"n_rows":77,"n_cols":7,"rows_kept":77,"cut":false,"hidden":false,"merged":[[73,2,73,12],[0,6,0,13],[68,2,68,12],[72,2,72,12],[70,2,70,12],[2,2,2,12],[71,2,71,12],[69,2,69,12],[3,2,3,12],[63,2,63,12],[67,2,67,12],[66,2,66,12],[64,2,64,12],[62,2,62,12],[5,2,5,12],[6,2,6,12],[25,2,25,12],[26,2,44,12],[46,2,46,12],[47,2,60,12],[8,2,8,12],[9,2,23,12]]}
[null,null,null,null,null,null,"Instructions"]
[]
[null,null,"One Health Monitoring Tool                                                                                                                                                                                                                                                         "]
[null,null,"The One Health Monitoring Tool (OHMT) is a self-assessment of One Health implementation at national level across all four sectors - human health, animal health, wildlife, and the environment.  The results of the assessment are used to identify gaps and develop a set of actions to address priority areas in need of strengthening. The results can serve as a benchmark for future assessments and highlight progress made against the set of actions.  "]
[]
[null,null,"One Health Monitoring Tool Process and Completion Options                                                                                                                                                                                                                                                       "]
[null,null,"The OHMT is completed as a three step process. The OHMT can be completed using the following below options.\n\nOption A: An in-person or virtual workshop with four breakout rooms that can be conducted and led by FAO.\nOption B: Each sector complete the worksheets in the OHMT independent of FAO and submits results to an FAO Point of Contact (POC). FAO resource capacity can be available for the process to complete the OHMT for clarification, if needed.  \n\n"]
[]
[null,null,"Step 1: (Prior to consensus-based workshop)"]
[null,null,"Sector-Specific Workshop: Sector-specific workshops apply a whole-of-society approach.  These workshops include representatives from national government, sub-national government, local government, academia, non-governmental organizations (NGOs), civil society, private sector, and international organizations from each sector (human health, animal health, wildlife (inclusive of both the wildlife disease and wildlife management & conservation sub-sectors), and environment).  \n\nThe sector-specific workshops are run in advance of a consensus-building workshop where representatives complete the following OHMT worksheets before attending the consensus building workshop: \n - Worksheet 3. One Health Indicators by Sector\n - Worksheet 4. Indicator and JPA Crosswalk (relavent sector specific worksheet only)\n - Worksheet 5. Indicator and Priority Area Crosswalk (relavent sector specific worksheets only)    \n\nREMINDERS FOR STEP 1:\n1. The intended goal of the OHMT is for each sector to provide a \"true picture\" of OHMT within their sector.\n2. Providing a complete and up to date response for each sector will allow the application for future country investments in OH.\n3. A workplan will be further developed from sector-specific and consensus reults to go with the country-level JPA. \n4. The definitions page and the OHMT Instructions document describes each sector (and sub-sectors) and should be applied to ensure that participants represent the appropriate sector when completing the tool.  "]
[]
[]
[]
[]
[]
[]
[]
[]
[]
[]
[]
[]
[]
[]
[]
[null,null,"Step 2: Day 1 of Conensus-Based Workshop"]
[null,null,"Combined Sector Government Workshop: The combined sector workshop includes representatives from the relevant ministries and departments from each of the four sectors.  The combined sector workshop follows on from the sector specific workshops.  During the combined sector workshop, the results from the sector specific workshops are presented and reviewed. Scoring is reviewed and an agreed upon consensus score is determined that will provide input into the results dashboard. \n\nThe following worksheets will be completed prior to moving toward step 3.\n- Worksheet 6. One Health Indicator by Consensus\n- Worksheet 7. Indicator X JPA Crosswalk \n- Worksheet 8. Indicator X Priority Area Crosswalk\n\nREMINDERS FOR STEP 2:\n1. Each sector will need to bring and provide proof in showcasing written documentation for why they scored a \"yes\" on a sector-specific One Health Indicator, JPA Action Track or Priority Area worksheets for their specific sector (i.e., Step 1 results from each sector- worksheets 3, 4, and 5 of OHMT).\n2. The three sectors will evaluate the answers of the other sector to agree or disagree with the sector-specific scores and provide an agreed upon consensus score.\n3. Both the consensus-based national score and sector specific score will be evaluated in Step 3 to prioritize areas for further implementation and allocation of resources. For example, even if a consensus score is \"high\", it may have a sector-specific score that is rated the \"lowest\" amongst everything and thus, future focus for further implementation and allocation of resources may could potentially be focused on for that specific-sector based on a country-level implementation plan. "]
[]
[]
[]
[]
[]
[]
[]
[]
[]
[]
[]
[]
[]
[]
[]
[]
[]
[]
[]
[null,null,"Step 3: Days 2 and 3 of Conensus-Based Workshop"]
[null,null,"Combined Sector Government Workshop: Following the review from Day 1 of the Consensus-based activities, the representatives will review dashboard results for the (i) One Health indicators, (ii) JPA Action Tracks, and (iii) Priority Areas. Participants will complete the following worksheets on day 3, which can be utilized for further input into the workplan JRA for a country: \n\n- Worksheet 9: Results Dashboard\n- Worksheet 10: Actions and Tools  \n\nREMINDERS FOR STEP 3:\n1. Review the results from the dashboard.\n2. Develop to actions for each indicator, action track and priority area and fill in the actions and tools worksheet.\n3. Compare the sector-specific results to the consensus results to determine which areas should be of highest priority for future implementation actions."]
[]
[]
[]
[]
[]
[]
[]
[]
[]
[]
[]
[]
[]
[]
[null,null,"Tool Components                                                                                                                                                                                   "]
[null,null,"1. Instructions \n2. Participant Lists                                                                                                                                                                                                                                   \n3. One Health Indicators by Sector                                                                                                                                                                                \n4. Indicator and JPA Crosswalk (sector specific)\n     HH- Indicator and JPA Crosswalk (Human Health Sector Only)\n     AH - Indicator and JPA Crosswalk (Animal Health Sector Only)\n     W - Indicator and JPA Crosswalk (Wildlife Sector Only)\n     E - Indicator and JPA Crosswalk (Environment Sector Only)\n5. Indicator and Priority Areas Crosswalk (sector specific)\n     HH - Indicator and Priority Areas Crosswalk (Human Health Sector Only)\n     AH - Indicator and Priority Areas Crosswalk (Animal Health Sector Only)\n     W -  Indicator and Priority Areas Crosswalk (Wildlife Sector Only)\n     E - Indicator and Priority Areas Crosswalk (Environment Sector Only)\n6. One Health Indicators by Consensus\n7. Indicator and JPA Crosswalk (Combined)\n8. Indicator and Prioriy Area Cross walk (Combined)\n9. Results Dashboard                                                                                                                                                                                                                  \n10. Actions and Tools\n11. Definitions \n12. Acknowledgements"]
[]
[null,null,"How to Use the OHMT"]
[null,null,"Instruction Page: This worksheet provides a guide to complete the OHMT.  For detailed instructions, refer to the OHMT Instructions document."]
[null,null,"Participant Lists: Indicate the country for the assessment, assessment dates, and the names and affiliation of the workshop facilitators.  Provide details on the sector specific and combined sector workshop participants. "]
[null,null,"One Health Indicators by Sector: Use the drop-down menu to select a Yes or No for each indicator element question.  A total score (maximum of 10) will be automatically calculated for each indicator. Discussion associated with each indicator should be captured in the notes column.\n\nOne Health Indicators by Consensus: Review the sector specific scores for each indicator. Use the drop-down menue to select Yes or No for each indicator element column based from consensus by all sectors. A total consensus score (maximum of 10) will be automatically calculated for each indicator. Consensus discusstion associated with each indicator should be captured in the notes column. Results from the consensus scores will be displayed on the results dashboard. (Be more specific here - Three other sectors will evaluate the score of one given sector. Each sector will need to provide the evidence and justification of their score which will be reviewed by other sectors during the consensus workshop)."]
[null,null,"Indicator and JPA Crosswalk (All Sectors): For each indicator/ JPA Action Track linkage question, use the drop-down menu to select a Yes or No response. This sheet is the combined responses from all four sectors. \n\nIndicator and JPA Crosswalk (Sector Specific): For each indicator/ JPA Action Track linkage question, use the drop-down menu to select a Yes or No response.  Each sector completes only thier sector specific worksheet as follows:    \n  - The human health sector should fill in worksheet 4HH.\n  - The animal health sector should fill in worksheet 4AH.\n  - The wildlife sector (both sub-sectors) should fill in worksheet 4W.\n  - The environment sector should fill in worksheet 4E.\nThe discussion points can be captured under the comments section at the bottom of the worksheet.   "]
[null,null,"Indicator and  Priority Area Crosswalk (All Sectors): For each indicator/ priority area linkage question, use the drop-down menu to select a Yes or No response.  This sheet is the combined responses for all four sectors.  \n\nIndicator and Priority Area Linkages Crosswalk (Sector-specific) - For each indicator/ priority area linkage question, use the drop-down menu to select a Yes or No response.  Each sector completes only thier sector specific worksheet as follows:    \n- The human health sector should fill in worksheet 5HH.\n- The animal health sector should fill in worksheet 5AH.\n- The wildlife sector (both sub-sectors) should fill in worksheet 5W.\n- The environment sector should fill in worksheet 5E.\nThe discussion points can be captured under the comments section at the bottom of the worksheet. "]
[null,null,"Results Dashboard: This worksheet provides a graphical display of the indicator scores and the results from the two crosswalks. Refer to OHMT Instructions document for a description of the results.  "]
[null,null,"Actions and Tools: In the combined sector workshop, government respresentatives from each of the four sectors, are asked to list a maximum of two actions to improve the score from the sector specific workshop results for each of the indicators, JPA Action Tracks, and the priority areas.  For each action, the  responsible ministry or department, supporting ministries/departments, and Quadripartite support are identified, including focal points. The timeline is indicated for each action.  To improve the overall country score and results from the assessment, the participants select the relevent tools and resources that will be completed as part of the action. Refer to the OHMT Instructions document for further detail.  "]
[null,null,"Definitions: Refer to the list of OHMT definitions for the decriptions of the terms used in the tool and also the OHMT Instructions document.  "]
[]
[]
[null,null,"2024-01-09"]

{"sheet":"2. Participant Lists","index":1,"n_rows":163,"n_cols":15,"rows_kept":163,"cut":false,"hidden":false,"merged":[[2,3,2,6],[108,2,108,5],[160,2,160,5]]}
[null,null,null,null,null,null,"Participants Lists "]
[]
[null,null,"Country",null,null,null,null,null,null,null,null,null,null,null,"Revised to include the three step appraoch"]
[null,null,"Sector Specific Workshops  ","Human Health ","Animal Health ","Wildlife ","Environment "]
[null,null,"Assessment Date (DD/MM/YYYY)"]
[null,null,"Name(s) of Workshop Facilitator and Affiliation "]
[]
[null,null,"Sector Specific Workshop Participant Lists (Step 1)"]
[]
[null,null,"Human Health Workshop Participant List "]
[null,null,"First Name ","Last Name","Type of Organization","Name of Organization ","Department/Unit (as relevent)","Email","Whats App/Line Number"]
[null,null,null,null,null,null,null,null,null,null,null,null,null,"Drop down Organization "]
[null,null,null,null,null,null,null,null,null,null,null,null,null,"National Government "]
[null,null,null,null,null,null,null,null,null,null,null,null,null,"Sub-National Government "]
[null,null,null,null,null,null,null,null,null,null,null,null,null,"Local Government "]
[null,null,null,null,null,null,null,null,null,null,null,null,null,"Academia"]
[null,null,null,null,null,null,null,null,null,null,null,null,null,"NGO"]
[null,null,null,null,null,null,null,null,null,null,null,null,null,"Civil Society "]
[null,null,null,null,null,null,null,null,null,null,null,null,null,"Private Sector"]
[null,null,null,null,null,null,null,null,null,null,null,null,null,"International Organization"]
[null,null,null,null,null,null,null,null,null,null,null,null,null,"Other "]
[null,null,null,null,null,null,null,null,null,null,null,null,null,"Drop down Organization "]
[null,null,null,null,null,null,null,null,null,null,null,null,null,"National Government "]
[null,null,null,null,null,null,null,null,null,null,null,null,null,"Sub-national Government "]
[null,null,null,null,null,null,null,null,null,null,null,null,null,"Local Government "]
[]
[null,null,null,null,null,null,null,null,null,null,null,null,null,"Sector "]
[null,null,null,null,null,null,null,null,null,null,null,null,null,"Human Health"]
[null,null,null,null,null,null,null,null,null,null,null,null,null,"Animal Health"]
[null,null,null,null,null,null,null,null,null,null,null,null,null,"Wildlife "]
[null,null,null,null,null,null,null,null,null,null,null,null,null,"Environment"]
[]
[null,null,"Animal Health Workshop Participant List ",null,null,null,null,null,null,null,null,null,null,"Wildlife focus area"]
[null,null,"First Name ","Last Name","Type of Organization","Name of Organization ","Department/Unit (as relevent)","Email","Whats App/Line Number",null,null,null,null,"Wildlife Disease"]
[null,null,null,null,null,null,null,null,null,null,null,null,null,"Wildlife Mangement & Conservation"]
[]
[]
[]
[]
[]
[]
[]
[]
[]
[]
[]
[]
[]
[]
[]
[]
[]
[]
[]
[]
[null,null,"Wildlife Workshop Participant List "]
[null,null,"First Name ","Last Name","Type of Organization","Name of Organization ","Department/Unit (as relevent)","Wildlife Sub-Sector","Email","Whats App/Line Number"]
[]
[]
[]
[]
[]
[]
[]
[]
[]
[]
[]
[]
[]
[]
[]
[]
[]
[]
[]
[]
[]
[null,null,"Environment Workshop Participant List "]
[null,null,"First Name ","Last Name","Type of Organization","Name of Organization ","Department/Unit (as relevent)","Email","Whats App/Line Number"]
[]
[]
[]
[]
[]
[]
[]
[]
[]
[]
[]
[]
[]
[]
[]
[]
[]
[]
[]
[]
[]
[null,null,"Country"]
[null,null,"Combined Sector Workshop (Step 2)  "]
[null,null,"Assessment Date (DD/MM/YYYY)"]
[null,null,"Name(s) of Workshop Facilitator and Affiliation "]
[]
[]
[]
[null,null,"Combined Sector Workshop for Government Participant List (Step 2)"]
[]
[null,null,"First Name ","Last Name","Sector ","Level of Government","Ministry/Department Name ","Department/Unit (as relevent)","Email","Whats App/Line Number"]
[]
[]
[]
[]
[]
[]
[]
[]
[]
[]
[]
[]
[]
[]
[]
[]
[]
[]
[]
[]
[]
[]
[]
[]
[]
[]
[]
[]
[]
[]
[]
[]
[]
[]
[]
[]
[]
[]
[]
[]
[]
[]
[null,null,"Country"]
[null,null,"Combined Sector Workshop (Step 3)  "]
[null,null,"Assessment Date (DD/MM/YYYY)"]
[null,null,"Name(s) of Workshop Facilitator and Affiliation "]
[]
[]
[]
[null,null,"Combined Sector Workshop for Government Participant List (Step 3)"]
[]
[null,null,"First Name ","Last Name","Sector ","Level of Government","Ministry/Department Name ","Department/Unit (as relevent)","Email","Whats App/Line Number"]

{"sheet":"3.  OH Indicators By Sector","index":2,"n_rows":141,"n_cols":10,"rows_kept":141,"cut":false,"hidden":false,"merged":[[137,4,137,5],[138,4,138,5],[139,4,139,5],[140,4,140,5],[141,4,141,5],[136,4,136,5],[97,9,99,9],[100,9,102,9],[103,9,105,9],[109,9,111,9],[112,7,131,7],[112,9,115,9],[116,9,119,9],[120,9,123,9],[128,9,131,9],[132,0,132,5],[134,4,134,7],[135,4,135,5],[112,0,131,0],[112,1,131,1],[112,2,131,2],[82,0,96,0],[82,1,96,1],[82,2,96,2],[82,7,96,7],[97,0,111,0],[97,1,111,1],[97,2,111,2],[97,7,111,7],[62,0,76,0],[62,1,76,1],[62,2,76,2],[62,7,76,7],[77,0,81,0],[77,1,81,1],[77,2,81,2],[77,7,81,7],[42,0,51,0],[42,1,51,1],[42,2,51,2],[42,7,51,7],[52,0,61,0],[52,1,61,1],[52,2,61,2],[52,7,61,7],[12,9,14,9],[16,9,18,9],[20,9,22,9],[28,9,30,9],[32,0,41,0],[32,1,41,1],[32,2,41,2],[32,7,41,7],[12,0,31,0],[12,1,31,1],[12,2,31,2],[12,7,31,7],[0,2,0,8],[2,0,11,0],[2,1,11,1],[2,2,11,2],[2,7,11,7]]}
[null,null,"                                         One Health Indicators by Sector     \n                                                                                                                                                                                     [click icon to filter by sector]"]
["Indicator Number","Indicator Name","Description","Element","Sector","Yes or No (select from dropdown)",null,"Score","Comments","Sector Score by Indicator"]
[1,"National One Health Coordination Mechanism","A government endorsed One Health Coordination Mechanism (or similar structure) exists, is led by a high level government official (such as a Prime Minister or Deputy Prime Minister), includes representatives from each of the Ministries/Departments responsible for human health, animal health, widlife, and the environment, and includes techincal areas relevent to all sectors (not limited to specific technical areas such as zoonotic disease, antimicrobial resistance, or food safety).  ","Is there an government endorsed One Health Coordination Mechanism that officially acknowledges the human health Ministry/Department as a partner in One Health implementation?","H","Yes",{"$f":"IF(F3=\"Yes\",1,0)","v":1},{"$f":"SUM(G3:G12)/10*10","v":4},"who is the high level government official leading OH Coordination mechanism?",{"$f":"SUM(G3:G3)/2*10","v":5}]
[null,null,null,"Do government regulations, directives, legislation or policy ensure that the human health Ministry/Department participates in the national One Health Coordination Mechanism?","H","Yes",1]
[null,null,null,"Is there a government endorsed One Health Coordination Mechanism that officially acknowledges the animal health Ministry/Department as a partner in One Health implementation?","A","Yes",1,null,null,{"$f":"SUM(G5:G5)/2*10","v":5}]
[null,null,null,"Do government regulations, directives, legislation or policy ensure that the animal health Ministry/Department participates in the national One Health Coordination Mechanism?","A","No",{"$f":"IF(F6=\"Yes\",1,0)","v":0}]
[null,null,null,"Is there a government endorsed One Health Coordination Mechanism that officially acknowledges the Ministry/Department with responsibilities for wildlife disease as a partner in One Health implementation?","WD","Yes",1,null,null,{"$f":"SUM(G7:G7)/2*10","v":5}]
[null,null,null,"Do government regulations, directives, legislation or policy ensure that the Ministry/Department with responsibilities for wildlife disease participates in the national One Health Coordination Mechanism?","WD","No",{"$f":"IF(F8=\"Yes\",1,0)","v":0}]
[null,null,null,"Is there an officially recognized One Health Coordination Mechanism that officially acknowledges the Ministry/Department with responsibilities for wildlife management & conservation as a partner in One Health implementation?","WMC","No",{"$f":"IF(F9=\"Yes\",1,0)","v":0}]
[null,null,null,"Do government regulations, directives, legislation or policy ensure that the Ministry/Department with responsibilities for wildlife management & conservation participates in the national One Health Coordination Mechanism?","WMC","No",{"$f":"IF(F10=\"Yes\",1,0)","v":0}]
[null,null,null,"Is there a government endorsed One Health Coordination Mechanism that officially acknowledges the environment sector as a partner in One Health implementation?","E","No",0,null,null,{"$f":"SUM(G11:G11)/2*10","v":0}]
[null,null,null,"Do government regulations, directives, legislation or policy ensure that the Ministry/Department with responsibilities for the environment to participate in the national One Health Coordination Mechanism?","E","No",0]
[2,"Government Commitment of Human Resources to Support One Health ","The Ministries/Departments with responsibilities for human health, animal health, wildlife, and the environment commit the human resources needed for the One Health Coordination Mechanism and the One Health technical working groups, and to support One Health implementation at the sub-national and local levels.   \n\n\n\n","Does the human health Ministry/Department commit dedicated human resource person(s) to represent the Ministry/Department in the One Health Coordination Mechanism?  ","H","Yes",1,{"$f":"SUM(G13:G32)/20*10","v":3},null,{"$f":"SUM(G13:G15)/3*10","v":10}]
[null,null,null,"Does the human health Ministry/Department commit technical human resource person(s) to support  One Health technical working groups & the national One Health Action Plan?","H","Yes",1]
[null,null,null,"Does the human health Ministry/Department commit human resources person(s) at the sub-national or provincial level to support One Health implementation?","H","Yes",1]
[null,null,null,"Does the human health Ministry/Department commit human resources person(s) at the local, district, or community level to support One Health implementation?","H","No",0]
[null,null,null,"Does the animal health Ministry/Department commit dedicated human resource person(s) to represent the Ministry/Department in the One Health Coordination Mechanism?  ","A","Yes",1,null,null,{"$f":"SUM(G17:G19)/3*10","v":6.6666666666666661}]
[null,null,null,"Does the animal health Ministry/Department commit technical human resource person(s) to support One Health technical working groups & the national One Health Action Plan??   ","A","No",0]
[null,null,null,"Does the animal health Ministry/Department commit human resources person(s) at the sub-national or provincial level to support One Health implementation?","A","Yes",1]
[null,null,null,"Does the animal health Ministry/Department commit human resources person(s) at the local, district, or community level to support One Health implementation?","A","No",0]
[null,null,null,"Does the Ministry/Department with responsibilities for wildlife disease commit dedicated human resource person(s) to represent the Ministry/Department in the One Health Coordination Mechanism?  ","WD","Yes",1,null,null,{"$f":"SUM(G21:G23)/3*10","v":3.333333333333333}]
[null,null,null,"Does the Ministry/Department with responsibilities for wildlife disease commit technical human resource person(s) to support One Health technical working groups & the national One Health Action Plan?   ","WD","No",0]
[null,null,null,"Does the Ministry/Department with responsibilities for wildlife disease commit human resources person(s) at the sub-national or provincial level to support One Health implementation?","WD","No",0]
[null,null,null,"Does the Ministry/Department with responsibilities for wildlife disease commit human resources person(s) at the local, district, or community level to support One Health implementation?","WD","No",0]
[null,null,null,"Does the Ministry/Department with responsibilities for wildlife management & conservation commit dedicated human resource person(s) to represent the Ministry/Department in the One Health Coordination Mechanism?  ","WMC","No",0]
[null,null,null,"Does the Ministry/Department with responsibilities for wildlife management & conservation committechnical human resource person(s) to support One Health technical working groups & the national One Health Action Plan?   ","WMC","No",0]
[null,null,null,"Does the Ministry/Department with responsibilities for wildlife management & conservation commit human resources person(s) at the sub-national or provincial level to support One Health implementation?","WMC","No",0]
[null,null,null,"Does the Ministry/Department with responsibilities for wildlife management & conservation commit human resources person(s) at the local, district, or community level to support One Health implementation?","WMC","No",0]
[null,null,null,"Does the Ministry/Department with responsibilities for the environment commit dedicated human resource person(s) to represent the Ministry/Department in the One Health Coordination Mechanism?  ","E","No",0,null,null,{"$f":"SUM(G29:G31)/3*10","v":0}]
[null,null,null,"Does the Ministry/Department with responsibilities for the environment commit technical human resource person(s) to support One Health technical working groups & the national One Health Action Plan?","E","No",0]
[null,null,null,"Does the Ministry/Department with responsibilities for the environment commit human resources person(s) at the sub-national or provincial level to support One Health implementation?","E","No",0]
[null,null,null,"Does the Ministry/Department with responsibilities for the environment commit human resources person(s) at the local, district, or community level to support One Health implementation?","E","No",0]
[3,"Government Support for One Health Field Activity Implementation","The Ministries/Departments with responsibilities for human health, animal health, wildlife, and the environment commit the finanical resources needed to support implementation of One Health technical activitites & field implementation.  ","Are there dedicated finanical resources to support the human health sector to particiapte in One Health technical activitites & field implementation at the sub-national or provincial level ?","H","Yes",1,{"$f":"SUM(G33:G42)/10*10","v":3}]
[null,null,null,"Are there dedicated finanical resources to support the human health sector to particiapte in One Health technical activitites & field implementation at local, district, or community level?","H","No",0]
[null,null,null,"Are there dedicated finanical resources to support the animal health sector to particiapte in One Health technical activitites & field implementation at the sub-national or provincial level?","A","Yes",1]
[null,null,null,"Are there dedicated finanical resources to support the animal health sector to particiapte in One Health technical activitites & field implementation at the local, district, or community level?","A","No",0]
[null,null,null,"Are there dedicated finanical resources to support the Ministry/Department with responsibilities for wildlife disease to particiapte in One Health technical activitites & field implementation atthe sub-national or provinical level? ","WD","No",0]
[null,null,null,"Are there dedicated finanical resources to support the Ministry/Department with responsibilities for wildlife disease to particiapte in One Health technical activitites & field implementation at the local, district, or community level? ","WD","No",0]
[null,null,null,"Are there dedicated finanical resources to support the Ministry/Department with responsibilities for wildlife management & conservation sector to particiapte in One Health technical activitites & field implementation at the sub-national or provinical level? ","WMC","No",0]
[null,null,null,"Are there dedicated finanical resources to support the Ministry/Department with responsibilities for wildlife management & conservation sector to particiapte in One Health technical activitites & field implementation at the local,  district, or community level? ","WMC","No",0]
[null,null,null,"Are there dedicated finanical resources to support the Ministry/Department with responsibilities for the environment in their participation in One Health implemention at the sub-national or provinical level? ","E","Yes",1]
[null,null,null,"Are there dedicated finanical resources to support the Ministry/Department with responsibilities for the environment in their participation in One Health implemention at the local, district, or community level? ","E","No",0]
[4,"National One Health Strategy ","There is a national One Health Strategy that has been endorsed by the Ministries/Departments with responsibilities for human health, animal health, wildlife, and the environment. The OH Strategy includes technical priorities relevent to the human health, animal health, wildlife, and environment sectors. ","Is there a national One Health Strategy that has been endorsed by the human health  Ministry/Department? ","H","Yes",1,{"$f":"SUM(G43:G52)/10*10","v":8},null,{"$f":"G43/1*10","v":10}]
[null,null,null,"Does the national One Health Strategy contains techncial priorities of the human health sector? ","H","Yes",1]
[null,null,null,"Is there a national One Health Strategy that has been endorsed by the animal health  Ministry/Department? ","A","Yes",1,null,null,{"$f":"G45/1*10","v":10}]
[null,null,null,"Does the national One Health Strategy  contains techncial priorities of the animal health sector? ","A","Yes",1]
[null,null,null,"Is there a national One Health Strategy that has been endorsed by the Ministry/Department with responsibilities for wildlife disease? ","WD","Yes",1,null,null,10]
[null,null,null,"Does the national One Health Strategy  contains techncial priorities of the wildlife disease sub-sector? ","WD","Yes",1]
[null,null,null,"Is there a national One Health Strategy that has been endorsed by the Ministry/Department with responsibilities for wildlife management & conservation? ","WMC","No",0]
[null,null,null,"Does the national One Health Strategy  contains techncial priorities of the wildlife management & conservation sub-sector? ","WMC","Yes",1]
[null,null,null,"Is there a national One Health Strategy that has been endorsed by the Ministry/Department with responsibilities for the environment? ","E","No",0,null,null,0]
[null,null,null,"Does the national One Health Strategy contains techncial priorities of the environment sector? ","E","Yes",1]
[5,"National One Health Action Plan","There is a national One Health Action Plan that has been endorsed by the Ministries/Departments with responsibilities for human health, animal health, wildlife, and the environment. The OH Action Plan includes technical activities relevent to the human health, animal health, wildlife, and environment sectors.","Is there a national One Health Action Plan that has been endorsed by the human health Ministry/Department? ","H","Yes",1,{"$f":"SUM(G53:G62)/10*10","v":8}]
[null,null,null,"Does the national One Health Action Plan contain activities relevent to the human health sector? ","H","Yes",1]
[null,null,null,"Is there a national One Health Action Plan that has been endorsed by the animal health Ministry/Department? ","A","Yes",1]
[null,null,null,"Does the national One Health Action Plan contain activities relevent to the animal health sector? ","A","Yes",1]
[null,null,null,"Is there a national One Health Action Plan that has been endorsed by the Ministry/Department with responsibilities for wildlife disease? ","WD","Yes",1]
[null,null,null,"Does the national One Health Action Plan contain activities relevent to the wildlife disease sub-sector? ","WD","Yes",1]
[null,null,null,"Is there a national One Health Action Plan that has been endorsed by the Ministry/Department with responsibilities for wildlife management & conservation? ","WMC","No",0]
[null,null,null,"Does the national One Health Action Plan contain activities relevent to the wildlife management & conservation sub-sector? ","WMC","Yes",1]
[null,null,null,"Is there a national One Health Action Plan that has been endorsed by the Ministry/Department with responsibilities for the environment? ","E","No",0]
[null,null,null,"Does the national One Health Action Plan contain activities relevent to the environment sector? ","E","Yes",1]
[6,"One Health Information Sharing ","The Ministries/Departments with responsibilities for human health, animal health, wildlife, and the environment have mechanisms in place to share relevant One Health information and data amongst the Ministries/Departments and that this information and data are shared in a consistent and timely manner at national, sub-national and local levels.","Does the human health Ministry/Department have an unofficial or official mechanism, policy or agreement in place to ensure One Health information and data sharing with the Ministries/Departments responsible for animal health, wildlife, and the environment in a consistent and timely manner at the central government level?","H","Yes",1,{"$f":"SUM(G63:G77)/15*10","v":6}]
[null,null,null,"Does the human health Ministry/Department have an unofficial or official mechanism, policy or agreement in place to ensure One Health information and data sharing with the Ministries/Departments responsible for animal health, wildlife, and the environment in a consistent and timely manner at the Provincial or sub-national government level?","H","Yes",1]
[null,null,null,"Does the human health Ministry/Department have an unofficial or official mechanism, policy or agreement in place to ensure One Health information and data sharing with the Ministries/Departments responsible for animal health, wildlife, and the environment in a consistent and timely manner at the District or local government level?","H","No",0]
[null,null,null,"Does the animal health Ministry/Department have an unofficial or official mechanism, policy or agreement in place to ensure One Health information and data sharing with the Ministries/Departments responsible for human health, wildlife, and the environment in a consistent and timely manner at the central government level?","A","Yes",1]
[null,null,null,"Does the animal health Ministry/Department have an unofficial or official mechanism, policy or agreement in place to ensure One Health information and data sharing with the Ministries/Departments responsible for human health, wildlife, and the environment in a consistent and timely manner at the Provincial or sub-national government level?","A","Yes",1]
[null,null,null,"Does the animal health Ministry/Department have an unofficial or official mechanism, policy or agreement in place to ensure One Health information and data sharing with the Ministries/Departments responsible for animal health, wildlife, and the environment in a consistent and timely manner at the District or local government level?","A","Yes",1]
[null,null,null,"Does the Ministry/Department with responsibilities for wildlife disease have an unofficial or official mechanism, policy or agreement in place to ensure One Health information and data sharing with the Ministries/Departments responsible for human health, animal health, and the environment  in a consistent and timely manner at the central government level?   ","WD","Yes",1]
[null,null,null,"Does the Ministry/Department with responsibilities for wildlife disease have an unofficial or official mechanism, policy or agreement in place to ensure One Health information and data sharing with the Ministries/Departments responsible for human health, animal health, and the environment in a consistent and timely manner at the Provincial or sub-national government level?","WD","Yes",1]
[null,null,null,"Does the Ministry/Department with responsibilities for wildlife disease have an unofficial or official mechanism, policy or agreement in place to ensure One Health information and data sharing with the Ministries/Departments responsible for human health, animal health, and the environment in a consistent and timely manner at the District or local government level?   ","WD","No",0]
[null,null,null,"Does the Ministry/Department with responsibilities for wildlife management & conservation have an unofficial or official mechanism, policy or agreement in place to ensure One Health information and data sharing with the Ministries/Departments responsible for human health, animal health, and the environment in a consistent and timely manner at the central government level?   ","WMC","No",0]
[null,null,null,"Does the Ministry/Department with responsibilities for wildlife management & conservation have an unofficial or official mechanism, policy or agreement in place to ensure One Health information and data sharing with the Ministries/Departments responsible for human health, animal health, and the environment in a consistent and timely manner at the Provincial or sub-national government level?","WMC","No",0]
[null,null,null,"Does the Ministry/Department with responsibilities for wildlife management & conservation have an unofficial or official mechanism, policy or agreement in place to ensure One Health information and data sharing with the Ministries/Departments responsible for human health, animal health, and the environment in a consistent and timely manner at the District or local government level?   ","WMC","No",0]
[null,null,null,"Does the Ministry/Department with responsibilities for the environment have an unofficial or official mechanism, policy or agreement in place to ensure One Health information and data sharing with the Ministries/Departments responsible for human health, animal health, and the environment in a consistent and timely manner at the central government level?   ","E","Yes",1]
[null,null,null,"Does the Ministry/Department with responsibilities for the environment have an unofficial or official mechanism, policy or agreement in place to ensure One Health information and data sharing with the Ministries/Departments responsible for human health, animal health, and the environment in a consistent and timely manner at the Provincial or sub-national government level?","E","Yes",1]
[null,null,null,"Does the Ministry/Department with responsibilities for the environment have an unofficial or official mechanism, policy or agreement in place to ensure One Health information and data sharing with the Ministries/Departments responsible for human health, animal health, and the environment in a consistent and timely manner at the District or local government level?  ","E","No",0]
[7,"One Health Policy","The Ministries/Departments with responsibilities for human health, animal health, wildlife, and the environment have policies in place that require collaboration for areas of work at the human-animal-wildlife-environment interface that are not limited to specific technical areas of work or in an emergency response.","Does the human health Ministry/Department have policies in place that mandate collaboration for areas of work at the human-animal-wildlife-environment interface? If yes, please specify which technical areas of work and  which other sectors (animal health, wildlife, and the environment) are involved in the comments column.  ","H","Yes",1,{"$f":"SUM(G78:G82)/5*10","v":6},null,10]
[null,null,null,"Does the animal health Ministry/Department have policies in place that mandate collaboration for areas of work at the human-animal-wildlife-environment interface? If yes, please specify which technical areas of work and  which other sectors (animal health, wildlife, and the environment) are involved in the comments column.  ","A","Yes",1,null,null,10]
[null,null,null,"Does the Ministry/Department with responsibilities for wildlife disease have policies in place that mandate collaboration for areas of work at the human-animal-wildlife-environment interface? If yes, please specify which technical areas of work and  which other sectors (animal health, wildlife, and the environment) are involved in the comments column.  ","WD","No",0,null,null,0]
[null,null,null,"Does the Ministry/Department with responsibilities for wildlife management & conservation have policies in place that mandate collaboration for areas of work at the human-animal-wildlife-environment interface? If yes, please specify which technical areas of work and  which other sectors (animal health, wildlife, and the environment) are involved in the comments column. ","WMC","No",0]
[null,null,null,"Does the Ministry/Department with responsibilities for environment have policies in place that mandate collaboration for areas of work at the human-animal-wildlife-environment interface? If yes, please specify which technical areas of work and  which other sectors (animal health, wildlife, and the environment) are involved in the comments column.  ","E","Yes",1,null,null,10]
[8,"National One Health Risk Communication Strategy","There is a national One Health Risk Communication Strategy that has been endorsed by the Ministries/Departments and includes priorities of the human health, animal health, wildlife, and the environment sectors.","Is there is a national One Health Risk Communication Strategy that has been endorsed by the human health Ministry/Department? ","H","Yes",1,{"$f":"SUM(G83:G95)/15*10","v":4},null,10]
[null,null,null,"The national One Health Risk Communication Strategy includes risks and threats relevent to the human health sector? ","H","Yes",1,null,null,10]
[null,null,null,"The human health Ministry/Department has assigned a communication officer to support the OH communication strategy and coordinate with the other Ministries/Departments responsibile for animal health, wildlife, and the environment?  ","H","No",0,null,null,0]
[null,null,null,"Is there a national One Health Risk Communication Strategy that has been endorsed by the animal health Ministry/Department? ","A","Yes",1]
[null,null,null,"The national One Health Risk Communication Strategy includes risks and threats relevent to the animal health sector? ","A","Yes",1]
[null,null,null,"Does the animal health Ministry/Department has assigned a communication officer to support the OH communication strategy and coordinate with the other Ministries/Departments responsibile for  human health, wildlife and the environment?  ","A","No",0]
[null,null,null,"Is there a national One Health Risk Communication Strategy that has been endorsed by the  Ministry/Department with responsibilities for wildlife disease? ","WD","No",0,null,null,0]
[null,null,null,"The national One Health Risk Communication Strategy includes risks and threats relevent to the wildlife disease sub-sector? ","WD","Yes",1]
[null,null,null,"The Ministry/Department with responsibilities for wildlife disease has assigned a communication officer to support the OH communication strategy and coordinate with the other Ministries/Departments with responsibilities for human health, animal health, and the environment?  ","WD","No",0]
[null,null,null,"Is there a national One Health Risk Communication Strategy that has been endorsed by the  Ministry/Department with responsibilities for wildlife management & conservation? ","WMC","No",0]
[null,null,null,"The national One Health Risk Communication Strategy includes risks and threats relevent to the wildlife management & conservation sub-sector? ","WMC","No",0]
[null,null,null,"The Ministry/Department with responsibilities for wildlife management & conservation has assigned a communication officer to support the OH communication strategy and coordinate with the other Ministries/Departments with responsibilities for human health, animal health, and the environment?  ","WMC","No",0]
[null,null,null,"Is there a national One Health Risk Communication Strategy that has been endorsed by the  Ministry/Department with responsibilities for the environment? ","E","Yes",1]
[null,null,null,"The national One Health Risk Communication Strategy includes risks and threats relevent to the environment sector? ","E","Yes",1]
[null,null,null,"The Ministry/Department with responsibilities for the environment has assigned a communication officer to support the OH communication strategy and coordinate with the other Ministries/Departments with responsibilities for human health, animal health, and wildlife?  ","E","No",0]
[9,"Whole of Society Approach to One Health","There is an established network of representatives from academia, NGO's, civil society, and the private sector from across the human health, animal health, wildlife, and environment sectors who are partners in national One Health implementation.  ","Has the government established a human health sector network of partners that includes academia, NGO's, civil society, & private sector for One Health collaborations?","H","No",{"$f":"IF(F98=\"Yes\",1,0)","v":0},{"$f":"SUM(G98:G112)/15*10","v":5.333333333333333},null,{"$f":"SUM(G98:G100)/4*10","v":5}]
[null,null,null,"Did the human health Ministry/Department consult with the relevent academia, NGO's, civil society, private sector partners on the development of the national One Health Strategy?","H","Yes",1]
[null,null,null,"Does the human health Ministry/Department work with the partners from relevent academia, NGO's, civil society, private sector to implement the national One Health Action Plan?","H","Yes",1]
[null,null,null,"Has the government established an animal health sector network of partners that includes academia, NGO's, civil society, & private sector for One Health collaborations?","A","Yes",1,null,null,{"$f":"SUM(G101:G103)/4*10","v":7.5}]
[null,null,null,"Did the animal health Ministry/Department consult with the relevent academia, NGO's, civil society, private sector partners on the development of the national One Health Strategy?","A","Yes",1]
[null,null,null,"Does the animal health Ministry/Department work with the partners from relevent academia, NGO's, civil society, private sector to implement the national One Health Action Plan?","A","Yes",1]
[null,null,null,"Has the government established a wildlife disease network of partners that includes academia, NGO's, civil society, & private sector for One Health collaborations?","WD","Yes",1,null,null,{"$f":"SUM(G104:G106)/4*10","v":7.5}]
[null,null,null,"Did the Ministry/Department with responsibilities for wildlife disease consult with the relevent academia, NGO's, civil society, private sector partners on the development of the national One Health Strategy?","WD","Yes",1]
[null,null,null,"Does the Ministry/Department with responsibilities for wildlife disease work with the partners from relevent academia, NGO's, civil society, private sector to implement the national One Health Action Plan?","WD","Yes",1]
[null,null,null,"Has the government established a wildlife management & conservation sector network of partners that includes academia, NGO's, civil society, & private sector for One Health collaborations?","WMC","No",0]
[null,null,null,"Did the Ministry/Department with responsibilities for wildlife management & conservation consult with the relevent academia, NGO's, civil society, private sector partners on the development of the national One Health Strategy?","WMC","No",0]
[null,null,null,"Does the Ministry/Department with responsibilities for wildlife management & conservation work with the partners from relevent academia, NGO's, civil society, private sector to implement the national One Health Action Plan?","WMC","No",0]
[null,null,null,"Has the government established an environment network of partners that includes academia, NGO's, civil society, & private sector for One Health collaborations?","E","No",0,null,null,{"$f":"SUM(G110:G112)/4*10","v":0}]
[null,null,null,"Did the Ministry/Department with responsibilities for the environment consult with the relevent academia, NGO's, civil society, private sector partners on the development of the national One Health Strategy?","E","No",0]
[null,null,null,"Does the Ministry/Department with responsibilities for the environment work with the partners from relevent academia, NGO's, civil society, private sector to implement the national One Health Action Plan?","E","No",0]
[10,"Competent One Health Workforce","There is a competent One Health workforce consisting of representatives from human health, animal health, wildlife and the environment with established in-service training programs and joint sector One Health training. ","Has the human health Ministry/Department completed a workforce needs assessment or gap analysis using the FAO/WHO/WOAH One Health Field Epidemiology Competency Framework the within the last 3 years? ","H","Yes",{"$f":"IF(F113=\"Yes\",1,0)","v":1},{"$f":"SUM(G113:G132)/20*10","v":4.5},null,{"$f":"SUM(G113:G116)/7*10","v":4.2857142857142856}]
[null,null,null,"Does the human health Ministry/Department have an in-service field training program?  ","H","Yes",{"$f":"IF(F114=\"Yes\",1,0)","v":1}]
[null,null,null,"Is the human health Ministry/Department's in-service field training program accredited by an academic institution or professional regulatory body?","H","Yes",1]
[null,null,null,"Does the human health Ministry/Department in-service field training program include concurrent training with participants from the other three sectors (animal health, wildlife, and the environment)? ","H","No",0]
[null,null,null,"Has the animal health Ministry/Department completed a workforce needs assessment or gap analysis using the FAO/WHO/WOAH One Health Field Epidemiology Competency Framework within the last 3 years? ","A","Yes",{"$f":"IF(F117=\"Yes\",1,0)","v":1},null,null,{"$f":"SUM(G117:G120)/7*10","v":4.2857142857142856}]
[null,null,null,"Does the animal health Ministry/Department have an in-service field training program?  ","A","Yes",{"$f":"IF(F118=\"Yes\",1,0)","v":1}]
[null,null,null,"Is the animal health Ministry/Department's in-service field training program accredited by an academic institution or professional regulatory body?","A","Yes",1]
[null,null,null,"Does the animal health Ministry/Department in-service field training program include concurrent training with participants from the other three sectors (human health, wildlife, and the environment)? ","A","No",0]
[null,null,null,"Has the Ministry/Department with responsibilities for wildlife disease completed a workforce needs assessment or gap analysis using the FAO/WHO/WOAH One Health Field Epidemiology Competency Framework within the last 3 years? ","WD","Yes",1,null,null,{"$f":"SUM(G121:G124)/7*10","v":4.2857142857142856}]
[null,null,null,"Does the Ministry/Department with responsibilities for wildlife disease have an in-service field training program?  ","WD","Yes",1]
[null,null,null,"Is the Ministry/Department with responsibilities for wildlife disease's in-service field training program accredited by an academic institution or professional regulatory body? ","WD","Yes",1]
[null,null,null,"Does the Ministry/Department with responsibilities for wildlife disease have concurrent in-service training with participants from the other three sectors (human health, animal health, and the environment)?   ","WD","No",0]
[null,null,null,"Has the Ministry/Department with responsibilities for wildlife mangement & conservation  completed a workforce needs assessment or gap analysis using One Health field training competenices within the last 3 years? ","WMC","No",0]
[null,null,null,"Does the Ministry/Department with responsibilities for wildlife management & conservation have an in-service field training program?  ","WMC","No",0]
[null,null,null,"Is the Ministry/Department with responsibilities for wildlife management & conservation's in-service field training program accredited by an academic institution or professional regulatory body? ","WMC","No",0]
[null,null,null,"Does the Ministry/Department with responsibilities for wildlife management & conservation have concurrent in-service training with participants from the other three sectors (human health, animal health, and the environment)?   ","WMC","No",0]
[null,null,null,"Has the Ministry/Department with responsibilities for the environment completed a workforce needs assessment or gap analysis using One Health field training competenices within the last 3 years? ","E","No",0,null,null,{"$f":"SUM(G129:G132)/7*10","v":0}]
[null,null,null,"Does the Ministry/Department with responsibilities for the environment have an in-service field training program?  ","E","No",0]
[null,null,null,"Is the Ministry/Department with responsibilities for the environment's in-service field training program accredited by an academic institution or professional regulatory body? ","E","No",0]
[null,null,null,"Does the Ministry/Department with responsibilities for the environment One Health have concurrent in-service training with participants from the other three sectors (human health, animal health, and wildlife)?   ","E","No",0]
[" Total Overall Score (All Sectors Combined)",null,null,null,null,null,null,{"$f":"SUM(G3:G132)/130*10","v":5}]
[]
[null,null,null,null,"Overall Score by Sector"]
[null,null,"Final score taken place during the consensus workshop.",null,"Human Health",null,{"$f":"SUM(G3,G4,G13,G14,G15,G16, G33, G34,G43,G44,G53,G54,G63,G64,G65,G78,G83,G84, G85,G98,G99,G100,G113,G114,G115, G116)/26*10","v":7.6923076923076925},{"$f":"G136","v":7.6923076923076925}]
[null,null,"Add a sheet to enter final scores to populate the dashboard",null,"Animal Health",null,{"$f":"SUM(G5,G6,G17,G18,G19,G20, G35, G36, G45,G46, G55, G56, G66, G67, G68, G79, G86, G87, G88, G101,G102, G103,G117,G118,G119,G120)/26*10","v":7.6923076923076925},7.6923076923076925]
[null,null,null,null,"Wildlife Disease ",null,{"$f":"SUM(G7,G8,G21,G22,G23, G24,G37,G38,G47,G48,G57,G58,G69,G70,G71,G80,G81,G89,G90,G91,G104,G105,G106,G121,G122,G123)/26*10","v":5.7692307692307683},5.7692307692307683]
[null,null,null,null,"Wildlife Manangement & Conservation",null,{"$f":"SUM(G9:G10,G25:G28, G39:G40,G49:G50,G59:G60,G72:G74,G81,G92:G94,G107:G109,G125:G128)/26*10","v":0.76923076923076927},0.76923076923076927]
[null,null,null,null,"Widlife Combined",null,{"$f":"SUM(G7:G10,G21:G28,G37:G40,G47:G50+G57:G60,G69:G74,G80:G81,G89:G94,G104:G109,G121:G128)/52*10","v":3.2692307692307692},3.2692307692307692]
[null,null,null,null,"Environment",null,{"$f":"SUM(G11:G12,G29:G32,G41:G42,G51:G52,G61:G62,G75:G77,G82,G95:G97,G110:G112,G129:G132)/26*10","v":3.0769230769230771},3.0769230769230771]

{"sheet":"4.HH Indicator x JPA Crosswalk ","index":3,"n_rows":23,"n_cols":11,"rows_kept":23,"cut":false,"hidden":false,"merged":[[0,0,0,9],[2,0,4,0],[2,4,2,10],[3,1,4,1],[3,2,4,2]]}
[]
[]
["OH INDICATORS",null,null,null,"ACTION TRACK SCORES"]
[null,"INDICATOR DESCRIPTION","ACTION TRACK LINKAGE QUESTION ",null,"Action Track 1: Enhancing OH capacities to strengthen health systems","Action Track 2: Reducing the risks from emerging and re-emerging zoonotic diseases","Action Track 3: Controlling and eliminating endemic zoonotic, neglected tropical, and vector-borne diseases","Action Track 4: Strengthening the assessment, management & communication of food safety risks","Action Track 5: Curbing AMR","Action Track 6: Integrating the environment  into OH"]
[null,null,null,"Total",{"$f":"COUNTIF(E6:E14, \"Yes\")","v":6},5,6,7,5,5]
["National One Health Coordination Mechanism","A government endorsed One Health Coordination Mechanism (or similar structure) exists, is led by a high level government official (such as a Prime Minister or Deputy Prime Minister), includes representatives from each of the Ministries/Departments responsible for human health, animal health, widlife, and the environment, and includes techincal areas relevent to all sectors (not limited to specific technical areas such as zoonotic disease, antimicrobial resistance, or food safety).  ","Does the National One Health Coordination Mechanism address or support each of the action tracks?",null,"Yes","No","No","Yes","Yes","Yes"]
["Government Commitment of Human Resources to Support One Health ","The Ministries/Departments with responsibilities for human health, animal health, wildlife, and the environment commit the human resources needed for the One Health Coordination Mechanism and the One Health technical working groups, and to support One Health implementation at the sub-national and local levels.   ","Does the Ministry/Department provide the human resources needed  to support each of the action tracks? ",null,"Yes","No","No","Yes","No","Yes"]
["Government Support for One Health Field Activity Implementation","The Ministries/Departments with responsibilities for human health, animal health, wildlife, and the environment commit the finanical resources needed to support implementation of One Health technical activitites & field implementation.  ","Does the Ministry/Department provide the finanical resources needed to support each of the action tracks? ",null,"Yes","No","Yes","Yes","Yes","No"]
["National One Health Strategy","There is a national One Health Strategy that has been endorsed by the Ministries/Departments with responsibilities for human health, animal health, wildlife, and the environment. The OH Strategy includes technical priorities relevent to the human health, animal health, wildlife, and environment sectors. ","Does the national One Health Strategy address each of the action tracks?                                                                         ",null,"Yes","Yes","Yes","Yes","Yes","Yes"]
["National One Health Action Plan","There is a national One Health Action Plan that has been endorsed by the Ministries/Departments with responsibilities for human health, animal health, wildlife, and the environment. The OH Action Plan includes technical activities relevent to the human health, animal health, wildlife, and environment sectors.","Does the national One Health Action Plan address each of the action tracks?                                                                         ",null,"Yes","Yes","No","Yes","Yes","No"]
["One Health Information Sharing","The Ministries/Departments with responsibilities for human health, animal health, wildlife, and the environment have mechanisms in place to share relevant One Health information and data amongst the Ministries/Departments and that this information and data are shared in a consistent and timely manner at national, sub-national and local levels.","Is information relating to each of the action tracks shared across the sectors? ",null,"No","No","Yes","Yes","No","No"]
["One Health Policy ","The Ministries/Departments with responsibilities for human health, animal health, wildlife, and the environment have policies in place that require collaboration for areas of work at the human-animal-wildlife-environment interface that are not limited to specific technical areas of work or in an emergency response.","Is there policy to support each of the action tracks ?                      ",null,"No","Yes","Yes","No","No","No"]
["National One Health Risk Communication Strategy ","There is a national One Health Risk Communication Strategy that has been endorsed by the Ministries/Departments and includes priorities of the human health, animal health, wildlife, and the environment sectors.","Does the joint One Health Risk Communication Strategy address each of the action tracks?                                                                    ",null,"Yes","Yes","Yes","Yes","Yes","Yes","Yes"]
["Whole of Society Approach to One Health ","There is an established network of representatives from academia, NGO's, civil society, and the private sector from across the human health, animal health, wildlife, and environment sectors who are partners in national One Health implementation.  ","Are the relevant stakeholders included in efforts to address each of the actions tracks?                                                         ",null,"No","Yes","Yes","No","No","Yes"]
["Competent One Health Workforce  ","There is a competent One Health workforce consisting of representatives from human health, animal health, wildlife and the environment with established in-service training programs and joint sector One Health training. ","Does the One Health workforce have the capacity to contribute to each of the action tracks?                                               ",null,"No","Yes","Yes","Yes","Yes","Yes"]
["Comments"]
[]
[]
[]
[]
[]
[null,null,null,null,"Yes","No "]
[null,null,null,null,{"$f":"COUNTIF(E6:J15,\"Yes\")","v":39},{"$f":"COUNTIF(E6:J15,\"No\")","v":21}]

{"sheet":"4.W Indicator x JPA Crosswalk","index":4,"n_rows":21,"n_cols":10,"rows_kept":21,"cut":false,"hidden":false,"merged":[[0,0,0,9],[2,0,4,0],[2,4,2,10],[3,1,4,1],[3,2,4,2]]}
[]
[]
["OH INDICATORS",null,null,null,"ACTION TRACK SCORES"]
[null,"INDICATOR DESCRIPTION","ACTION TRACK LINKAGE QUESTION ",null,"Action Track 1: Enhancing OH capacities to strengthen health systems","Action Track 2: Reducing the risks from emerging and re-emerging zoonotic diseases","Action Track 3: Controlling and eliminating endemic zoonotic, neglected tropical, and vector-borne diseases","Action Track 4: Strengthening the assessment, management & communication of food safety risks","Action Track 5: Curbing AMR","Action Track 6: Integrating the environment  into OH"]
[null,null,null,"JPA Total",{"$f":"COUNTIF(E6:E15, \"Yes\")","v":5},6,5,7,5,5]
["National One Health Coordination Mechanism","A government endorsed One Health Coordination Mechanism (or similar structure) exists, is led by a high level government official (such as a Prime Minister or Deputy Prime Minister), includes representatives from each of the Ministries/Departments responsible for human health, animal health, widlife, and the environment, and includes techincal areas relevent to all sectors (not limited to specific technical areas such as zoonotic disease, antimicrobial resistance, or food safety).  ","Does the National One Health Coordination Mechanism address or support each of the action tracks?",null,"Yes","No","No","Yes","Yes","Yes"]
["Government Commitment of Human Resources to Support One Health ","The Ministries/Departments with responsibilities for human health, animal health, wildlife, and the environment commit the human resources needed for the One Health Coordination Mechanism and the One Health technical working groups, and to support One Health implementation at the sub-national and local levels.   ","Does the Ministry/Department provide the human resources needed  to support each of the action tracks? ",null,"Yes","No","No","Yes","No","Yes"]
["Government Support for One Health Field Activity Implementation","The Ministries/Departments with responsibilities for human health, animal health, wildlife, and the environment commit the finanical resources needed to support implementation of One Health technical activitites & field implementation.  ","Does the Ministry/Department provide the finanical resources needed to support each of the action tracks? ",null,"Yes","No","Yes","Yes","Yes","No"]
["National One Health Strategy","There is a national One Health Strategy that has been endorsed by the Ministries/Departments with responsibilities for human health, animal health, wildlife, and the environment. The OH Strategy includes technical priorities relevent to the human health, animal health, wildlife, and environment sectors. ","Does the national One Health Strategy address each of the action tracks?                                                                         ",null,"Yes","Yes","Yes","Yes","Yes","Yes"]
["National One Health Action Plan","There is a national One Health Action Plan that has been endorsed by the Ministries/Departments with responsibilities for human health, animal health, wildlife, and the environment. The OH Action Plan includes technical activities relevent to the human health, animal health, wildlife, and environment sectors.","Does the national One Health Action Plan address each of the action tracks?                                                                         ",null,"Yes","Yes","No","Yes","Yes","No"]
["One Health Information Sharing","The Ministries/Departments with responsibilities for human health, animal health, wildlife, and the environment have mechanisms in place to share relevant One Health information and data amongst the Ministries/Departments and that this information and data are shared in a consistent and timely manner at national, sub-national and local levels.","Is information relating to each of the action tracks shared across the sectors? ",null,"No","No","Yes","Yes","No","No"]
["One Health Policy ","The Ministries/Departments with responsibilities for human health, animal health, wildlife, and the environment have policies in place that require collaboration for areas of work at the human-animal-wildlife-environment interface that are not limited to specific technical areas of work or in an emergency response.","Is there policy to support each of the action tracks ?                      ",null,"No","Yes","Yes","Yes","Yes","Yes"]
["National One Health Risk Communication Strategy ","There is a national One Health Risk Communication Strategy that has been endorsed by the Ministries/Departments and includes priorities of the human health, animal health, wildlife, and the environment sectors.","Does the joint One Health Risk Communication Strategy address each of the action tracks?                                                                    ",null,"No","Yes","No","No","No","No"]
["Whole of Society Approach to One Health ","There is an established network of representatives from academia, NGO's, civil society, and the private sector from across the human health, animal health, wildlife, and environment sectors who are partners in national One Health implementation.  ","Are the relevant stakeholders included in efforts to address each of the actions tracks?                                                         ",null,"No","Yes","No","No","No","No"]
["Competent One Health Workforce  ","There is a competent One Health workforce consisting of representatives from human health, animal health, wildlife and the environment with established in-service training programs and joint sector One Health training. ","Does the One Health workforce have the capacity to contribute to each of the action tracks?                                               ",null,"No","Yes","Yes","No","No","Yes"]
["Comments"]
[]
[]
[]
[null,null,null,null,null,"Yes","No "]
[null,null,null,null,null,{"$f":"COUNTIF(E6:J15,\"Yes\")","v":33},{"$f":"COUNTIF(E6:J15,\"No\")","v":27}]

{"sheet":"4. AH Indicator x JPA Crosswalk","index":5,"n_rows":24,"n_cols":10,"rows_kept":24,"cut":false,"hidden":false,"merged":[[0,0,0,9],[2,0,4,0],[2,4,2,10],[3,1,4,1],[3,2,4,2]]}
[]
[]
["OH INDICATORS",null,null,null,"ACTION TRACK SCORES"]
[null,"INDICATOR DESCRIPTION","ACTION TRACK LINKAGE QUESTION ",null,"Action Track 1: Enhancing OH capacities to strengthen health systems","Action Track 2: Reducing the risks from emerging and re-emerging zoonotic diseases","Action Track 3: Controlling and eliminating endemic zoonotic, neglected tropical, and vector-borne diseases","Action Track 4: Strengthening the assessment, management & communication of food safety risks","Action Track 5: Curbing AMR","Action Track 6: Integrating the environment  into OH"]
[null,null,null,"Total",{"$f":"COUNTIF(E6:E15, \"Yes\")","v":5},8,7,9,4,4]
["National One Health Coordination Mechanism","A government endorsed One Health Coordination Mechanism (or similar structure) exists, is led by a high level government official (such as a Prime Minister or Deputy Prime Minister), includes representatives from each of the Ministries/Departments responsible for human health, animal health, widlife, and the environment, and includes techincal areas relevent to all sectors (not limited to specific technical areas such as zoonotic disease, antimicrobial resistance, or food safety).  ","Does the National One Health Coordination Mechanism address or support each of the action tracks?",null,"Yes","No","No","Yes","Yes","Yes"]
["Government Commitment of Human Resources to Support One Health ","The Ministries/Departments with responsibilities for human health, animal health, wildlife, and the environment commit the human resources needed for the One Health Coordination Mechanism and the One Health technical working groups, and to support One Health implementation at the sub-national and local levels.   ","Does the Ministry/Department provide the human resources needed  to support each of the action tracks? ",null,"Yes","Yes","No","Yes","No","Yes"]
["Government Support for One Health Field Activity Implementation","The Ministries/Departments with responsibilities for human health, animal health, wildlife, and the environment commit the finanical resources needed to support implementation of One Health technical activitites & field implementation.  ","Does the Ministry/Department provide the finanical resources needed to support each of the action tracks? ",null,"Yes","Yes","Yes","Yes","Yes","No"]
["National One Health Strategy","There is a national One Health Strategy that has been endorsed by the Ministries/Departments with responsibilities for human health, animal health, wildlife, and the environment. The OH Strategy includes technical priorities relevent to the human health, animal health, wildlife, and environment sectors. ","Does the national One Health Strategy address each of the action tracks?                                                                         ",null,"Yes","Yes","Yes","Yes","Yes","Yes"]
["National One Health Action Plan","There is a national One Health Action Plan that has been endorsed by the Ministries/Departments with responsibilities for human health, animal health, wildlife, and the environment. The OH Action Plan includes technical activities relevent to the human health, animal health, wildlife, and environment sectors.","Does the national One Health Action Plan address each of the action tracks?                                                                         ",null,"Yes","No","No","Yes","Yes","No"]
["One Health Information Sharing","The Ministries/Departments with responsibilities for human health, animal health, wildlife, and the environment have mechanisms in place to share relevant One Health information and data amongst the Ministries/Departments and that this information and data are shared in a consistent and timely manner at national, sub-national and local levels.","Is information relating to each of the action tracks shared across the sectors? ",null,"No","Yes","Yes","Yes","No","No"]
["One Health Policy ","The Ministries/Departments with responsibilities for human health, animal health, wildlife, and the environment have policies in place that require collaboration for areas of work at the human-animal-wildlife-environment interface that are not limited to specific technical areas of work or in an emergency response.","Is there policy to support each of the action tracks ?                      ",null,"No","Yes","Yes","Yes","No","No"]
["National One Health Risk Communication Strategy ","There is a national One Health Risk Communication Strategy that has been endorsed by the Ministries/Departments and includes priorities of the human health, animal health, wildlife, and the environment sectors.","Does the joint One Health Risk Communication Strategy address each of the action tracks?                                                                    ",null,"No","Yes","Yes","Yes","No","No"]
["Whole of Society Approach to One Health ","There is an established network of representatives from academia, NGO's, civil society, and the private sector from across the human health, animal health, wildlife, and environment sectors who are partners in national One Health implementation.  ","Are the relevant stakeholders included in efforts to address each of the actions tracks?                                                         ",null,"No","Yes","Yes","Yes","No","No"]
["Competent One Health Workforce  ","There is a competent One Health workforce consisting of representatives from human health, animal health, wildlife and the environment with established in-service training programs and joint sector One Health training. ","Does the One Health workforce have the capacity to contribute to each of the action tracks?                                               ",null,"No","Yes","Yes","No","No","Yes"]
["Comments"]
[]
[]
[]
[]
[]
[]
[null,null,null,null,"Yes","No "]
[null,null,null,null,{"$f":"COUNTIF(E6:J15,\"Yes\")","v":37},{"$f":"COUNTIF(E6:J15,\"No\")","v":23}]

{"sheet":"4. E Indicator x JPA Crosswalk","index":6,"n_rows":21,"n_cols":10,"rows_kept":21,"cut":false,"hidden":false,"merged":[[0,0,0,9],[2,0,4,0],[2,4,2,10],[3,1,4,1],[3,2,4,2]]}
[]
[]
["OH INDICATORS",null,null,null,"ACTION TRACK SCORES"]
[null,"INDICATOR DESCRIPTION","ACTION TRACK LINKAGE QUESTION ",null,"Action Track 1: Enhancing OH capacities to strengthen health systems","Action Track 2: Reducing the risks from emerging and re-emerging zoonotic diseases","Action Track 3: Controlling and eliminating endemic zoonotic, neglected tropical, and vector-borne diseases","Action Track 4: Strengthening the assessment, management & communication of food safety risks","Action Track 5: Curbing AMR","Action Track 6: Integrating the environment  into OH"]
[null,null,null,"JPA Total",{"$f":"COUNTIF(E6:E15, \"Yes\")","v":5},4,5,7,6,6]
["National One Health Coordination Mechanism","A government endorsed One Health Coordination Mechanism (or similar structure) exists, is led by a high level government official (such as a Prime Minister or Deputy Prime Minister), includes representatives from each of the Ministries/Departments responsible for human health, animal health, widlife, and the environment, and includes techincal areas relevent to all sectors (not limited to specific technical areas such as zoonotic disease, antimicrobial resistance, or food safety).  ","Does the National One Health Coordination Mechanism address or support each of the action tracks?",null,"No","No","No","Yes","Yes","Yes"]
["Government Commitment of Human Resources to Support One Health ","The Ministries/Departments with responsibilities for human health, animal health, wildlife, and the environment commit the human resources needed for the One Health Coordination Mechanism and the One Health technical working groups, and to support One Health implementation at the sub-national and local levels.   ","Does the Ministry/Department provide the human resources needed  to support each of the action tracks? ",null,"Yes","No","No","Yes","No","Yes"]
["Government Support for One Health Field Activity Implementation","The Ministries/Departments with responsibilities for human health, animal health, wildlife, and the environment commit the finanical resources needed to support implementation of One Health technical activitites & field implementation.  ","Does the Ministry/Department provide the finanical resources needed to support each of the action tracks? ",null,"Yes","No","Yes","Yes","Yes","No"]
["National One Health Strategy","There is a national One Health Strategy that has been endorsed by the Ministries/Departments with responsibilities for human health, animal health, wildlife, and the environment. The OH Strategy includes technical priorities relevent to the human health, animal health, wildlife, and environment sectors. ","Does the national One Health Strategy address each of the action tracks?                                                                         ",null,"Yes","Yes","Yes","Yes","Yes","Yes"]
["National One Health Action Plan","There is a national One Health Action Plan that has been endorsed by the Ministries/Departments with responsibilities for human health, animal health, wildlife, and the environment. The OH Action Plan includes technical activities relevent to the human health, animal health, wildlife, and environment sectors.","Does the national One Health Action Plan address each of the action tracks?                                                                         ",null,"Yes","Yes","Yes","Yes","Yes","Yes"]
["One Health Information Sharing","The Ministries/Departments with responsibilities for human health, animal health, wildlife, and the environment have mechanisms in place to share relevant One Health information and data amongst the Ministries/Departments and that this information and data are shared in a consistent and timely manner at national, sub-national and local levels.","Is information relating to each of the action tracks shared across the sectors? ",null,"No","No","Yes","Yes","Yes","Yes"]
["One Health Policy ","The Ministries/Departments with responsibilities for human health, animal health, wildlife, and the environment have policies in place that require collaboration for areas of work at the human-animal-wildlife-environment interface that are not limited to specific technical areas of work or in an emergency response.","Is there policy to support each of the action tracks ?                      ",null,"Yes","Yes","No","No","No","No"]
["National One Health Risk Communication Strategy ","There is a national One Health Risk Communication Strategy that has been endorsed by the Ministries/Departments and includes priorities of the human health, animal health, wildlife, and the environment sectors.","Does the joint One Health Risk Communication Strategy address each of the action tracks?                                                                    ",null,"No","No","No","No","No","No"]
["Whole of Society Approach to One Health ","There is an established network of representatives from academia, NGO's, civil society, and the private sector from across the human health, animal health, wildlife, and environment sectors who are partners in national One Health implementation.  ","Are the relevant stakeholders included in efforts to address each of the actions tracks?                                                         ",null,"No","No","No","Yes","Yes","No"]
["Competent One Health Workforce  ","There is a competent One Health workforce consisting of representatives from human health, animal health, wildlife and the environment with established in-service training programs and joint sector One Health training. ","Does the One Health workforce have the capacity to contribute to each of the action tracks?                                               ",null,"No","Yes","Yes","No","No","Yes"]
["Comments"]
[]
[]
[]
[null,null,null,null,null,"Yes","No "]
[null,null,null,null,null,{"$f":"COUNTIF(E6:K15,\"Yes\")","v":33},{"$f":"COUNTIF(E6:K15,\"No\")","v":27}]

{"sheet":"5.HH Indicator x Priority Area","index":7,"n_rows":21,"n_cols":12,"rows_kept":21,"cut":false,"hidden":false,"merged":[[0,0,0,9],[2,0,4,0],[2,4,2,11],[3,1,4,1],[3,2,4,2]]}
[]
["Linkages Between OH Indicator and JPA Action Track or Other Priority Technical Areas"]
["OH INDICATORS",null,null,null,"PRIORITY AREA SCORES"]
[null,"INDICATOR DESCRIPTION","ACTION TRACK/PRIORITY AREA LINKAGE QUESTION ",null,"Priority Area 1 : Prevent environmental degredation, preserve & restore habitat, biodiversity & ecosystems","Priority Area 2: Implement climate change adaptation & mitigation measures","Priority Area 3: Improve waste, effluent, pollution management-ecotoxicology","Priority Area 4: Prevent agriculture & urban encroachmnet through land-use planning","Priority Area 5:  Sustainable, climate smart agricultural production","Priority Area 6: Improve wildlife farming & wildlife trade management, inlcuding wildlife sales  ","Priority Area 7: Improve food safety at informal  & formal markets that mix & sell domestic & wild animals","Priority Area 8: Food Systems Transformation"]
[null,null,null,"PA Total",{"$f":"COUNTIF(E6:E15, \"Yes\")","v":8},{"$f":"COUNTIF(F6:F15, \"Yes\")","v":3},3,5,5,5,8,4]
["National One Health Coordination Mechanism","A government endorsed One Health Coordination Mechanism (or similar structure) exists, is led by a high level government official (such as a Prime Minister or Deputy Prime Minister), includes representatives from each of the Ministries/Departments responsible for human health, animal health, widlife, and the environment, and includes techincal areas relevent to all sectors (not limited to specific technical areas such as zoonotic disease, antimicrobial resistance, or food safety).  ","Does the National One Health Coordination Mechanism address or support each of the priority areas?",null,"Yes","No","Yes","No","No","No","Yes","No"]
["Government Commitment of Human Resources to Support One Health ","The Ministries/Departments with responsibilities for human health, animal health, wildlife, and the environment commit the human resources needed for the One Health Coordination Mechanism and the One Health technical working groups, and to support One Health implementation at the sub-national and local levels.   ","Does the Ministry/Department provide the human resources needed  to support each of the priority areas? ",null,"Yes","No","No","No","No","No","No","No"]
["Government Support for One Health Field Activity Implementation","The Ministries/Departments with responsibilities for human health, animal health, wildlife, and the environment commit the finanical resources needed to support implementation of One Health technical activitites & field implementation.  ","Does the Ministry/Department provide the finanical resources needed to support each of the priority areas? ",null,"Yes","No","Yes","Yes","Yes","Yes","Yes","Yes"]
["National One Health Strategy","There is a national One Health Strategy that has been endorsed by the Ministries/Departments with responsibilities for human health, animal health, wildlife, and the environment. The OH Strategy includes technical priorities relevent to the human health, animal health, wildlife, and environment sectors. ","Does the national One Health Strategy address each of the priority areas?                                                                         ",null,"Yes","Yes","No","No","Yes","No","Yes","Yes"]
["National One Health Action Plan","There is a national One Health Action Plan that has been endorsed by the Ministries/Departments with responsibilities for human health, animal health, wildlife, and the environment. The OH Action Plan includes technical activities relevent to the human health, animal health, wildlife, and environment sectors.","Does the national One Health Action Plan address each of the priority areas?                                                                         ",null,"Yes","Yes","No","Yes","Yes","Yes","Yes","No"]
["One Health Information Sharing","The Ministries/Departments with responsibilities for human health, animal health, wildlife, and the environment have mechanisms in place to share relevant One Health information and data amongst the Ministries/Departments and that this information and data are shared in a consistent and timely manner at national, sub-national and local levels.","Is information relating to each of the priority areas shared across the sectors? ",null,"Yes","No","No","Yes","Yes","Yes","Yes","No"]
["One Health Policy ","The Ministries/Departments with responsibilities for human health, animal health, wildlife, and the environment have policies in place that require collaboration for areas of work at the human-animal-wildlife-environment interface that are not limited to specific technical areas of work or in an emergency response.","Is there policy to support each of the priority areas?                      ",null,"No","No","No","No","No","No","No","No"]
["National One Health Risk Communication Strategy ","There is a national One Health Risk Communication Strategy that has been endorsed by the Ministries/Departments and includes priorities of the human health, animal health, wildlife, and the environment sectors.","Does the joint One Health Risk Communication Strategy address each of the priority areas?                                                                    ",null,"Yes","No","No","Yes","Yes","Yes","Yes","Yes"]
["Whole of Society Approach to One Health ","There is an established network of representatives from academia, NGO's, civil society, and the private sector from across the human health, animal health, wildlife, and environment sectors who are partners in national One Health implementation.  ","Are the relevant stakeholders included in efforts to address each of the priority areas?                                                         ",null,"Yes","No","No","No","No","No","Yes","Yes"]
["Competent One Health Workforce  ","There is a competent One Health workforce consisting of representatives from human health, animal health, wildlife and the environment with established in-service training programs and joint sector One Health training. ","Does the One Health workforce have the capacity to contribute to each of the priority areas?                                               ",null,"No","Yes","Yes","Yes","No","Yes","Yes","No"]
["Comments"]
[]
[]
[]
[null,null,null,null,null,null,null,null,"Yes","No"]
[null,null,null,null,null,null,null,null,{"$f":"COUNTIF(E6:L15,\"Yes\")","v":41},{"$f":"COUNTIF(E6:L15,\"No\")","v":39}]

{"sheet":"5. AH Indicator x Priority Area","index":8,"n_rows":21,"n_cols":12,"rows_kept":21,"cut":false,"hidden":false,"merged":[[0,0,0,9],[2,0,4,0],[2,4,2,11],[3,1,4,1],[3,2,4,2]]}
[]
["Linkages Between OH Indicator and JPA Action Track or Other Priority Technical Areas"]
["OH INDICATORS",null,null,null,"PRIORITY AREA SCORES"]
[null,"INDICATOR DESCRIPTION","ACTION TRACK/PRIORITY AREA LINKAGE QUESTION ",null,"Priority Area 1 : Prevent environmental degredation, preserve & restore habitat, biodiversity & ecosystems","Priority Area 2: Implement climate change adaptation & mitigation measures","Priority Area 3: Improve waste, effluent, pollution management-ecotoxicology","Priority Area 4: Prevent agriculture & urban encroachmnet through land-use planning","Priority Area 5:  Sustainable, climate smart agricultural production","Priority Area 6: Improve wildlife farming & wildlife trade management, inlcuding wildlife sales  ","Priority Area 7: Improve food safety at informal  & formal markets that mix & sell domestic & wild animals","Priority Area 8: Food Systems Transformation"]
[null,null,null,"PA Total",{"$f":"COUNTIF(E6:E15, \"Yes\")","v":7},{"$f":"COUNTIF(F6:F15, \"Yes\")","v":3},3,6,4,4,7,2]
["National One Health Coordination Mechanism","A government endorsed One Health Coordination Mechanism (or similar structure) exists, is led by a high level government official (such as a Prime Minister or Deputy Prime Minister), includes representatives from each of the Ministries/Departments responsible for human health, animal health, widlife, and the environment, and includes techincal areas relevent to all sectors (not limited to specific technical areas such as zoonotic disease, antimicrobial resistance, or food safety).  ","Does the National One Health Coordination Mechanism address or support each of the priority areas?",null,"Yes","No","Yes","No","No","No","Yes","No"]
["Government Commitment of Human Resources to Support One Health ","The Ministries/Departments with responsibilities for human health, animal health, wildlife, and the environment commit the human resources needed for the One Health Coordination Mechanism and the One Health technical working groups, and to support One Health implementation at the sub-national and local levels.   ","Does the Ministry/Department provide the human resources needed  to support each of the priority areas? ",null,"Yes","No","No","No","No","No","No","No"]
["Government Support for One Health Field Activity Implementation","The Ministries/Departments with responsibilities for human health, animal health, wildlife, and the environment commit the finanical resources needed to support implementation of One Health technical activitites & field implementation.  ","Does the Ministry/Department provide the finanical resources needed to support each of the priority areas? ",null,"Yes","No","Yes","Yes","Yes","No","Yes","No"]
["National One Health Strategy","There is a national One Health Strategy that has been endorsed by the Ministries/Departments with responsibilities for human health, animal health, wildlife, and the environment. The OH Strategy includes technical priorities relevent to the human health, animal health, wildlife, and environment sectors. ","Does the national One Health Strategy address each of the priority areas?                                                                         ",null,"No","Yes","No","No","Yes","No","Yes","Yes"]
["National One Health Action Plan","There is a national One Health Action Plan that has been endorsed by the Ministries/Departments with responsibilities for human health, animal health, wildlife, and the environment. The OH Action Plan includes technical activities relevent to the human health, animal health, wildlife, and environment sectors.","Does the national One Health Action Plan address each of the priority areas?                                                                         ",null,"Yes","Yes","No","Yes","Yes","Yes","Yes","No"]
["One Health Information Sharing","The Ministries/Departments with responsibilities for human health, animal health, wildlife, and the environment have mechanisms in place to share relevant One Health information and data amongst the Ministries/Departments and that this information and data are shared in a consistent and timely manner at national, sub-national and local levels.","Is information relating to each of the priority areas shared across the sectors? ",null,"No","No","No","Yes","Yes","Yes","Yes","No"]
["One Health Policy ","The Ministries/Departments with responsibilities for human health, animal health, wildlife, and the environment have policies in place that require collaboration for areas of work at the human-animal-wildlife-environment interface that are not limited to specific technical areas of work or in an emergency response.","Is there policy to support each of the priority areas?                      ",null,"Yes","No","No","No","No","No","No","No"]
["National One Health Risk Communication Strategy ","There is a national One Health Risk Communication Strategy that has been endorsed by the Ministries/Departments and includes priorities of the human health, animal health, wildlife, and the environment sectors.","Does the joint One Health Risk Communication Strategy address each of the priority areas?                                                                    ",null,"Yes","Yes","No","Yes","No","Yes","Yes","Yes"]
["Whole of Society Approach to One Health ","There is an established network of representatives from academia, NGO's, civil society, and the private sector from across the human health, animal health, wildlife, and environment sectors who are partners in national One Health implementation.  ","Are the relevant stakeholders included in efforts to address each of the priority areas?                                                         ",null,"Yes","No","No","Yes","No","No","No","No"]
["Competent One Health Workforce  ","There is a competent One Health workforce consisting of representatives from human health, animal health, wildlife and the environment with established in-service training programs and joint sector One Health training. ","Does the One Health workforce have the capacity to contribute to each of the priority areas?                                               ",null,"No","No","Yes","Yes","No","Yes","Yes","No"]
["Comments"]
[]
[]
[]
[null,null,null,null,null,null,null,"Yes","No"]
[null,null,null,null,null,null,null,{"$f":"COUNTIF(E6:L15,\"Yes\")","v":36},{"$f":"COUNTIF(E6:L15,\"No\")","v":44}]

{"sheet":"5. W Indicator x Priority Area","index":9,"n_rows":21,"n_cols":12,"rows_kept":21,"cut":false,"hidden":false,"merged":[[0,0,0,9],[2,0,4,0],[2,4,2,11],[3,1,4,1],[3,2,4,2]]}
[]
["Linkages Between OH Indicator and JPA Action Track or Other Priority Technical Areas"]
["OH INDICATORS",null,null,null,"PRIORITY AREA SCORES"]
[null,"INDICATOR DESCRIPTION","ACTION TRACK/PRIORITY AREA LINKAGE QUESTION ",null,"Priority Area 1 : Prevent environmental degredation, preserve & restore habitat, biodiversity & ecosystems","Priority Area 2: Implement climate change adaptation & mitigation measures","Priority Area 3: Improve waste, effluent, pollution management-ecotoxicology","Priority Area 4: Prevent agriculture & urban encroachmnet through land-use planning","Priority Area 5:  Sustainable, climate smart agricultural production","Priority Area 6: Improve wildlife farming & wildlife trade management, inlcuding wildlife sales  ","Priority Area 7: Improve food safety at informal  & formal markets that mix & sell domestic & wild animals","Priority Area 8: Food Systems Transformation"]
[null,null,null,"PA Total",{"$f":"COUNTIF(E6:E15, \"Yes\")","v":5},{"$f":"COUNTIF(F6:F15, \"Yes\")","v":4},4,5,7,4,9,1]
["National One Health Coordination Mechanism","A government endorsed One Health Coordination Mechanism (or similar structure) exists, is led by a high level government official (such as a Prime Minister or Deputy Prime Minister), includes representatives from each of the Ministries/Departments responsible for human health, animal health, widlife, and the environment, and includes techincal areas relevent to all sectors (not limited to specific technical areas such as zoonotic disease, antimicrobial resistance, or food safety).  ","Does the National One Health Coordination Mechanism address or support each of the priority areas?",null,"Yes","No","Yes","No","No","No","Yes","No"]
["Government Commitment of Human Resources to Support One Health ","The Ministries/Departments with responsibilities for human health, animal health, wildlife, and the environment commit the human resources needed for the One Health Coordination Mechanism and the One Health technical working groups, and to support One Health implementation at the sub-national and local levels.   ","Does the Ministry/Department provide the human resources needed  to support each of the priority areas? ",null,"Yes","No","No","No","No","No","No","No"]
["Government Support for One Health Field Activity Implementation","The Ministries/Departments with responsibilities for human health, animal health, wildlife, and the environment commit the finanical resources needed to support implementation of One Health technical activitites & field implementation.  ","Does the Ministry/Department provide the finanical resources needed to support each of the priority areas? ",null,"Yes","No","Yes","Yes","Yes","No","Yes","No"]
["National One Health Strategy","There is a national One Health Strategy that has been endorsed by the Ministries/Departments with responsibilities for human health, animal health, wildlife, and the environment. The OH Strategy includes technical priorities relevent to the human health, animal health, wildlife, and environment sectors. ","Does the national One Health Strategy address each of the priority areas?                                                                         ",null,"Yes","Yes","No","No","Yes","No","Yes","Yes"]
["National One Health Action Plan","There is a national One Health Action Plan that has been endorsed by the Ministries/Departments with responsibilities for human health, animal health, wildlife, and the environment. The OH Action Plan includes technical activities relevent to the human health, animal health, wildlife, and environment sectors.","Does the national One Health Action Plan address each of the priority areas?                                                                         ",null,"Yes","Yes","No","Yes","Yes","Yes","Yes","No"]
["One Health Information Sharing","The Ministries/Departments with responsibilities for human health, animal health, wildlife, and the environment have mechanisms in place to share relevant One Health information and data amongst the Ministries/Departments and that this information and data are shared in a consistent and timely manner at national, sub-national and local levels.","Is information relating to each of the priority areas shared across the sectors? ",null,"No","No","No","Yes","Yes","Yes","Yes","No"]
["One Health Policy ","The Ministries/Departments with responsibilities for human health, animal health, wildlife, and the environment have policies in place that require collaboration for areas of work at the human-animal-wildlife-environment interface that are not limited to specific technical areas of work or in an emergency response.","Is there policy to support each of the priority areas?                      ",null,"No","No","No","No","Yes","Yes","Yes","No"]
["National One Health Risk Communication Strategy ","There is a national One Health Risk Communication Strategy that has been endorsed by the Ministries/Departments and includes priorities of the human health, animal health, wildlife, and the environment sectors.","Does the joint One Health Risk Communication Strategy address each of the priority areas?                                                                    ",null,"No","No","No","No","No","No","Yes","No"]
["Whole of Society Approach to One Health ","There is an established network of representatives from academia, NGO's, civil society, and the private sector from across the human health, animal health, wildlife, and environment sectors who are partners in national One Health implementation.  ","Are the relevant stakeholders included in efforts to address each of the priority areas?                                                         ",null,"No","Yes","Yes","Yes","Yes","No","Yes","No"]
["Competent One Health Workforce  ","There is a competent One Health workforce consisting of representatives from human health, animal health, wildlife and the environment with established in-service training programs and joint sector One Health training. ","Does the One Health workforce have the capacity to contribute to each of the priority areas?                                               ",null,"No","Yes","Yes","Yes","Yes","Yes","Yes","No"]
["Comments"]
[]
[]
[]
[null,null,null,null,null,null,null,"Yes","No"]
[null,null,null,null,null,null,null,{"$f":"COUNTIF(E6:L15,\"Yes\")","v":39},{"$f":"COUNTIF(E6:L15,\"No\")","v":41}]

{"sheet":"5. E Indicator x Priority Area","index":10,"n_rows":21,"n_cols":12,"rows_kept":21,"cut":false,"hidden":false,"merged":[[0,0,0,9],[2,0,4,0],[2,4,2,11],[3,1,4,1],[3,2,4,2]]}
[]
["Linkages Between OH Indicator and JPA Action Track or Other Priority Technical Areas"]
["OH INDICATORS",null,null,null,"PRIORITY AREA SCORES"]
[null,"INDICATOR DESCRIPTION","ACTION TRACK/PRIORITY AREA LINKAGE QUESTION ",null,"Priority Area 1 : Prevent environmental degredation, preserve & restore habitat, biodiversity & ecosystems","Priority Area 2: Implement climate change adaptation & mitigation measures","Priority Area 3: Improve waste, effluent, pollution management-ecotoxicology","Priority Area 4: Prevent agriculture & urban encroachmnet through land-use planning","Priority Area 5:  Sustainable, climate smart agricultural production","Priority Area 6: Improve wildlife farming & wildlife trade management, inlcuding wildlife sales  ","Priority Area 7: Improve food safety at informal  & formal markets that mix & sell domestic & wild animals","Priority Area 8: Food Systems Transformation"]
[null,null,null,"PA Total",{"$f":"COUNTIF(E6:E15, \"Yes\")","v":8},{"$f":"COUNTIF(F6:F15, \"Yes\")","v":3},4,5,6,4,7,5]
["National One Health Coordination Mechanism","A government endorsed One Health Coordination Mechanism (or similar structure) exists, is led by a high level government official (such as a Prime Minister or Deputy Prime Minister), includes representatives from each of the Ministries/Departments responsible for human health, animal health, widlife, and the environment, and includes techincal areas relevent to all sectors (not limited to specific technical areas such as zoonotic disease, antimicrobial resistance, or food safety).  ","Does the National One Health Coordination Mechanism address or support each of the priority areas?",null,"Yes","No","Yes","No","No","No","Yes","No"]
["Government Commitment of Human Resources to Support One Health ","The Ministries/Departments with responsibilities for human health, animal health, wildlife, and the environment commit the human resources needed for the One Health Coordination Mechanism and the One Health technical working groups, and to support One Health implementation at the sub-national and local levels.   ","Does the Ministry/Department provide the human resources needed  to support each of the priority areas? ",null,"Yes","No","No","No","No","No","No","No"]
["Government Support for One Health Field Activity Implementation","The Ministries/Departments with responsibilities for human health, animal health, wildlife, and the environment commit the finanical resources needed to support implementation of One Health technical activitites & field implementation.  ","Does the Ministry/Department provide the finanical resources needed to support each of the priority areas? ",null,"Yes","No","Yes","Yes","Yes","No","Yes","No"]
["National One Health Strategy","There is a national One Health Strategy that has been endorsed by the Ministries/Departments with responsibilities for human health, animal health, wildlife, and the environment. The OH Strategy includes technical priorities relevent to the human health, animal health, wildlife, and environment sectors. ","Does the national One Health Strategy address each of the priority areas?                                                                         ",null,"Yes","Yes","No","No","Yes","No","Yes","Yes"]
["National One Health Action Plan","There is a national One Health Action Plan that has been endorsed by the Ministries/Departments with responsibilities for human health, animal health, wildlife, and the environment. The OH Action Plan includes technical activities relevent to the human health, animal health, wildlife, and environment sectors.","Does the national One Health Action Plan address each of the priority areas?                                                                         ",null,"Yes","Yes","No","Yes","Yes","Yes","Yes","Yes"]
["One Health Information Sharing","The Ministries/Departments with responsibilities for human health, animal health, wildlife, and the environment have mechanisms in place to share relevant One Health information and data amongst the Ministries/Departments and that this information and data are shared in a consistent and timely manner at national, sub-national and local levels.","Is information relating to each of the priority areas shared across the sectors? ",null,"No","No","No","Yes","Yes","Yes","Yes","Yes"]
["One Health Policy ","The Ministries/Departments with responsibilities for human health, animal health, wildlife, and the environment have policies in place that require collaboration for areas of work at the human-animal-wildlife-environment interface that are not limited to specific technical areas of work or in an emergency response.","Is there policy to support each of the priority areas?                      ",null,"Yes","No","No","No","No","No","No","No"]
["National One Health Risk Communication Strategy ","There is a national One Health Risk Communication Strategy that has been endorsed by the Ministries/Departments and includes priorities of the human health, animal health, wildlife, and the environment sectors.","Does the joint One Health Risk Communication Strategy address each of the priority areas?                                                                    ",null,"Yes","No","Yes","Yes","Yes","Yes","Yes","Yes"]
["Whole of Society Approach to One Health ","There is an established network of representatives from academia, NGO's, civil society, and the private sector from across the human health, animal health, wildlife, and environment sectors who are partners in national One Health implementation.  ","Are the relevant stakeholders included in efforts to address each of the priority areas?                                                         ",null,"Yes","No","No","No","No","No","No","No"]
["Competent One Health Workforce  ","There is a competent One Health workforce consisting of representatives from human health, animal health, wildlife and the environment with established in-service training programs and joint sector One Health training. ","Does the One Health workforce have the capacity to contribute to each of the priority areas?                                               ",null,"No","Yes","Yes","Yes","Yes","Yes","Yes","Yes"]
["Comments"]
[]
[]
[]
[null,null,null,null,null,null,null,"Yes","No"]
[null,null,null,null,null,null,null,{"$f":"COUNTIF(E6:L15,\"Yes\")","v":42},{"$f":"COUNTIF(E6:L15,\"No\")","v":38}]

{"sheet":"6. OH Indicators By Consensus","index":11,"n_rows":141,"n_cols":13,"rows_kept":141,"cut":false,"hidden":false,"merged":[[112,12,115,12],[116,12,119,12],[120,12,123,12],[137,4,137,8],[140,4,140,8],[134,4,134,10],[128,12,131,12],[135,4,135,8],[136,4,136,8],[132,0,132,8],[138,4,138,8],[112,7,131,7],[112,0,131,0],[112,1,131,1],[112,2,131,2],[112,10,131,10],[2,1,11,1],[2,0,11,0],[103,12,105,12],[109,12,111,12],[32,10,41,10],[12,10,31,10],[2,10,11,10],[16,12,18,12],[20,12,22,12],[28,12,30,12],[97,12,99,12],[100,12,102,12],[12,12,14,12],[82,10,96,10],[77,10,81,10],[2,7,11,7],[0,2,0,11],[62,0,76,0],[42,2,51,2],[42,1,51,1],[42,0,51,0],[42,10,51,10],[52,2,61,2],[52,1,61,1],[52,0,61,0],[52,10,61,10],[62,7,76,7],[12,0,31,0],[32,2,41,2],[32,1,41,1],[32,0,41,0],[2,2,11,2],[97,10,111,10],[12,2,31,2],[12,1,31,1],[77,0,81,0],[77,1,81,1],[77,7,81,7],[62,10,76,10],[62,2,76,2],[82,1,96,1],[12,7,31,7],[32,7,41,7],[42,7,51,7],[52,7,61,7],[141,4,141,8],[139,4,139,8],[82,0,96,0],[82,2,96,2],[62,1,76,1],[77,2,81,2],[82,7,96,7],[97,7,111,7],[97,0,111,0],[97,1,111,1],[97,2,111,2]]}
[null,null,"                                         One Health Indicators by Sector     \n                                                                                                                                                                                     [click icon to filter by sector]"]
["Indicator Number","Indicator Name","Description","Element","Sector","Yes or No (sector)",null,"Sector Score","Yes or No (select from dropdown)",null,"Consensus Score","Comments","Sector Score by Indicator"]
[1,"National One Health Coordination Mechanism","A government endorsed One Health Coordination Mechanism (or similar structure) exists, is led by a high level government official (such as a Prime Minister or Deputy Prime Minister), includes representatives from each of the Ministries/Departments responsible for human health, animal health, widlife, and the environment, and includes techincal areas relevent to all sectors (not limited to specific technical areas such as zoonotic disease, antimicrobial resistance, or food safety).  ","Is there an government endorsed One Health Coordination Mechanism that officially acknowledges the human health Ministry/Department as a partner in One Health implementation?","H",{"$f":"'3.  OH Indicators By Sector'!F3","v":"Yes"},{"$f":"IF(F3=\"Yes\",1,0)","v":1},{"$f":"SUM(G3:G12)/10*10","v":4},"Yes",{"$f":"IF(I3=\"Yes\",1,0)","v":1},{"$f":"SUM(J3:J12)/10*10","v":7},"who is the high level government official leading OH Coordination mechanism?",{"$f":"SUM(J3:J3)/2*10","v":5}]
[null,null,null,"Do government regulations, directives, legislation or policy ensure that the human health Ministry/Department participates in the national One Health Coordination Mechanism?","H",{"$f":"'3.  OH Indicators By Sector'!F4","v":"Yes"},1,null,"Yes",1]
[null,null,null,"Is there a government endorsed One Health Coordination Mechanism that officially acknowledges the animal health Ministry/Department as a partner in One Health implementation?","A",{"$f":"'3.  OH Indicators By Sector'!F5","v":"Yes"},1,null,"Yes",1,null,null,{"$f":"SUM(J5:J5)/2*10","v":5}]
[null,null,null,"Do government regulations, directives, legislation or policy ensure that the animal health Ministry/Department participates in the national One Health Coordination Mechanism?","A",{"$f":"'3.  OH Indicators By Sector'!F6","v":"No"},{"$f":"IF(F6=\"Yes\",1,0)","v":0},null,"No",{"$f":"IF(I6=\"Yes\",1,0)","v":0}]
[null,null,null,"Is there a government endorsed One Health Coordination Mechanism that officially acknowledges the Ministry/Department with responsibilities for wildlife disease as a partner in One Health implementation?","WD",{"$f":"'3.  OH Indicators By Sector'!F7","v":"Yes"},1,null,"Yes",1,null,null,{"$f":"SUM(J7:J7)/2*10","v":5}]
[null,null,null,"Do government regulations, directives, legislation or policy ensure that the Ministry/Department with responsibilities for wildlife disease participates in the national One Health Coordination Mechanism?","WD",{"$f":"'3.  OH Indicators By Sector'!F8","v":"No"},{"$f":"IF(F8=\"Yes\",1,0)","v":0},null,"Yes",{"$f":"IF(I8=\"Yes\",1,0)","v":1}]
[null,null,null,"Is there an officially recognized One Health Coordination Mechanism that officially acknowledges the Ministry/Department with responsibilities for wildlife management & conservation as a partner in One Health implementation?","WMC",{"$f":"'3.  OH Indicators By Sector'!F9","v":"No"},{"$f":"IF(F9=\"Yes\",1,0)","v":0},null,"Yes",{"$f":"IF(I9=\"Yes\",1,0)","v":1}]
[null,null,null,"Do government regulations, directives, legislation or policy ensure that the Ministry/Department with responsibilities for wildlife management & conservation participates in the national One Health Coordination Mechanism?","WMC",{"$f":"'3.  OH Indicators By Sector'!F10","v":"No"},{"$f":"IF(F10=\"Yes\",1,0)","v":0},null,"Yes",{"$f":"IF(I10=\"Yes\",1,0)","v":1}]
[null,null,null,"Is there a government endorsed One Health Coordination Mechanism that officially acknowledges the environment sector as a partner in One Health implementation?","E",{"$f":"'3.  OH Indicators By Sector'!F11","v":"No"},0,null,"No",0,null,null,{"$f":"SUM(J11:J11)/2*10","v":0}]
[null,null,null,"Do government regulations, directives, legislation or policy ensure that the Ministry/Department with responsibilities for the environment to participate in the national One Health Coordination Mechanism?","E",{"$f":"'3.  OH Indicators By Sector'!F12","v":"No"},0,null,"No",0]
[2,"Government Commitment of Human Resources to Support One Health ","The Ministries/Departments with responsibilities for human health, animal health, wildlife, and the environment commit the human resources needed for the One Health Coordination Mechanism and the One Health technical working groups, and to support One Health implementation at the sub-national and local levels.   \n\n\n\n","Does the human health Ministry/Department commit dedicated human resource person(s) to represent the Ministry/Department in the One Health Coordination Mechanism?  ","H",{"$f":"'3.  OH Indicators By Sector'!F13","v":"Yes"},1,{"$f":"SUM(G13:G32)/20*10","v":3},"Yes",1,{"$f":"SUM(J13:J32)/20*10","v":4},null,{"$f":"SUM(J13:J15)/3*10","v":10}]
[null,null,null,"Does the human health Ministry/Department commit technical human resource person(s) to support  One Health technical working groups & the national One Health Action Plan?","H",{"$f":"'3.  OH Indicators By Sector'!F14","v":"Yes"},1,null,"Yes",1]
[null,null,null,"Does the human health Ministry/Department commit human resources person(s) at the sub-national or provincial level to support One Health implementation?","H",{"$f":"'3.  OH Indicators By Sector'!F15","v":"Yes"},1,null,"Yes",1]
[null,null,null,"Does the human health Ministry/Department commit human resources person(s) at the local, district, or community level to support One Health implementation?","H",{"$f":"'3.  OH Indicators By Sector'!F16","v":"No"},0,null,"No",0]
[null,null,null,"Does the animal health Ministry/Department commit dedicated human resource person(s) to represent the Ministry/Department in the One Health Coordination Mechanism?  ","A",{"$f":"'3.  OH Indicators By Sector'!F17","v":"Yes"},1,null,"Yes",1,null,null,{"$f":"SUM(J17:J19)/3*10","v":10}]
[null,null,null,"Does the animal health Ministry/Department commit technical human resource person(s) to support One Health technical working groups & the national One Health Action Plan??   ","A",{"$f":"'3.  OH Indicators By Sector'!F18","v":"No"},0,null,"Yes",1]
[null,null,null,"Does the animal health Ministry/Department commit human resources person(s) at the sub-national or provincial level to support One Health implementation?","A",{"$f":"'3.  OH Indicators By Sector'!F19","v":"Yes"},1,null,"Yes",1]
[null,null,null,"Does the animal health Ministry/Department commit human resources person(s) at the local, district, or community level to support One Health implementation?","A",{"$f":"'3.  OH Indicators By Sector'!F20","v":"No"},0,null,"Yes",1]
[null,null,null,"Does the Ministry/Department with responsibilities for wildlife disease commit dedicated human resource person(s) to represent the Ministry/Department in the One Health Coordination Mechanism?  ","WD",{"$f":"'3.  OH Indicators By Sector'!F21","v":"Yes"},1,null,"Yes",1,null,null,{"$f":"SUM(J21:J23)/3*10","v":3.333333333333333}]
[null,null,null,"Does the Ministry/Department with responsibilities for wildlife disease commit technical human resource person(s) to support One Health technical working groups & the national One Health Action Plan?   ","WD",{"$f":"'3.  OH Indicators By Sector'!F22","v":"No"},0,null,"No",0]
[null,null,null,"Does the Ministry/Department with responsibilities for wildlife disease commit human resources person(s) at the sub-national or provincial level to support One Health implementation?","WD",{"$f":"'3.  OH Indicators By Sector'!F23","v":"No"},0,null,"No",0]
[null,null,null,"Does the Ministry/Department with responsibilities for wildlife disease commit human resources person(s) at the local, district, or community level to support One Health implementation?","WD",{"$f":"'3.  OH Indicators By Sector'!F24","v":"No"},0,null,"No",0]
[null,null,null,"Does the Ministry/Department with responsibilities for wildlife management & conservation commit dedicated human resource person(s) to represent the Ministry/Department in the One Health Coordination Mechanism?  ","WMC",{"$f":"'3.  OH Indicators By Sector'!F25","v":"No"},0,null,"No",0]
[null,null,null,"Does the Ministry/Department with responsibilities for wildlife management & conservation committechnical human resource person(s) to support One Health technical working groups & the national One Health Action Plan?   ","WMC",{"$f":"'3.  OH Indicators By Sector'!F26","v":"No"},0,null,"No",0]
[null,null,null,"Does the Ministry/Department with responsibilities for wildlife management & conservation commit human resources person(s) at the sub-national or provincial level to support One Health implementation?","WMC",{"$f":"'3.  OH Indicators By Sector'!F27","v":"No"},0,null,"No",0]
[null,null,null,"Does the Ministry/Department with responsibilities for wildlife management & conservation commit human resources person(s) at the local, district, or community level to support One Health implementation?","WMC",{"$f":"'3.  OH Indicators By Sector'!F28","v":"No"},0,null,"No",0]
[null,null,null,"Does the Ministry/Department with responsibilities for the environment commit dedicated human resource person(s) to represent the Ministry/Department in the One Health Coordination Mechanism?  ","E",{"$f":"'3.  OH Indicators By Sector'!F29","v":"No"},0,null,"No",0,null,null,{"$f":"SUM(J29:J31)/3*10","v":0}]
[null,null,null,"Does the Ministry/Department with responsibilities for the environment commit technical human resource person(s) to support One Health technical working groups & the national One Health Action Plan?","E",{"$f":"'3.  OH Indicators By Sector'!F30","v":"No"},0,null,"No",0]
[null,null,null,"Does the Ministry/Department with responsibilities for the environment commit human resources person(s) at the sub-national or provincial level to support One Health implementation?","E",{"$f":"'3.  OH Indicators By Sector'!F31","v":"No"},0,null,"No",0]
[null,null,null,"Does the Ministry/Department with responsibilities for the environment commit human resources person(s) at the local, district, or community level to support One Health implementation?","E",{"$f":"'3.  OH Indicators By Sector'!F32","v":"No"},0,null,"No",0]
[3,"Government Support for One Health Field Activity Implementation","The Ministries/Departments with responsibilities for human health, animal health, wildlife, and the environment commit the finanical resources needed to support implementation of One Health technical activitites & field implementation.  ","Are there dedicated finanical resources to support the human health sector to particiapte in One Health technical activitites & field implementation at the sub-national or provincial level ?","H",{"$f":"'3.  OH Indicators By Sector'!F33","v":"Yes"},1,{"$f":"SUM(G33:G42)/10*10","v":3},"Yes",{"$f":"IF(I33=\"Yes\",1,0)","v":1},{"$f":"SUM(J33:J42)/10*10","v":5}]
[null,null,null,"Are there dedicated finanical resources to support the human health sector to particiapte in One Health technical activitites & field implementation at local, district, or community level?","H",{"$f":"'3.  OH Indicators By Sector'!F34","v":"No"},0,null,"No",0]
[null,null,null,"Are there dedicated finanical resources to support the animal health sector to particiapte in One Health technical activitites & field implementation at the sub-national or provincial level?","A",{"$f":"'3.  OH Indicators By Sector'!F35","v":"Yes"},1,null,"Yes",1]
[null,null,null,"Are there dedicated finanical resources to support the animal health sector to particiapte in One Health technical activitites & field implementation at the local, district, or community level?","A",{"$f":"'3.  OH Indicators By Sector'!F36","v":"No"},0,null,"No",0]
[null,null,null,"Are there dedicated finanical resources to support the Ministry/Department with responsibilities for wildlife disease to particiapte in One Health technical activitites & field implementation atthe sub-national or provinical level? ","WD",{"$f":"'3.  OH Indicators By Sector'!F37","v":"No"},0,null,"No",0]
[null,null,null,"Are there dedicated finanical resources to support the Ministry/Department with responsibilities for wildlife disease to particiapte in One Health technical activitites & field implementation at the local, district, or community level? ","WD",{"$f":"'3.  OH Indicators By Sector'!F38","v":"No"},0,null,"No",0]
[null,null,null,"Are there dedicated finanical resources to support the Ministry/Department with responsibilities for wildlife management & conservation sector to particiapte in One Health technical activitites & field implementation at the sub-national or provinical level? ","WMC",{"$f":"'3.  OH Indicators By Sector'!F39","v":"No"},0,null,"Yes",1]
[null,null,null,"Are there dedicated finanical resources to support the Ministry/Department with responsibilities for wildlife management & conservation sector to particiapte in One Health technical activitites & field implementation at the local,  district, or community level? ","WMC",{"$f":"'3.  OH Indicators By Sector'!F40","v":"No"},0,null,"Yes",1]
[null,null,null,"Are there dedicated finanical resources to support the Ministry/Department with responsibilities for the environment in their participation in One Health implemention at the sub-national or provinical level? ","E",{"$f":"'3.  OH Indicators By Sector'!F41","v":"Yes"},1,null,"Yes",1]
[null,null,null,"Are there dedicated finanical resources to support the Ministry/Department with responsibilities for the environment in their participation in One Health implemention at the local, district, or community level? ","E",{"$f":"'3.  OH Indicators By Sector'!F42","v":"No"},0,null,"No",0]
[4,"National One Health Strategy ","There is a national One Health Strategy that has been endorsed by the Ministries/Departments with responsibilities for human health, animal health, wildlife, and the environment. The OH Strategy includes technical priorities relevent to the human health, animal health, wildlife, and environment sectors. ","Is there a national One Health Strategy that has been endorsed by the human health  Ministry/Department? ","H",{"$f":"'3.  OH Indicators By Sector'!F43","v":"Yes"},1,{"$f":"SUM(G43:G52)/10*10","v":8},"Yes",1,{"$f":"SUM(J43:J52)/10*10","v":9},null,{"$f":"J43/1*10","v":10}]
[null,null,null,"Does the national One Health Strategy contains techncial priorities of the human health sector? ","H",{"$f":"'3.  OH Indicators By Sector'!F44","v":"Yes"},1,null,"No",0]
[null,null,null,"Is there a national One Health Strategy that has been endorsed by the animal health  Ministry/Department? ","A",{"$f":"'3.  OH Indicators By Sector'!F45","v":"Yes"},1,null,"Yes",1,null,null,{"$f":"J45/1*10","v":10}]
[null,null,null,"Does the national One Health Strategy  contains techncial priorities of the animal health sector? ","A",{"$f":"'3.  OH Indicators By Sector'!F46","v":"Yes"},1,null,"Yes",1]
[null,null,null,"Is there a national One Health Strategy that has been endorsed by the Ministry/Department with responsibilities for wildlife disease? ","WD",{"$f":"'3.  OH Indicators By Sector'!F47","v":"Yes"},1,null,"Yes",1,null,null,10]
[null,null,null,"Does the national One Health Strategy  contains techncial priorities of the wildlife disease sub-sector? ","WD",{"$f":"'3.  OH Indicators By Sector'!F48","v":"Yes"},1,null,"Yes",1]
[null,null,null,"Is there a national One Health Strategy that has been endorsed by the Ministry/Department with responsibilities for wildlife management & conservation? ","WMC",{"$f":"'3.  OH Indicators By Sector'!F49","v":"No"},0,null,"Yes",1]
[null,null,null,"Does the national One Health Strategy  contains techncial priorities of the wildlife management & conservation sub-sector? ","WMC",{"$f":"'3.  OH Indicators By Sector'!F50","v":"Yes"},1,null,"Yes",1]
[null,null,null,"Is there a national One Health Strategy that has been endorsed by the Ministry/Department with responsibilities for the environment? ","E",{"$f":"'3.  OH Indicators By Sector'!F51","v":"No"},0,null,"Yes",1,null,null,10]
[null,null,null,"Does the national One Health Strategy contains techncial priorities of the environment sector? ","E",{"$f":"'3.  OH Indicators By Sector'!F52","v":"Yes"},1,null,"Yes",1]
[5,"National One Health Action Plan","There is a national One Health Action Plan that has been endorsed by the Ministries/Departments with responsibilities for human health, animal health, wildlife, and the environment. The OH Action Plan includes technical activities relevent to the human health, animal health, wildlife, and environment sectors.","Is there a national One Health Action Plan that has been endorsed by the human health Ministry/Department? ","H",{"$f":"'3.  OH Indicators By Sector'!F53","v":"Yes"},1,{"$f":"SUM(G53:G62)/10*10","v":8},"Yes",1,{"$f":"SUM(J53:J62)/10*10","v":6}]
[null,null,null,"Does the national One Health Action Plan contain activities relevent to the human health sector? ","H",{"$f":"'3.  OH Indicators By Sector'!F54","v":"Yes"},1,null,"Yes",1]
[null,null,null,"Is there a national One Health Action Plan that has been endorsed by the animal health Ministry/Department? ","A",{"$f":"'3.  OH Indicators By Sector'!F55","v":"Yes"},1,null,"Yes",1]
[null,null,null,"Does the national One Health Action Plan contain activities relevent to the animal health sector? ","A",{"$f":"'3.  OH Indicators By Sector'!F56","v":"Yes"},1,null,"Yes",1]
[null,null,null,"Is there a national One Health Action Plan that has been endorsed by the Ministry/Department with responsibilities for wildlife disease? ","WD",{"$f":"'3.  OH Indicators By Sector'!F57","v":"Yes"},1,null,"No",0]
[null,null,null,"Does the national One Health Action Plan contain activities relevent to the wildlife disease sub-sector? ","WD",{"$f":"'3.  OH Indicators By Sector'!F58","v":"Yes"},1,null,"No",0]
[null,null,null,"Is there a national One Health Action Plan that has been endorsed by the Ministry/Department with responsibilities for wildlife management & conservation? ","WMC",{"$f":"'3.  OH Indicators By Sector'!F59","v":"No"},0,null,"No",0]
[null,null,null,"Does the national One Health Action Plan contain activities relevent to the wildlife management & conservation sub-sector? ","WMC",{"$f":"'3.  OH Indicators By Sector'!F60","v":"Yes"},1,null,"Yes",1]
[null,null,null,"Is there a national One Health Action Plan that has been endorsed by the Ministry/Department with responsibilities for the environment? ","E",{"$f":"'3.  OH Indicators By Sector'!F61","v":"No"},0,null,"No",0]
[null,null,null,"Does the national One Health Action Plan contain activities relevent to the environment sector? ","E",{"$f":"'3.  OH Indicators By Sector'!F62","v":"Yes"},1,null,"Yes",1]
[6,null,"The Ministries/Departments with responsibilities for human health, animal health, wildlife, and the environment have mechanisms in place to share relevant One Health information and data amongst the Ministries/Departments and that this information and data are shared in a consistent and timely manner at national, sub-national and local levels.","Does the human health Ministry/Department have an unofficial or official mechanism, policy or agreement in place to ensure One Health information and data sharing with the Ministries/Departments responsible for animal health, wildlife, and the environment in a consistent and timely manner at the central government level?","H",{"$f":"'3.  OH Indicators By Sector'!F63","v":"Yes"},1,{"$f":"SUM(G63:G77)/15*10","v":6},"Yes",{"$f":"IF(I63=\"Yes\",1,0)","v":1},{"$f":"SUM(J63:J77)/15*10","v":6}]
[null,null,null,"Does the human health Ministry/Department have an unofficial or official mechanism, policy or agreement in place to ensure One Health information and data sharing with the Ministries/Departments responsible for animal health, wildlife, and the environment in a consistent and timely manner at the Provincial or sub-national government level?","H",{"$f":"'3.  OH Indicators By Sector'!F64","v":"Yes"},1,null,"Yes",1]
[null,null,null,"Does the human health Ministry/Department have an unofficial or official mechanism, policy or agreement in place to ensure One Health information and data sharing with the Ministries/Departments responsible for animal health, wildlife, and the environment in a consistent and timely manner at the District or local government level?","H",{"$f":"'3.  OH Indicators By Sector'!F65","v":"No"},0,null,"No",0]
[null,null,null,"Does the animal health Ministry/Department have an unofficial or official mechanism, policy or agreement in place to ensure One Health information and data sharing with the Ministries/Departments responsible for human health, wildlife, and the environment in a consistent and timely manner at the central government level?","A",{"$f":"'3.  OH Indicators By Sector'!F66","v":"Yes"},1,null,"Yes",{"$f":"IF(I66=\"Yes\",1,0)","v":1}]
[null,null,null,"Does the animal health Ministry/Department have an unofficial or official mechanism, policy or agreement in place to ensure One Health information and data sharing with the Ministries/Departments responsible for human health, wildlife, and the environment in a consistent and timely manner at the Provincial or sub-national government level?","A",{"$f":"'3.  OH Indicators By Sector'!F67","v":"Yes"},1,null,"Yes",1]
[null,null,null,"Does the animal health Ministry/Department have an unofficial or official mechanism, policy or agreement in place to ensure One Health information and data sharing with the Ministries/Departments responsible for animal health, wildlife, and the environment in a consistent and timely manner at the District or local government level?","A",{"$f":"'3.  OH Indicators By Sector'!F68","v":"Yes"},1,null,"Yes",1]
[null,null,null,"Does the Ministry/Department with responsibilities for wildlife disease have an unofficial or official mechanism, policy or agreement in place to ensure One Health information and data sharing with the Ministries/Departments responsible for human health, animal health, and the environment  in a consistent and timely manner at the central government level?   ","WD",{"$f":"'3.  OH Indicators By Sector'!F69","v":"Yes"},1,null,"Yes",{"$f":"IF(I69=\"Yes\",1,0)","v":1}]
[null,null,null,"Does the Ministry/Department with responsibilities for wildlife disease have an unofficial or official mechanism, policy or agreement in place to ensure One Health information and data sharing with the Ministries/Departments responsible for human health, animal health, and the environment in a consistent and timely manner at the Provincial or sub-national government level?","WD",{"$f":"'3.  OH Indicators By Sector'!F70","v":"Yes"},1,null,"Yes",1]
[null,null,null,"Does the Ministry/Department with responsibilities for wildlife disease have an unofficial or official mechanism, policy or agreement in place to ensure One Health information and data sharing with the Ministries/Departments responsible for human health, animal health, and the environment in a consistent and timely manner at the District or local government level?   ","WD",{"$f":"'3.  OH Indicators By Sector'!F71","v":"No"},0,null,"No",0]
[null,null,null,"Does the Ministry/Department with responsibilities for wildlife management & conservation have an unofficial or official mechanism, policy or agreement in place to ensure One Health information and data sharing with the Ministries/Departments responsible for human health, animal health, and the environment in a consistent and timely manner at the central government level?   ","WMC",{"$f":"'3.  OH Indicators By Sector'!F72","v":"No"},0,null,"No",0]
[null,null,null,"Does the Ministry/Department with responsibilities for wildlife management & conservation have an unofficial or official mechanism, policy or agreement in place to ensure One Health information and data sharing with the Ministries/Departments responsible for human health, animal health, and the environment in a consistent and timely manner at the Provincial or sub-national government level?","WMC",{"$f":"'3.  OH Indicators By Sector'!F73","v":"No"},0,null,"No",0]
[null,null,null,"Does the Ministry/Department with responsibilities for wildlife management & conservation have an unofficial or official mechanism, policy or agreement in place to ensure One Health information and data sharing with the Ministries/Departments responsible for human health, animal health, and the environment in a consistent and timely manner at the District or local government level?   ","WMC",{"$f":"'3.  OH Indicators By Sector'!F74","v":"No"},0,null,"No",0]
[null,null,null,"Does the Ministry/Department with responsibilities for the environment have an unofficial or official mechanism, policy or agreement in place to ensure One Health information and data sharing with the Ministries/Departments responsible for human health, animal health, and the environment in a consistent and timely manner at the central government level?   ","E",{"$f":"'3.  OH Indicators By Sector'!F75","v":"Yes"},1,null,"Yes",{"$f":"IF(I75=\"Yes\",1,0)","v":1}]
[null,null,null,"Does the Ministry/Department with responsibilities for the environment have an unofficial or official mechanism, policy or agreement in place to ensure One Health information and data sharing with the Ministries/Departments responsible for human health, animal health, and the environment in a consistent and timely manner at the Provincial or sub-national government level?","E",{"$f":"'3.  OH Indicators By Sector'!F76","v":"Yes"},1,null,"Yes",1]
[null,null,null,"Does the Ministry/Department with responsibilities for the environment have an unofficial or official mechanism, policy or agreement in place to ensure One Health information and data sharing with the Ministries/Departments responsible for human health, animal health, and the environment in a consistent and timely manner at the District or local government level?  ","E",{"$f":"'3.  OH Indicators By Sector'!F77","v":"No"},0,null,"No",0]
[7,"One Health Policy","The Ministries/Departments with responsibilities for human health, animal health, wildlife, and the environment have policies in place that require collaboration for areas of work at the human-animal-wildlife-environment interface that are not limited to specific technical areas of work or in an emergency response.","Does the human health Ministry/Department have policies in place that mandate collaboration for areas of work at the human-animal-wildlife-environment interface? If yes, please specify which technical areas of work and  which other sectors (animal health, wildlife, and the environment) are involved in the comments column.  ","H",{"$f":"'3.  OH Indicators By Sector'!F78","v":"Yes"},1,{"$f":"SUM(G78:G82)/5*10","v":6},"Yes",1,{"$f":"SUM(J78:J82)/5*10","v":6},null,10]
[null,null,null,"Does the animal health Ministry/Department have policies in place that mandate collaboration for areas of work at the human-animal-wildlife-environment interface? If yes, please specify which technical areas of work and  which other sectors (animal health, wildlife, and the environment) are involved in the comments column.  ","A",{"$f":"'3.  OH Indicators By Sector'!F79","v":"Yes"},1,null,"Yes",1,null,null,10]
[null,null,null,"Does the Ministry/Department with responsibilities for wildlife disease have policies in place that mandate collaboration for areas of work at the human-animal-wildlife-environment interface? If yes, please specify which technical areas of work and  which other sectors (animal health, wildlife, and the environment) are involved in the comments column.  ","WD",{"$f":"'3.  OH Indicators By Sector'!F80","v":"No"},0,null,"No",0,null,null,0]
[null,null,null,"Does the Ministry/Department with responsibilities for wildlife management & conservation have policies in place that mandate collaboration for areas of work at the human-animal-wildlife-environment interface? If yes, please specify which technical areas of work and  which other sectors (animal health, wildlife, and the environment) are involved in the comments column. ","WMC",{"$f":"'3.  OH Indicators By Sector'!F81","v":"No"},0,null,"No",0]
[null,null,null,"Does the Ministry/Department with responsibilities for environment have policies in place that mandate collaboration for areas of work at the human-animal-wildlife-environment interface? If yes, please specify which technical areas of work and  which other sectors (animal health, wildlife, and the environment) are involved in the comments column.  ","E",{"$f":"'3.  OH Indicators By Sector'!F82","v":"Yes"},1,null,"Yes",1,null,null,10]
[8,"National One Health Risk Communication Strategy","There is a national One Health Risk Communication Strategy that has been endorsed by the Ministries/Departments and includes priorities of the human health, animal health, wildlife, and the environment sectors.","Is there is a national One Health Risk Communication Strategy that has been endorsed by the human health Ministry/Department? ","H",{"$f":"'3.  OH Indicators By Sector'!F83","v":"Yes"},1,{"$f":"SUM(G83:G95)/15*10","v":4},"Yes",1,{"$f":"SUM(J83:J95)/15*10","v":6},null,10]
[null,null,null,"The national One Health Risk Communication Strategy includes risks and threats relevent to the human health sector? ","H",{"$f":"'3.  OH Indicators By Sector'!F84","v":"Yes"},1,null,"Yes",1,null,null,10]
[null,null,null,"The human health Ministry/Department has assigned a communication officer to support the OH communication strategy and coordinate with the other Ministries/Departments responsibile for animal health, wildlife, and the environment?  ","H",{"$f":"'3.  OH Indicators By Sector'!F85","v":"No"},0,null,"No",0,null,null,0]
[null,null,null,"Is there a national One Health Risk Communication Strategy that has been endorsed by the animal health Ministry/Department? ","A",{"$f":"'3.  OH Indicators By Sector'!F86","v":"Yes"},1,null,"Yes",1]
[null,null,null,"The national One Health Risk Communication Strategy includes risks and threats relevent to the animal health sector? ","A",{"$f":"'3.  OH Indicators By Sector'!F87","v":"Yes"},1,null,"Yes",1]
[null,null,null,"Does the animal health Ministry/Department has assigned a communication officer to support the OH communication strategy and coordinate with the other Ministries/Departments responsibile for  human health, wildlife and the environment?  ","A",{"$f":"'3.  OH Indicators By Sector'!F88","v":"No"},0,null,"Yes",1]
[null,null,null,"Is there a national One Health Risk Communication Strategy that has been endorsed by the  Ministry/Department with responsibilities for wildlife disease? ","WD",{"$f":"'3.  OH Indicators By Sector'!F89","v":"No"},0,null,"Yes",1,null,null,10]
[null,null,null,"The national One Health Risk Communication Strategy includes risks and threats relevent to the wildlife disease sub-sector? ","WD",{"$f":"'3.  OH Indicators By Sector'!F90","v":"Yes"},1,null,"Yes",1]
[null,null,null,"The Ministry/Department with responsibilities for wildlife disease has assigned a communication officer to support the OH communication strategy and coordinate with the other Ministries/Departments with responsibilities for human health, animal health, and the environment?  ","WD",{"$f":"'3.  OH Indicators By Sector'!F91","v":"No"},0,null,"No",0]
[null,null,null,"Is there a national One Health Risk Communication Strategy that has been endorsed by the  Ministry/Department with responsibilities for wildlife management & conservation? ","WMC",{"$f":"'3.  OH Indicators By Sector'!F92","v":"No"},0,null,"Yes",1]
[null,null,null,"The national One Health Risk Communication Strategy includes risks and threats relevent to the wildlife management & conservation sub-sector? ","WMC",{"$f":"'3.  OH Indicators By Sector'!F93","v":"No"},0,null,"No",0]
[null,null,null,"The Ministry/Department with responsibilities for wildlife management & conservation has assigned a communication officer to support the OH communication strategy and coordinate with the other Ministries/Departments with responsibilities for human health, animal health, and the environment?  ","WMC",{"$f":"'3.  OH Indicators By Sector'!F94","v":"No"},0,null,"No",0]
[null,null,null,"Is there a national One Health Risk Communication Strategy that has been endorsed by the  Ministry/Department with responsibilities for the environment? ","E",{"$f":"'3.  OH Indicators By Sector'!F95","v":"Yes"},1,null,"Yes",1]
[null,null,null,"The national One Health Risk Communication Strategy includes risks and threats relevent to the environment sector? ","E",{"$f":"'3.  OH Indicators By Sector'!F96","v":"Yes"},1,null,"Yes",1]
[null,null,null,"The Ministry/Department with responsibilities for the environment has assigned a communication officer to support the OH communication strategy and coordinate with the other Ministries/Departments with responsibilities for human health, animal health, and wildlife?  ","E",{"$f":"'3.  OH Indicators By Sector'!F97","v":"No"},0,null,"No",0]
[9,"Whole of Society Approach to One Health","There is an established network of representatives from academia, NGO's, civil society, and the private sector from across the human health, animal health, wildlife, and environment sectors who are partners in national One Health implementation.  ","Has the government established a human health sector network of partners that includes academia, NGO's, civil society, & private sector for One Health collaborations?","H",{"$f":"'3.  OH Indicators By Sector'!F98","v":"No"},{"$f":"IF(F98=\"Yes\",1,0)","v":0},{"$f":"SUM(G98:G112)/15*10","v":5.333333333333333},"No",{"$f":"IF(I98=\"Yes\",1,0)","v":0},{"$f":"SUM(J98:J112)/15*10","v":7.333333333333333},null,{"$f":"SUM(J98:J100)/4*10","v":5}]
[null,null,null,"Did the human health Ministry/Department consult with the relevent academia, NGO's, civil society, private sector partners on the development of the national One Health Strategy?","H",{"$f":"'3.  OH Indicators By Sector'!F99","v":"Yes"},1,null,"Yes",1]
[null,null,null,"Does the human health Ministry/Department work with the partners from relevent academia, NGO's, civil society, private sector to implement the national One Health Action Plan?","H",{"$f":"'3.  OH Indicators By Sector'!F100","v":"Yes"},1,null,"Yes",1]
[null,null,null,"Has the government established an animal health sector network of partners that includes academia, NGO's, civil society, & private sector for One Health collaborations?","A",{"$f":"'3.  OH Indicators By Sector'!F101","v":"Yes"},1,null,"Yes",1,null,null,{"$f":"SUM(J101:J103)/4*10","v":7.5}]
[null,null,null,"Did the animal health Ministry/Department consult with the relevent academia, NGO's, civil society, private sector partners on the development of the national One Health Strategy?","A",{"$f":"'3.  OH Indicators By Sector'!F102","v":"Yes"},1,null,"Yes",1]
[null,null,null,"Does the animal health Ministry/Department work with the partners from relevent academia, NGO's, civil society, private sector to implement the national One Health Action Plan?","A",{"$f":"'3.  OH Indicators By Sector'!F103","v":"Yes"},1,null,"Yes",1]
[null,null,null,"Has the government established a wildlife disease network of partners that includes academia, NGO's, civil society, & private sector for One Health collaborations?","WD",{"$f":"'3.  OH Indicators By Sector'!F104","v":"Yes"},1,null,"Yes",1,null,null,{"$f":"SUM(J104:J106)/4*10","v":7.5}]
[null,null,null,"Did the Ministry/Department with responsibilities for wildlife disease consult with the relevent academia, NGO's, civil society, private sector partners on the development of the national One Health Strategy?","WD",{"$f":"'3.  OH Indicators By Sector'!F105","v":"Yes"},1,null,"Yes",1]
[null,null,null,"Does the Ministry/Department with responsibilities for wildlife disease work with the partners from relevent academia, NGO's, civil society, private sector to implement the national One Health Action Plan?","WD",{"$f":"'3.  OH Indicators By Sector'!F106","v":"Yes"},1,null,"Yes",1]
[null,null,null,"Has the government established a wildlife management & conservation sector network of partners that includes academia, NGO's, civil society, & private sector for One Health collaborations?","WMC",{"$f":"'3.  OH Indicators By Sector'!F107","v":"No"},0,null,"Yes",1]
[null,null,null,"Did the Ministry/Department with responsibilities for wildlife management & conservation consult with the relevent academia, NGO's, civil society, private sector partners on the development of the national One Health Strategy?","WMC",{"$f":"'3.  OH Indicators By Sector'!F108","v":"No"},0,null,"Yes",1]
[null,null,null,"Does the Ministry/Department with responsibilities for wildlife management & conservation work with the partners from relevent academia, NGO's, civil society, private sector to implement the national One Health Action Plan?","WMC",{"$f":"'3.  OH Indicators By Sector'!F109","v":"No"},0,null,"Yes",1]
[null,null,null,"Has the government established an environment network of partners that includes academia, NGO's, civil society, & private sector for One Health collaborations?","E",{"$f":"'3.  OH Indicators By Sector'!F110","v":"No"},0,null,"No",0,null,null,{"$f":"SUM(J110:J112)/4*10","v":0}]
[null,null,null,"Did the Ministry/Department with responsibilities for the environment consult with the relevent academia, NGO's, civil society, private sector partners on the development of the national One Health Strategy?","E",{"$f":"'3.  OH Indicators By Sector'!F111","v":"No"},0,null,"No",0]
[null,null,null,"Does the Ministry/Department with responsibilities for the environment work with the partners from relevent academia, NGO's, civil society, private sector to implement the national One Health Action Plan?","E",{"$f":"'3.  OH Indicators By Sector'!F112","v":"No"},0,null,"No",0]
[10,"Competent One Health Workforce","There is a competent One Health workforce consisting of representatives from human health, animal health, wildlife and the environment with established in-service training programs and joint sector One Health training. ","Has the human health Ministry/Department completed a workforce needs assessment or gap analysis using the FAO/WHO/WOAH One Health Field Epidemiology Competency Framework the within the last 3 years? ","H",{"$f":"'3.  OH Indicators By Sector'!F113","v":"Yes"},{"$f":"IF(F113=\"Yes\",1,0)","v":1},{"$f":"SUM(G113:G132)/20*10","v":4.5},"Yes",{"$f":"IF(I113=\"Yes\",1,0)","v":1},{"$f":"SUM(J113:J132)/20*10","v":4.5},null,{"$f":"SUM(J113:J116)/7*10","v":4.2857142857142856}]
[null,null,null,"Does the human health Ministry/Department have an in-service field training program?  ","H",{"$f":"'3.  OH Indicators By Sector'!F114","v":"Yes"},{"$f":"IF(F114=\"Yes\",1,0)","v":1},null,"Yes",{"$f":"IF(I114=\"Yes\",1,0)","v":1}]
[null,null,null,"Is the human health Ministry/Department's in-service field training program accredited by an academic institution or professional regulatory body?","H",{"$f":"'3.  OH Indicators By Sector'!F115","v":"Yes"},1,null,"Yes",1]
[null,null,null,"Does the human health Ministry/Department in-service field training program include concurrent training with participants from the other three sectors (animal health, wildlife, and the environment)? ","H",{"$f":"'3.  OH Indicators By Sector'!F116","v":"No"},0,null,"No",0]
[null,null,null,"Has the animal health Ministry/Department completed a workforce needs assessment or gap analysis using the FAO/WHO/WOAH One Health Field Epidemiology Competency Framework within the last 3 years? ","A",{"$f":"'3.  OH Indicators By Sector'!F117","v":"Yes"},{"$f":"IF(F117=\"Yes\",1,0)","v":1},null,"Yes",{"$f":"IF(I117=\"Yes\",1,0)","v":1},null,null,{"$f":"SUM(J117:J120)/7*10","v":4.2857142857142856}]
[null,null,null,"Does the animal health Ministry/Department have an in-service field training program?  ","A",{"$f":"'3.  OH Indicators By Sector'!F118","v":"Yes"},{"$f":"IF(F118=\"Yes\",1,0)","v":1},null,"Yes",{"$f":"IF(I118=\"Yes\",1,0)","v":1}]
[null,null,null,"Is the animal health Ministry/Department's in-service field training program accredited by an academic institution or professional regulatory body?","A",{"$f":"'3.  OH Indicators By Sector'!F119","v":"Yes"},1,null,"Yes",1]
[null,null,null,"Does the animal health Ministry/Department in-service field training program include concurrent training with participants from the other three sectors (human health, wildlife, and the environment)? ","A",{"$f":"'3.  OH Indicators By Sector'!F120","v":"No"},0,null,"No",0]
[null,null,null,"Has the Ministry/Department with responsibilities for wildlife disease completed a workforce needs assessment or gap analysis using the FAO/WHO/WOAH One Health Field Epidemiology Competency Framework within the last 3 years? ","WD",{"$f":"'3.  OH Indicators By Sector'!F121","v":"Yes"},1,null,"Yes",{"$f":"IF(I121=\"Yes\",1,0)","v":1},null,null,{"$f":"SUM(J121:J124)/7*10","v":4.2857142857142856}]
[null,null,null,"Does the Ministry/Department with responsibilities for wildlife disease have an in-service field training program?  ","WD",{"$f":"'3.  OH Indicators By Sector'!F122","v":"Yes"},1,null,"Yes",1]
[null,null,null,"Is the Ministry/Department with responsibilities for wildlife disease's in-service field training program accredited by an academic institution or professional regulatory body? ","WD",{"$f":"'3.  OH Indicators By Sector'!F123","v":"Yes"},1,null,"Yes",1]
[null,null,null,"Does the Ministry/Department with responsibilities for wildlife disease have concurrent in-service training with participants from the other three sectors (human health, animal health, and the environment)?   ","WD",{"$f":"'3.  OH Indicators By Sector'!F124","v":"No"},0,null,"No",0]
[null,null,null,"Has the Ministry/Department with responsibilities for wildlife mangement & conservation  completed a workforce needs assessment or gap analysis using One Health field training competenices within the last 3 years? ","WMC",{"$f":"'3.  OH Indicators By Sector'!F125","v":"No"},0,null,"No",0]
[null,null,null,"Does the Ministry/Department with responsibilities for wildlife management & conservation have an in-service field training program?  ","WMC",{"$f":"'3.  OH Indicators By Sector'!F126","v":"No"},0,null,"No",0]
[null,null,null,"Is the Ministry/Department with responsibilities for wildlife management & conservation's in-service field training program accredited by an academic institution or professional regulatory body? ","WMC",{"$f":"'3.  OH Indicators By Sector'!F127","v":"No"},0,null,"No",0]
[null,null,null,"Does the Ministry/Department with responsibilities for wildlife management & conservation have concurrent in-service training with participants from the other three sectors (human health, animal health, and the environment)?   ","WMC",{"$f":"'3.  OH Indicators By Sector'!F128","v":"No"},0,null,"No",0]
[null,null,null,"Has the Ministry/Department with responsibilities for the environment completed a workforce needs assessment or gap analysis using One Health field training competenices within the last 3 years? ","E",{"$f":"'3.  OH Indicators By Sector'!F129","v":"No"},0,null,"No",{"$f":"IF(I129=\"Yes\",1,0)","v":0},null,null,{"$f":"SUM(J129:J132)/7*10","v":0}]
[null,null,null,"Does the Ministry/Department with responsibilities for the environment have an in-service field training program?  ","E",{"$f":"'3.  OH Indicators By Sector'!F130","v":"No"},0,null,"No",0]
[null,null,null,"Is the Ministry/Department with responsibilities for the environment's in-service field training program accredited by an academic institution or professional regulatory body? ","E",{"$f":"'3.  OH Indicators By Sector'!F131","v":"No"},0,null,"No",0]
[null,null,null,"Does the Ministry/Department with responsibilities for the environment One Health have concurrent in-service training with participants from the other three sectors (human health, animal health, and wildlife)?   ","E",{"$f":"'3.  OH Indicators By Sector'!F132","v":"No"},0,null,"No",0]
[" Total Overall Consensus Score (All Sectors Combined)",null,null,null,null,null,null,null,null,null,{"$f":"SUM(J3:J132)/130*10","v":5.9230769230769234}]
[]
[null,null,null,null,"Overall Score by Consensus for each sector"]
[null,null,"Final score taken place during the consensus workshop.",null,"Human Health",null,null,null,null,{"$f":"SUM(J3,J4,J13,J14,J15,J16, J33, J34,J43,J44,J53,J54,J63,J64,J65,J78,J83,J84, J85,J98,J99,J100,J113,J114,J115, J116)/26*10","v":7.3076923076923075},{"$f":"J136","v":7.3076923076923075}]
[null,null,"Add a sheet to enter final scores to populate the dashboard",null,"Animal Health",null,null,null,null,{"$f":"SUM(J5,J6,J17,J18,J19,J20, J35, J36, J45,J46, J55, J56, J66, J67, J68, J79, J86, J87, J88, J101,J102, J103,J117,J118,J119,J120)/26*10","v":8.8461538461538467},8.8461538461538467]
[null,null,null,null,"Wildlife Disease ",null,null,null,null,{"$f":"SUM(J7,J8,J21,J22,J23, J24,J37,J38,J47,J48,J57,J58,J69,J70,J71,J80,J81,J89,J90,J91,J104,J105,J106,J121,J122,J123)/26*10","v":5.7692307692307683},5.7692307692307683]
[null,null,null,null,"Wildlife Manangement & Conservation",null,null,null,null,{"$f":"SUM(J9:J10,J25:J28, J39:J40,J49:J50,J59:J60,J72:J74,J81,J92:J94,J107:J109,J125:J128)/26*10","v":4.2307692307692308},4.2307692307692308]
[null,null,null,null,"Widlife Combined",null,null,null,null,{"$f":"SUM(J7:J10,J21:J28,J37:J40,J47:J50+J57:J60,J69:J74,J80:J81,J89:J94,J104:J109,J121:J128)/52*10","v":5},5]
[null,null,null,null,"Environment",null,null,null,null,{"$f":"SUM(J11:J12,J29:J32,J41:J42,J51:J52,J61:J62,J75:J77,J82,J95:J97,J110:J112,J129:J132)/26*10","v":3.4615384615384617},3.4615384615384617]

{"sheet":"Figure 3 dashboard","index":12,"n_rows":132,"n_cols":14,"rows_kept":132,"cut":false,"hidden":true,"merged":[[0,2,0,4]]}
[]
["Indicator Number","Indicator Name","Element","Sector","Yes or No (select from dropdown)",null,"Sector Score by Indicator","Sector Score by Stratified for Wildlife",null,"Indicator Number","Indicator Name","Sector","Sector Score by Indicator","Result"]
[1,"National One Health Coordination Mechansim","Is there an government endorsed One Health Coordination Mechanism that officially acknowledges the human health Ministry/Department as a partner in One Health implementation?","H",{"$f":"'6. OH Indicators By Consensus'!F3","v":"Yes"},{"$f":"IF(E3 = \"Yes\",1,0)","v":1},{"$f":"(F3:F4)/2*10","v":5},null,null,1,"I1. National One Health Coordination","Human Health",{"$f":"(G3+G4)","v":10},{"$f":"$M3-0.025","v":9.9749999999999996}]
[1,"National One Health Coordination Mechansim","Do government regulations, directives, legislation or policy ensure that the human health Ministry/Department participates in the national One Health Coordination Mechanism?","H",{"$f":"'6. OH Indicators By Consensus'!F4","v":"Yes"},1,5,null,null,1,"I1. National One Health Coordination","Animal Health",{"$f":"(G5+G6)","v":5},{"$f":"$M4-0.025","v":4.9749999999999996}]
[1,"National One Health Coordination Mechansim","Is there a government endorsed One Health Coordination Mechanism that officially acknowledges the animal health Ministry/Department as a partner in One Health implementation?","A",{"$f":"'6. OH Indicators By Consensus'!F5","v":"Yes"},1,{"$f":"(F5:F6)/2*10","v":5},null,null,1,"I1. National One Health Coordination","Wildlife",{"$f":"(G7+G8+G9+G10)","v":2.5},{"$f":"$M5-0.025","v":2.4750000000000001}]
[1,"National One Health Coordination Mechansim","Do government regulations, directives, legislation or policy ensure that the animal health Ministry/Department participates in the national One Health Coordination Mechanism?","A",{"$f":"'6. OH Indicators By Consensus'!F6","v":"No"},0,0,null,null,1,"I1. National One Health Coordination","Environment",{"$f":"(G11+G12)","v":0},{"$f":"$M6-0.025","v":-2.5000000000000001E-2}]
[1,"National One Health Coordination Mechansim","Is there a government endorsed One Health Coordination Mechanism that officially acknowledges the Ministry/Department with responsibilities for wildlife disease as a partner in One Health implementation?","WD",{"$f":"'6. OH Indicators By Consensus'!F7","v":"Yes"},1,{"$f":"(F7:F10)/4*10","v":2.5},{"$f":"(F7:F8)/2*10","v":5},null,1,"I1. National One Health Coordination","Wildlife Disease",{"$f":"(H7+H8)","v":5},{"$f":"$M7-0.025","v":4.9749999999999996}]
[1,"National One Health Coordination Mechansim","Do government regulations, directives, legislation or policy ensure that the Ministry/Department with responsibilities for wildlife disease participates in the national One Health Coordination Mechanism?","WD",{"$f":"'6. OH Indicators By Consensus'!F8","v":"No"},0,0,0,null,1,"I1. National One Health Coordination","Wildlife Management and Conservation",{"$f":"(H9+H10)","v":0},-2.5000000000000001E-2]
[1,"National One Health Coordination Mechansim","Is there an officially recognized One Health Coordination Mechanism that officially acknowledges the Ministry/Department with responsibilities for wildlife management & conservation as a partner in One Health implementation?","WMC",{"$f":"'6. OH Indicators By Consensus'!F9","v":"No"},0,0,{"$f":"(F9:F10)/2*10","v":0},null,2,"I2. Government Commitment of Human Resources to Support One Health","Human Health",{"$f":"(G13+G14+G15+G16)","v":7.5},7.4749999999999996]
[1,"National One Health Coordination Mechansim","Do government regulations, directives, legislation or policy ensure that the Ministry/Department with responsibilities for wildlife management & conservation participates in the national One Health Coordination Mechanism?","WMC",{"$f":"'3.  OH Indicators By Sector'!F10","v":"No"},0,0,0,null,2,"I2. Government Commitment of Human Resources to Support One Health","Animal Health",{"$f":"(G17+G18+G19+G20)","v":5},4.9749999999999996]
[1,"National One Health Coordination Mechansim","Is there a government endorsed One Health Coordination Mechanism that officially acknowledges the environment sector as a partner in One Health implementation?","E",{"$f":"'6. OH Indicators By Consensus'!F11","v":"No"},0,{"$f":"(F11:F12)/2*10","v":0},null,null,2,"I2. Government Commitment of Human Resources to Support One Health","Wildlife",{"$f":"(G21+G22+G23+G24+G25+G26+G27+G27+G27+G27+G27+G28)","v":1.25},1.2250000000000001]
[1,"National One Health Coordination Mechansim","Do government regulations, directives, legislation or policy ensure that the Ministry/Department with responsibilities for the environment to participate in the national One Health Coordination Mechanism?","E",{"$f":"'6. OH Indicators By Consensus'!F12","v":"No"},0,0,null,null,2,"I2. Government Commitment of Human Resources to Support One Health","Environment",{"$f":"(G29+G30+G31+G32)","v":0},-2.5000000000000001E-2]
[2,"Government Commitment of Human Resources to Support One Health","Does the human health Ministry/Department commit dedicated human resource person(s) to represent the Ministry/Department in the One Health Coordination Mechanism?  ","H",{"$f":"'6. OH Indicators By Consensus'!F13","v":"Yes"},1,{"$f":"(F13:F16)/4*10","v":2.5},null,null,2,"I2. Government Commitment of Human Resources to Support One Health","Wildlife Disease",{"$f":"(H21)","v":2.5},2.4750000000000001]
[2,"Government Commitment of Human Resources to Support One Health","Does the human health Ministry/Department commit technical human resource person(s) to support  One Health technical working groups & the national One Health Action Plan?","H",{"$f":"'6. OH Indicators By Consensus'!F14","v":"Yes"},1,2.5,null,null,2,"I2. Government Commitment of Human Resources to Support One Health","Wildlife Management and Conservation",{"$f":"(H25)","v":0},-2.5000000000000001E-2]
[2,"Government Commitment of Human Resources to Support One Health","Does the human health Ministry/Department commit human resources person(s) at the sub-national or provincial level to support One Health implementation?","H",{"$f":"'6. OH Indicators By Consensus'!F15","v":"Yes"},1,2.5,null,null,3,"I3. Government Support for One Health Implementation Activity","Human Health",{"$f":"(G33+G34)","v":5},4.9749999999999996]
[2,"Government Commitment of Human Resources to Support One Health","Does the human health Ministry/Department commit human resources person(s) at the local, district, or community level to support One Health implementation?","H",{"$f":"'6. OH Indicators By Consensus'!F16","v":"No"},0,0,null,null,3,"I3. Government Support for One Health Implementation Activity","Animal Health",{"$f":"(G35+G36)","v":5},4.9749999999999996]
[2,"Government Commitment of Human Resources to Support One Health","Does the animal health Ministry/Department commit dedicated human resource person(s) to represent the Ministry/Department in the One Health Coordination Mechanism?  ","A",{"$f":"'6. OH Indicators By Consensus'!F17","v":"Yes"},1,{"$f":"(F17:F20)/4*10","v":2.5},null,null,3,"I3. Government Support for One Health Implementation Activity","Wildlife",{"$f":"(G37+G38+G39+G40)","v":0},-2.5000000000000001E-2]
[2,"Government Commitment of Human Resources to Support One Health","Does the animal health Ministry/Department commit technical human resource person(s) to support One Health technical working groups & the national One Health Action Plan??   ","A",{"$f":"'6. OH Indicators By Consensus'!F18","v":"No"},0,0,null,null,3,"I3. Government Support for One Health Implementation Activity","Environment",{"$f":"(G41+G42)","v":5},4.9749999999999996]
[2,"Government Commitment of Human Resources to Support One Health","Does the animal health Ministry/Department commit human resources person(s) at the sub-national or provincial level to support One Health implementation?","A",{"$f":"'6. OH Indicators By Consensus'!F19","v":"Yes"},1,2.5,null,null,3,"I3. Government Support for One Health Implementation Activity","Wildlife Disease",{"$f":"(H37+H38)","v":0},-2.5000000000000001E-2]
[2,"Government Commitment of Human Resources to Support One Health","Does the animal health Ministry/Department commit human resources person(s) at the local, district, or community level to support One Health implementation?","A",{"$f":"'6. OH Indicators By Consensus'!F20","v":"No"},0,0,null,null,3,"I3. Government Support for One Health Implementation Activity","Wildlife Management and Conservation",{"$f":" (H39+H40)","v":0},-2.5000000000000001E-2]
[2,"Government Commitment of Human Resources to Support One Health","Does the Ministry/Department with responsibilities for wildlife disease commit dedicated human resource person(s) to represent the Ministry/Department in the One Health Coordination Mechanism?  ","WD",{"$f":"'6. OH Indicators By Consensus'!F21","v":"Yes"},1,{"$f":"(F21:F28)/8*10","v":1.25},{"$f":"(F21+F22+F23+F24)/4*10","v":2.5},null,4,"I4. National One Health Strategy","Human Health",{"$f":"(G43+G44)","v":10},9.9749999999999996]
[2,"Government Commitment of Human Resources to Support One Health","Does the Ministry/Department with responsibilities for wildlife disease commit technical human resource person(s) to support One Health technical working groups & the national One Health Action Plan?   ","WD",{"$f":"'6. OH Indicators By Consensus'!F22","v":"No"},0,0,null,null,4,"I4. National One Health Strategy","Animal Health",{"$f":"(G45+G46)","v":10},9.9749999999999996]
[2,"Government Commitment of Human Resources to Support One Health","Does the Ministry/Department with responsibilities for wildlife disease commit human resources person(s) at the sub-national or provincial level to support One Health implementation?","WD",{"$f":"'6. OH Indicators By Consensus'!F23","v":"No"},0,0,null,null,4,"I4. National One Health Strategy","Wildlife",{"$f":"(G47+G48+G49+G50)","v":7.5},7.4749999999999996]
[2,"Government Commitment of Human Resources to Support One Health","Does the Ministry/Department with responsibilities for wildlife disease commit human resources person(s) at the local, district, or community level to support One Health implementation?","WD",{"$f":"'6. OH Indicators By Consensus'!F24","v":"No"},0,0,null,null,4,"I4. National One Health Strategy","Environment",{"$f":"(G51+G52)","v":5},4.9749999999999996]
[2,"Government Commitment of Human Resources to Support One Health","Does the Ministry/Department with responsibilities for wildlife management & conservation commit dedicated human resource person(s) to represent the Ministry/Department in the One Health Coordination Mechanism?  ","WMC",{"$f":"'6. OH Indicators By Consensus'!F25","v":"No"},0,0,{"$f":"(G25+G26+G27+G28)*4/10","v":0},null,4,"I4. National One Health Strategy","Wildlife Disease",{"$f":"(H47+H48)","v":10},9.9749999999999996]
[2,"Government Commitment of Human Resources to Support One Health","Does the Ministry/Department with responsibilities for wildlife management & conservation committechnical human resource person(s) to support One Health technical working groups & the national One Health Action Plan?   ","WMC",{"$f":"'6. OH Indicators By Consensus'!F26","v":"No"},0,0,null,null,4,"I4. National One Health Strategy","Wildlife Management and Conservation",{"$f":"(H59+H60)","v":5},4.9749999999999996]
[2,"Government Commitment of Human Resources to Support One Health","Does the Ministry/Department with responsibilities for wildlife management & conservation commit human resources person(s) at the sub-national or provincial level to support One Health implementation?","WMC",{"$f":"'6. OH Indicators By Consensus'!F27","v":"No"},0,0,null,null,5,"I5. National One Health Action Plan","Human Health",{"$f":"(G63+G64+G65)","v":6.6666666666666661},6.6416666666666657]
[2,"Government Commitment of Human Resources to Support One Health","Does the Ministry/Department with responsibilities for wildlife management & conservation commit human resources person(s) at the local, district, or community level to support One Health implementation?","WMC",{"$f":"'6. OH Indicators By Consensus'!F28","v":"No"},0,0,null,null,5,"I5. National One Health Action Plan","Animal Health",{"$f":"(G66+G67+G68)","v":10},9.9749999999999996]
[2,"Government Commitment of Human Resources to Support One Health","Does the Ministry/Department with responsibilities for the environment commit dedicated human resource person(s) to represent the Ministry/Department in the One Health Coordination Mechanism?  ","E",{"$f":"'6. OH Indicators By Consensus'!F29","v":"No"},0,{"$f":"(F29:F32)/4*10","v":0},null,null,5,"I5. National One Health Action Plan","Wildlife",{"$f":"(G57+G58+G59+G60)","v":7.5},7.4749999999999996]
[2,"Government Commitment of Human Resources to Support One Health","Does the Ministry/Department with responsibilities for the environment commit technical human resource person(s) to support One Health technical working groups & the national One Health Action Plan?","E",{"$f":"'6. OH Indicators By Consensus'!F30","v":"No"},0,0,null,null,5,"I5. National One Health Action Plan","Environment",{"$f":"(G61+G62)","v":5},4.9749999999999996]
[2,"Government Commitment of Human Resources to Support One Health","Does the Ministry/Department with responsibilities for the environment commit human resources person(s) at the sub-national or provincial level to support One Health implementation?","E",{"$f":"'6. OH Indicators By Consensus'!F31","v":"No"},0,0,null,null,5,"I5. National One Health Action Plan","Wildlife Disease",{"$f":"(H57+H58)","v":10},9.9749999999999996]
[2,"Government Commitment of Human Resources to Support One Health","Does the Ministry/Department with responsibilities for the environment commit human resources person(s) at the local, district, or community level to support One Health implementation?","E",{"$f":"'6. OH Indicators By Consensus'!F32","v":"No"},0,0,null,null,5,"I5. National One Health Action Plan","Wildlife Management and Conservation",{"$f":"(H59+H60)","v":5},4.9749999999999996]
[3,"Government Support for One Helath Field Activity Implementation","Are there dedicated finanical resources to support the human health sector to particiapte in One Health technical activitites & field implementation at the sub-national or provincial level ?","H",{"$f":"'6. OH Indicators By Consensus'!F33","v":"Yes"},1,{"$f":"(F33:F34)/2*10","v":5},null,null,6,"I6. One Health Information Sharing","Human Health",{"$f":"(G63+G64+G65)","v":6.6666666666666661},6.6416666666666657]
[3,"Government Support for One Helath Field Activity Implementation","Are there dedicated finanical resources to support the human health sector to particiapte in One Health technical activitites & field implementation at local, district, or community level?","H",{"$f":"'6. OH Indicators By Consensus'!F34","v":"No"},0,0,null,null,6,"I6. One Health Information Sharing","Animal Health",{"$f":"(G66+G67+G68)","v":10},9.9749999999999996]
[3,"Government Support for One Helath Field Activity Implementation","Are there dedicated finanical resources to support the animal health sector to particiapte in One Health technical activitites & field implementation at the sub-national or provincial level?","A",{"$f":"'6. OH Indicators By Consensus'!F35","v":"Yes"},{"$f":"IF(E35 = \"Yes\",1,0)","v":1},{"$f":"(F35:F36)/2*10","v":5},null,null,6,"I6. One Health Information Sharing","Wildlife",{"$f":"(G69+G70+G71+G72+G73+G74)","v":3.333333333333333},3.3083333333333331]
[3,"Government Support for One Helath Field Activity Implementation","Are there dedicated finanical resources to support the animal health sector to particiapte in One Health technical activitites & field implementation at the local, district, or community level?","A",{"$f":"'6. OH Indicators By Consensus'!F36","v":"No"},0,0,null,null,6,"I6. One Health Information Sharing","Environment",{"$f":"(G75+G76+G77)","v":6.6666666666666661},6.6416666666666657]
[3,"Government Support for One Helath Field Activity Implementation","Are there dedicated finanical resources to support the Ministry/Department with responsibilities for wildlife disease to particiapte in One Health technical activitites & field implementation atthe sub-national or provinical level? ","WD",{"$f":"'6. OH Indicators By Consensus'!F37","v":"No"},0,{"$f":"(F37:F40)/4*10","v":0},{"$f":"(F37:F38)/2*10","v":0},null,6,"I6. One Health Information Sharing","Wildlife Disease",{"$f":"(H69+H70+H71)","v":6.6666666666666661},6.6416666666666657]
[3,"Government Support for One Helath Field Activity Implementation","Are there dedicated finanical resources to support the Ministry/Department with responsibilities for wildlife disease to particiapte in One Health technical activitites & field implementation at the local, district, or community level? ","WD",{"$f":"'6. OH Indicators By Consensus'!F38","v":"No"},0,0,0,null,6,"I6. One Health Information Sharing","Wildlife Management and Conservation",{"$f":"(H72+H73+H74)","v":0},-2.5000000000000001E-2]
[3,"Government Support for One Helath Field Activity Implementation","Are there dedicated finanical resources to support the Ministry/Department with responsibilities for wildlife management & conservation sector to particiapte in One Health technical activitites & field implementation at the sub-national or provinical level? ","WMC",{"$f":"'6. OH Indicators By Consensus'!F39","v":"No"},0,0,{"$f":"(F39:F40)*2/10","v":0},null,7,"I7. One Health Policy","Human Health",{"$f":"(G78)","v":10},9.9749999999999996]
[3,"Government Support for One Helath Field Activity Implementation","Are there dedicated finanical resources to support the Ministry/Department with responsibilities for wildlife management & conservation sector to particiapte in One Health technical activitites & field implementation at the local,  district, or community level? ","WMC",{"$f":"'6. OH Indicators By Consensus'!F40","v":"No"},0,0,0,null,7,"I7. One Health Policy","Animal Health",{"$f":"(G79)","v":10},9.9749999999999996]
[3,"Government Support for One Helath Field Activity Implementation","Are there dedicated finanical resources to support the Ministry/Department with responsibilities for the environment in their participation in One Health implemention at the sub-national or provinical level? ","E",{"$f":"'6. OH Indicators By Consensus'!F41","v":"Yes"},1,{"$f":"(F41:F42)/2*10","v":5},null,null,7,"I7. One Health Policy","Wildlife",{"$f":"(G80+G81)","v":0},-2.5000000000000001E-2]
[3,"Government Support for One Helath Field Activity Implementation","Are there dedicated finanical resources to support the Ministry/Department with responsibilities for the environment in their participation in One Health implemention at the local, district, or community level? ","E",{"$f":"'6. OH Indicators By Consensus'!F42","v":"No"},0,0,null,null,7,"I7. One Health Policy","Environment",{"$f":"(G82)","v":10},9.9749999999999996]
[4,"National One Health Strategy","Is there a national One Health Strategy that has been endorsed by the human health  Ministry/Department? ","H",{"$f":"'6. OH Indicators By Consensus'!F43","v":"Yes"},1,{"$f":"(F43:F44)/2*10","v":5},null,null,7,"I7. One Health Policy","Wildlife Disease",{"$f":" (H80)","v":0},-2.5000000000000001E-2]
[4,"National One Health Strategy","Does the national One Health Strategy contains techncial priorities of the human health sector? ","H",{"$f":"'6. OH Indicators By Consensus'!F44","v":"Yes"},1,5,null,null,7,"I7. One Health Policy","Wildlife Management and Conservation",{"$f":"(H81)","v":0},-2.5000000000000001E-2]
[4,"National One Health Strategy","Is there a national One Health Strategy that has been endorsed by the animal health  Ministry/Department? ","A",{"$f":"'6. OH Indicators By Consensus'!F45","v":"Yes"},1,{"$f":"(F45:F46)/2*10","v":5},null,null,8,"I8. National One Health Risk Communication Strategy","Human Health",{"$f":"(G83+G84+G85)","v":6.6666666666666661},6.6416666666666657]
[4,"National One Health Strategy","Does the national One Health Strategy  contains techncial priorities of the animal health sector? ","A",{"$f":"'6. OH Indicators By Consensus'!F46","v":"Yes"},1,5,null,null,8,"I8. National One Health Risk Communication Strategy","Animal Health",{"$f":"(G86+G87+G88)","v":6.6666666666666661},6.6416666666666657]
[4,"National One Health Strategy","Is there a national One Health Strategy that has been endorsed by the Ministry/Department with responsibilities for wildlife disease? ","WD",{"$f":"'6. OH Indicators By Consensus'!F47","v":"Yes"},1,{"$f":"(F47:F50)/4*10","v":2.5},{"$f":"(F47:F48)/2*10","v":5},null,8,"I8. National One Health Risk Communication Strategy","Wildlife",{"$f":"(G89+G90+G91+G92+G93+G93+G93+G94)","v":1.6666666666666665},1.6416666666666666]
[4,"National One Health Strategy","Does the national One Health Strategy  contains techncial priorities of the wildlife disease sub-sector? ","WD",{"$f":"'6. OH Indicators By Consensus'!F48","v":"Yes"},1,2.5,5,null,8,"I8. National One Health Risk Communication Strategy","Environment",{"$f":"(G95+G96+G97)","v":6.6666666666666661},6.6416666666666657]
[4,"National One Health Strategy","Is there a national One Health Strategy that has been endorsed by the Ministry/Department with responsibilities for wildlife management & conservation? ","WMC",{"$f":"'6. OH Indicators By Consensus'!F49","v":"No"},0,0,{"$f":"(F49:F50)/2*10","v":0},null,8,"I8. National One Health Risk Communication Strategy","Wildlife Disease",{"$f":"(H104+H105+H106)","v":10},9.9749999999999996]
[4,"National One Health Strategy","Does the national One Health Strategy  contains techncial priorities of the wildlife management & conservation sub-sector? ","WMC",{"$f":"'6. OH Indicators By Consensus'!F50","v":"Yes"},1,2.5,5,null,8,"I8. National One Health Risk Communication Strategy","Wildlife Management and Conservation",{"$f":"(H107+H108+H109)","v":0},-2.5000000000000001E-2]
[4,"National One Health Strategy","Is there a national One Health Strategy that has been endorsed by the Ministry/Department with responsibilities for the environment? ","E",{"$f":"'6. OH Indicators By Consensus'!F51","v":"No"},0,{"$f":"(F51:F52)/2*10","v":0},null,null,9,"I9. Whole of Society Approach to One Health","Human Health",{"$f":"(G98+G99+G100)","v":6.6666666666666661},6.6416666666666657]
[4,"National One Health Strategy","Does the national One Health Strategy contains techncial priorities of the environment sector? ","E",{"$f":"'6. OH Indicators By Consensus'!F52","v":"Yes"},1,5,null,null,9,"I9. Whole of Society Approach to One Health","Animal Health",{"$f":"(G101+G102+G103)","v":10},9.9749999999999996]
[5,"National One Health Action Plan","Is there a national One Health Action Plan that has been endorsed by the human health Ministry/Department? ","H",{"$f":"'6. OH Indicators By Consensus'!F53","v":"Yes"},1,{"$f":"(F53:F54)/2*10","v":5},null,null,9,"I9. Whole of Society Approach to One Health","Wildlife",{"$f":"(G104+G105+G106+G107+G108+G108+G108+G109)","v":5},4.9749999999999996]
[5,"National One Health Action Plan","Does the national One Health Action Plan contain activities relevent to the human health sector? ","H",{"$f":"'6. OH Indicators By Consensus'!F54","v":"Yes"},1,5,null,null,9,"I9. Whole of Society Approach to One Health","Environment",{"$f":"(G110+G111+G112)","v":0},-2.5000000000000001E-2]
[5,"National One Health Action Plan","Is there a national One Health Action Plan that has been endorsed by the animal health Ministry/Department? ","A",{"$f":"'6. OH Indicators By Consensus'!F55","v":"Yes"},1,{"$f":"(F55:F56)/2*10","v":5},null,null,9,"I9. Whole of Society Approach to One Health","Wildlife Disease",{"$f":"(H104+H105+H106)","v":10},9.9749999999999996]
[5,"National One Health Action Plan","Does the national One Health Action Plan contain activities relevent to the animal health sector? ","A",{"$f":"'6. OH Indicators By Consensus'!F56","v":"Yes"},1,5,null,null,9,"I9. Whole of Society Approach to One Health","Wildlife Management and Conservation",{"$f":"(H107+H108+H109)","v":0},-2.5000000000000001E-2]
[5,"National One Health Action Plan","Is there a national One Health Action Plan that has been endorsed by the Ministry/Department with responsibilities for wildlife disease? ","WD",{"$f":"'6. OH Indicators By Consensus'!F57","v":"Yes"},1,{"$f":"(F57:F60)/4*10","v":2.5},{"$f":"(F57:F58)/2*10","v":5},null,10,"I10. Competent One Health Workforce","Human Health",{"$f":"(G113+G114+G115+G116)","v":7.5},7.4749999999999996]
[5,"National One Health Action Plan","Does the national One Health Action Plan contain activities relevent to the wildlife disease sub-sector? ","WD",{"$f":"'6. OH Indicators By Consensus'!F58","v":"Yes"},1,2.5,5,null,10,"I10. Competent One Health Workforce","Animal Health",{"$f":"(G117+G118+G119+G120)","v":7.5},7.4749999999999996]
[5,"National One Health Action Plan","Is there a national One Health Action Plan that has been endorsed by the Ministry/Department with responsibilities for wildlife management & conservation? ","WMC",{"$f":"'6. OH Indicators By Consensus'!F59","v":"No"},0,0,{"$f":"(F59:F60)/2*10","v":0},null,10,"I10. Competent One Health Workforce","Wildlife",{"$f":"(G121+G122+G123+G124+G125+G126+G127+G128)","v":3.75},3.7250000000000001]
[5,"National One Health Action Plan","Does the national One Health Action Plan contain activities relevent to the wildlife management & conservation sub-sector? ","WMC",{"$f":"'6. OH Indicators By Consensus'!F60","v":"Yes"},1,2.5,5,null,10,"I10. Competent One Health Workforce","Environment",{"$f":"(G129+G130+G131+G132)","v":0},-2.5000000000000001E-2]
[5,"National One Health Action Plan","Is there a national One Health Action Plan that has been endorsed by the Ministry/Department with responsibilities for the environment? ","E",{"$f":"'6. OH Indicators By Consensus'!F61","v":"No"},0,{"$f":"(F61:F62)/2*10","v":0},null,null,10,"I10. Competent One Health Workforce","Wildlife Disease",{"$f":"(H121+H122+H123+H124)","v":7.5},7.4749999999999996]
[5,"National One Health Action Plan","Does the national One Health Action Plan contain activities relevent to the environment sector? ","E",{"$f":"'6. OH Indicators By Consensus'!F62","v":"Yes"},1,5,null,null,10,"I10. Competent One Health Workforce","Wildlife Management and Conservation",{"$f":"(H125+H126+H127+H128)","v":0},-2.5000000000000001E-2]
[6,"One Health Information Sharing","Does the human health Ministry/Department have an unofficial or official mechanism, policy or agreement in place to ensure One Health information and data sharing with the Ministries/Departments responsible for animal health, wildlife, and the environment in a consistent and timely manner at the central government level?","H",{"$f":"'6. OH Indicators By Consensus'!F63","v":"Yes"},1,{"$f":"(F63:F65)/3*10","v":3.333333333333333}]
[6,"One Health Information Sharing","Does the human health Ministry/Department have an unofficial or official mechanism, policy or agreement in place to ensure One Health information and data sharing with the Ministries/Departments responsible for animal health, wildlife, and the environment in a consistent and timely manner at the Provincial or sub-national government level?","H",{"$f":"'6. OH Indicators By Consensus'!F64","v":"Yes"},1,3.333333333333333]
[6,"One Health Information Sharing","Does the human health Ministry/Department have an unofficial or official mechanism, policy or agreement in place to ensure One Health information and data sharing with the Ministries/Departments responsible for animal health, wildlife, and the environment in a consistent and timely manner at the District or local government level?","H",{"$f":"'6. OH Indicators By Consensus'!F65","v":"No"},0,0]
[6,"One Health Information Sharing","Does the animal health Ministry/Department have an unofficial or official mechanism, policy or agreement in place to ensure One Health information and data sharing with the Ministries/Departments responsible for human health, wildlife, and the environment in a consistent and timely manner at the central government level?","A",{"$f":"'6. OH Indicators By Consensus'!F66","v":"Yes"},1,{"$f":"(F66:F68)/3*10","v":3.333333333333333}]
[6,"One Health Information Sharing","Does the animal health Ministry/Department have an unofficial or official mechanism, policy or agreement in place to ensure One Health information and data sharing with the Ministries/Departments responsible for human health, wildlife, and the environment in a consistent and timely manner at the Provincial or sub-national government level?","A",{"$f":"'6. OH Indicators By Consensus'!F67","v":"Yes"},{"$f":"IF(E67 = \"Yes\",1,0)","v":1},3.333333333333333]
[6,"One Health Information Sharing","Does the animal health Ministry/Department have an unofficial or official mechanism, policy or agreement in place to ensure One Health information and data sharing with the Ministries/Departments responsible for animal health, wildlife, and the environment in a consistent and timely manner at the District or local government level?","A",{"$f":"'6. OH Indicators By Consensus'!F68","v":"Yes"},1,3.333333333333333]
[6,"One Health Information Sharing","Does the Ministry/Department with responsibilities for wildlife disease have an unofficial or official mechanism, policy or agreement in place to ensure One Health information and data sharing with the Ministries/Departments responsible for human health, animal health, and the environment  in a consistent and timely manner at the central government level?   ","WD",{"$f":"'6. OH Indicators By Consensus'!F69","v":"Yes"},1,{"$f":"(F69:F74)/6*10","v":1.6666666666666665},{"$f":"(F69:F71)/3*10","v":3.333333333333333}]
[6,"One Health Information Sharing","Does the Ministry/Department with responsibilities for wildlife disease have an unofficial or official mechanism, policy or agreement in place to ensure One Health information and data sharing with the Ministries/Departments responsible for human health, animal health, and the environment in a consistent and timely manner at the Provincial or sub-national government level?","WD",{"$f":"'6. OH Indicators By Consensus'!F70","v":"Yes"},1,1.6666666666666665,3.333333333333333]
[6,"One Health Information Sharing","Does the Ministry/Department with responsibilities for wildlife disease have an unofficial or official mechanism, policy or agreement in place to ensure One Health information and data sharing with the Ministries/Departments responsible for human health, animal health, and the environment in a consistent and timely manner at the District or local government level?   ","WD",{"$f":"'6. OH Indicators By Consensus'!F71","v":"No"},0,0,0]
[6,"One Health Information Sharing","Does the Ministry/Department with responsibilities for wildlife management & conservation have an unofficial or official mechanism, policy or agreement in place to ensure One Health information and data sharing with the Ministries/Departments responsible for human health, animal health, and the environment in a consistent and timely manner at the central government level?   ","WMC",{"$f":"'6. OH Indicators By Consensus'!F72","v":"No"},0,0,{"$f":"(F72:F74)/3*10","v":0}]
[6,"One Health Information Sharing","Does the Ministry/Department with responsibilities for wildlife management & conservation have an unofficial or official mechanism, policy or agreement in place to ensure One Health information and data sharing with the Ministries/Departments responsible for human health, animal health, and the environment in a consistent and timely manner at the Provincial or sub-national government level?","WMC",{"$f":"'6. OH Indicators By Consensus'!F73","v":"No"},0,0,0]
[6,"One Health Information Sharing","Does the Ministry/Department with responsibilities for wildlife management & conservation have an unofficial or official mechanism, policy or agreement in place to ensure One Health information and data sharing with the Ministries/Departments responsible for human health, animal health, and the environment in a consistent and timely manner at the District or local government level?   ","WMC",{"$f":"'6. OH Indicators By Consensus'!F74","v":"No"},0,0,0]
[6,"One Health Information Sharing","Does the Ministry/Department with responsibilities for the environment have an unofficial or official mechanism, policy or agreement in place to ensure One Health information and data sharing with the Ministries/Departments responsible for human health, animal health, and the environment in a consistent and timely manner at the central government level?   ","E",{"$f":"'6. OH Indicators By Consensus'!F75","v":"Yes"},1,{"$f":"(F75:F77)/3*10","v":3.333333333333333}]
[6,"One Health Information Sharing","Does the Ministry/Department with responsibilities for the environment have an unofficial or official mechanism, policy or agreement in place to ensure One Health information and data sharing with the Ministries/Departments responsible for human health, animal health, and the environment in a consistent and timely manner at the Provincial or sub-national government level?","E",{"$f":"'6. OH Indicators By Consensus'!F76","v":"Yes"},1,3.333333333333333]
[6,"One Health Information Sharing","Does the Ministry/Department with responsibilities for the environment have an unofficial or official mechanism, policy or agreement in place to ensure One Health information and data sharing with the Ministries/Departments responsible for human health, animal health, and the environment in a consistent and timely manner at the District or local government level?  ","E",{"$f":"'6. OH Indicators By Consensus'!F77","v":"No"},0,0]
[7,"One Health Policy","Does the human health Ministry/Department have policies in place that mandate collaboration for areas of work at the human-animal-wildlife-environment interface? If yes, please specify which technical areas of work and  which other sectors (animal health, wildlife, and the environment) are involved in the comments column.  ","H",{"$f":"'6. OH Indicators By Consensus'!F78","v":"Yes"},1,{"$f":"(F78)/1*10","v":10}]
[7,"One Health Policy","Does the animal health Ministry/Department have policies in place that mandate collaboration for areas of work at the human-animal-wildlife-environment interface? If yes, please specify which technical areas of work and  which other sectors (animal health, wildlife, and the environment) are involved in the comments column.  ","A",{"$f":"'6. OH Indicators By Consensus'!F79","v":"Yes"},1,{"$f":"(1)/1*10","v":10}]
[7,"One Health Policy","Does the Ministry/Department with responsibilities for wildlife disease have policies in place that mandate collaboration for areas of work at the human-animal-wildlife-environment interface? If yes, please specify which technical areas of work and  which other sectors (animal health, wildlife, and the environment) are involved in the comments column.  ","WD",{"$f":"'6. OH Indicators By Consensus'!F80","v":"No"},0,{"$f":"(F80:F81)/2*10","v":0},{"$f":"F80/1*10","v":0}]
[7,"One Health Policy","Does the Ministry/Department with responsibilities for wildlife management & conservation have policies in place that mandate collaboration for areas of work at the human-animal-wildlife-environment interface? If yes, please specify which technical areas of work and  which other sectors (animal health, wildlife, and the environment) are involved in the comments column. ","WMC",{"$f":"'6. OH Indicators By Consensus'!F81","v":"No"},0,0,{"$f":"F81/1*10","v":0}]
[7,"One Health Policy","Does the Ministry/Department with responsibilities for environment have policies in place that mandate collaboration for areas of work at the human-animal-wildlife-environment interface? If yes, please specify which technical areas of work and  which other sectors (animal health, wildlife, and the environment) are involved in the comments column.  ","E",{"$f":"'6. OH Indicators By Consensus'!F82","v":"Yes"},1,{"$f":"F82/1*10","v":10}]
[8,"National One Health Risk Communication Strategy","Is there is a national One Health Risk Communication Strategy that has been endorsed by the human health Ministry/Department? ","H",{"$f":"'6. OH Indicators By Consensus'!F83","v":"Yes"},1,{"$f":"(F83:F85)/3*10","v":3.333333333333333}]
[8,"National One Health Risk Communication Strategy","The national One Health Risk Communication Strategy includes risks and threats relevent to the human health sector? ","H",{"$f":"'6. OH Indicators By Consensus'!F84","v":"Yes"},1,3.333333333333333]
[8,"National One Health Risk Communication Strategy","The human health Ministry/Department has assigned a communication officer to support the OH communication strategy and coordinate with the other Ministries/Departments responsibile for animal health, wildlife, and the environment?  ","H",{"$f":"'6. OH Indicators By Consensus'!F85","v":"No"},0,0]
[8,"National One Health Risk Communication Strategy","Is there a national One Health Risk Communication Strategy that has been endorsed by the animal health Ministry/Department? ","A",{"$f":"'6. OH Indicators By Consensus'!F86","v":"Yes"},1,{"$f":"(F86:F88)/3*10","v":3.333333333333333}]
[8,"National One Health Risk Communication Strategy","The national One Health Risk Communication Strategy includes risks and threats relevent to the animal health sector? ","A",{"$f":"'6. OH Indicators By Consensus'!F87","v":"Yes"},1,3.333333333333333]
[8,"National One Health Risk Communication Strategy","Does the animal health Ministry/Department has assigned a communication officer to support the OH communication strategy and coordinate with the other Ministries/Departments responsibile for  human health, wildlife and the environment?  ","A",{"$f":"'6. OH Indicators By Consensus'!F88","v":"No"},0,0]
[8,"National One Health Risk Communication Strategy","Is there a national One Health Risk Communication Strategy that has been endorsed by the  Ministry/Department with responsibilities for wildlife disease? ","WD",{"$f":"'6. OH Indicators By Consensus'!F89","v":"No"},0,{"$f":"(F89:F94)/6*10","v":0},{"$f":"(F89:F91)/3*10","v":0}]
[8,"National One Health Risk Communication Strategy","The national One Health Risk Communication Strategy includes risks and threats relevent to the wildlife disease sub-sector? ","WD",{"$f":"'6. OH Indicators By Consensus'!F90","v":"Yes"},1,1.6666666666666665,3.333333333333333]
[8,"National One Health Risk Communication Strategy","The Ministry/Department with responsibilities for wildlife disease has assigned a communication officer to support the OH communication strategy and coordinate with the other Ministries/Departments with responsibilities for human health, animal health, and the environment?  ","WD",{"$f":"'6. OH Indicators By Consensus'!F91","v":"No"},0,0,0]
[8,"National One Health Risk Communication Strategy","Is there a national One Health Risk Communication Strategy that has been endorsed by the  Ministry/Department with responsibilities for wildlife management & conservation? ","WMC",{"$f":"'6. OH Indicators By Consensus'!F92","v":"No"},0,0,{"$f":"(F92:F94)/3*10","v":0}]
[8,"National One Health Risk Communication Strategy","The national One Health Risk Communication Strategy includes risks and threats relevent to the wildlife management & conservation sub-sector? ","WMC",{"$f":"'6. OH Indicators By Consensus'!F93","v":"No"},0,0,0]
[8,"National One Health Risk Communication Strategy","The Ministry/Department with responsibilities for wildlife management & conservation has assigned a communication officer to support the OH communication strategy and coordinate with the other Ministries/Departments with responsibilities for human health, animal health, and the environment?  ","WMC",{"$f":"'6. OH Indicators By Consensus'!F94","v":"No"},0,0,0]
[8,"National One Health Risk Communication Strategy","Is there a national One Health Risk Communication Strategy that has been endorsed by the  Ministry/Department with responsibilities for the environment? ","E",{"$f":"'6. OH Indicators By Consensus'!F95","v":"Yes"},1,{"$f":"(F95:F97)/3*10","v":3.333333333333333}]
[8,"National One Health Risk Communication Strategy","The national One Health Risk Communication Strategy includes risks and threats relevent to the environment sector? ","E",{"$f":"'6. OH Indicators By Consensus'!F96","v":"Yes"},1,3.333333333333333]
[8,"National One Health Risk Communication Strategy","The Ministry/Department with responsibilities for the environment has assigned a communication officer to support the OH communication strategy and coordinate with the other Ministries/Departments with responsibilities for human health, animal health, and wildlife?  ","E",{"$f":"'6. OH Indicators By Consensus'!F97","v":"No"},0,0]
[9,"Whole of Society Approach to One Health","Has the government established a human health sector network of partners that includes academia, NGO's, civil society, & private sector for One Health collaborations?","H",{"$f":"'6. OH Indicators By Consensus'!F98","v":"No"},0,{"$f":"(F98:F100)/3*10","v":0}]
[9,"Whole of Society Approach to One Health","Did the human health Ministry/Department consult with the relevent academia, NGO's, civil society, private sector partners on the development of the national One Health Strategy?","H",{"$f":"'6. OH Indicators By Consensus'!F99","v":"Yes"},{"$f":"IF(E99 = \"Yes\",1,0)","v":1},3.333333333333333]
[9,"Whole of Society Approach to One Health","Does the human health Ministry/Department work with the partners from relevent academia, NGO's, civil society, private sector to implement the national One Health Action Plan?","H",{"$f":"'6. OH Indicators By Consensus'!F100","v":"Yes"},1,3.333333333333333]
[9,"Whole of Society Approach to One Health","Has the government established an animal health sector network of partners that includes academia, NGO's, civil society, & private sector for One Health collaborations?","A",{"$f":"'6. OH Indicators By Consensus'!F101","v":"Yes"},1,{"$f":"(F101:F103)/3*10","v":3.333333333333333}]
[9,"Whole of Society Approach to One Health","Did the animal health Ministry/Department consult with the relevent academia, NGO's, civil society, private sector partners on the development of the national One Health Strategy?","A",{"$f":"'6. OH Indicators By Consensus'!F102","v":"Yes"},1,3.333333333333333]
[9,"Whole of Society Approach to One Health","Does the animal health Ministry/Department work with the partners from relevent academia, NGO's, civil society, private sector to implement the national One Health Action Plan?","A",{"$f":"'6. OH Indicators By Consensus'!F103","v":"Yes"},1,3.333333333333333]
[9,"Whole of Society Approach to One Health","Has the government established a wildlife disease network of partners that includes academia, NGO's, civil society, & private sector for One Health collaborations?","WD",{"$f":"'6. OH Indicators By Consensus'!F104","v":"Yes"},1,{"$f":"(F104:F109)/6*10","v":1.6666666666666665},{"$f":"(F104:F106)/3*10","v":3.333333333333333}]
[9,"Whole of Society Approach to One Health","Did the Ministry/Department with responsibilities for wildlife disease consult with the relevent academia, NGO's, civil society, private sector partners on the development of the national One Health Strategy?","WD",{"$f":"'6. OH Indicators By Consensus'!F105","v":"Yes"},1,1.6666666666666665,3.333333333333333]
[9,"Whole of Society Approach to One Health","Does the Ministry/Department with responsibilities for wildlife disease work with the partners from relevent academia, NGO's, civil society, private sector to implement the national One Health Action Plan?","WD",{"$f":"'6. OH Indicators By Consensus'!F106","v":"Yes"},1,1.6666666666666665,3.333333333333333]
[9,"Whole of Society Approach to One Health","Has the government established a wildlife management & conservation sector network of partners that includes academia, NGO's, civil society, & private sector for One Health collaborations?","WMC",{"$f":"'6. OH Indicators By Consensus'!F107","v":"No"},0,0,{"$f":"(F107:F109)/3*10","v":0}]
[9,"Whole of Society Approach to One Health","Did the Ministry/Department with responsibilities for wildlife management & conservation consult with the relevent academia, NGO's, civil society, private sector partners on the development of the national One Health Strategy?","WMC",{"$f":"'6. OH Indicators By Consensus'!F108","v":"No"},0,0,0]
[9,"Whole of Society Approach to One Health","Does the Ministry/Department with responsibilities for wildlife management & conservation work with the partners from relevent academia, NGO's, civil society, private sector to implement the national One Health Action Plan?","WMC",{"$f":"'6. OH Indicators By Consensus'!F109","v":"No"},0,0,0]
[9,"Whole of Society Approach to One Health","Has the government established an environment network of partners that includes academia, NGO's, civil society, & private sector for One Health collaborations?","E",{"$f":"'6. OH Indicators By Consensus'!F110","v":"No"},0,{"$f":"(F110:F112)/3*10","v":0}]
[9,"Whole of Society Approach to One Health","Did the Ministry/Department with responsibilities for the environment consult with the relevent academia, NGO's, civil society, private sector partners on the development of the national One Health Strategy?","E",{"$f":"'6. OH Indicators By Consensus'!F111","v":"No"},0,0]
[9,"Whole of Society Approach to One Health","Does the Ministry/Department with responsibilities for the environment work with the partners from relevent academia, NGO's, civil society, private sector to implement the national One Health Action Plan?","E",{"$f":"'6. OH Indicators By Consensus'!F112","v":"No"},0,0]
[10,"Competent One Health Workforce","Has the human health Ministry/Department completed a workforce needs assessment or gap analysis using the FAO/WHO/WOAH One Health Field Epidemiology Competency Framework the within the last 3 years? ","H",{"$f":"'6. OH Indicators By Consensus'!F113","v":"Yes"},1,{"$f":"(F113:F116)/4*10","v":2.5}]
[10,"Competent One Health Workforce","Does the human health Ministry/Department have an in-service field training program?  ","H",{"$f":"'6. OH Indicators By Consensus'!F114","v":"Yes"},1,2.5]
[10,"Competent One Health Workforce","Is the human health Ministry/Department's in-service field training program accredited by an academic institution or professional regulatory body?","H",{"$f":"'6. OH Indicators By Consensus'!F115","v":"Yes"},1,2.5]
[10,"Competent One Health Workforce","Does the human health Ministry/Department in-service field training program include concurrent training with participants from the other three sectors (animal health, wildlife, and the environment)? ","H",{"$f":"'6. OH Indicators By Consensus'!F116","v":"No"},0,0]
[10,"Competent One Health Workforce","Has the animal health Ministry/Department completed a workforce needs assessment or gap analysis using the FAO/WHO/WOAH One Health Field Epidemiology Competency Framework within the last 3 years? ","A",{"$f":"'6. OH Indicators By Consensus'!F117","v":"Yes"},1,{"$f":"(F117:F120)/4*10","v":2.5}]
[10,"Competent One Health Workforce","Does the animal health Ministry/Department have an in-service field training program?  ","A",{"$f":"'6. OH Indicators By Consensus'!F118","v":"Yes"},1,2.5]
[10,"Competent One Health Workforce","Is the animal health Ministry/Department's in-service field training program accredited by an academic institution or professional regulatory body?","A",{"$f":"'6. OH Indicators By Consensus'!F119","v":"Yes"},1,2.5]
[10,"Competent One Health Workforce","Does the animal health Ministry/Department in-service field training program include concurrent training with participants from the other three sectors (human health, wildlife, and the environment)? ","A",{"$f":"'6. OH Indicators By Consensus'!F120","v":"No"},0,0]
[10,"Competent One Health Workforce","Has the Ministry/Department with responsibilities for wildlife disease completed a workforce needs assessment or gap analysis using the FAO/WHO/WOAH One Health Field Epidemiology Competency Framework within the last 3 years? ","WD",{"$f":"'6. OH Indicators By Consensus'!F121","v":"Yes"},1,{"$f":"(F121:F128)/8*10","v":1.25},{"$f":"(F121:F124)/4*10","v":2.5}]
[10,"Competent One Health Workforce","Does the Ministry/Department with responsibilities for wildlife disease have an in-service field training program?  ","WD",{"$f":"'6. OH Indicators By Consensus'!F122","v":"Yes"},1,1.25,2.5]
[10,"Competent One Health Workforce","Is the Ministry/Department with responsibilities for wildlife disease's in-service field training program accredited by an academic institution or professional regulatory body? ","WD",{"$f":"'6. OH Indicators By Consensus'!F123","v":"Yes"},1,1.25,2.5]
[10,"Competent One Health Workforce","Does the Ministry/Department with responsibilities for wildlife disease have concurrent in-service training with participants from the other three sectors (human health, animal health, and the environment)?   ","WD",{"$f":"'6. OH Indicators By Consensus'!F124","v":"No"},0,0,0]
[10,"Competent One Health Workforce","Has the Ministry/Department with responsibilities for wildlife mangement & conservation  completed a workforce needs assessment or gap analysis using One Health field training competenices within the last 3 years? ","WMC",{"$f":"'6. OH Indicators By Consensus'!F125","v":"No"},0,0,{"$f":"(F125:F128)/4*10","v":0}]
[10,"Competent One Health Workforce","Does the Ministry/Department with responsibilities for wildlife management & conservation have an in-service field training program?  ","WMC",{"$f":"'6. OH Indicators By Consensus'!F126","v":"No"},0,0,0]
[10,"Competent One Health Workforce","Is the Ministry/Department with responsibilities for wildlife management & conservation's in-service field training program accredited by an academic institution or professional regulatory body? ","WMC",{"$f":"'6. OH Indicators By Consensus'!F127","v":"No"},0,0,0]
[10,"Competent One Health Workforce","Does the Ministry/Department with responsibilities for wildlife management & conservation have concurrent in-service training with participants from the other three sectors (human health, animal health, and the environment)?   ","WMC",{"$f":"'6. OH Indicators By Consensus'!F128","v":"No"},0,0,0]
[10,"Competent One Health Workforce","Has the Ministry/Department with responsibilities for the environment completed a workforce needs assessment or gap analysis using One Health field training competenices within the last 3 years? ","E",{"$f":"'6. OH Indicators By Consensus'!F129","v":"No"},0,{"$f":"(F129:F132)/4*10","v":0}]
[10,"Competent One Health Workforce","Does the Ministry/Department with responsibilities for the environment have an in-service field training program?  ","E",{"$f":"'6. OH Indicators By Consensus'!F130","v":"No"},0,0]
[10,"Competent One Health Workforce","Is the Ministry/Department with responsibilities for the environment's in-service field training program accredited by an academic institution or professional regulatory body? ","E",{"$f":"'6. OH Indicators By Consensus'!F131","v":"No"},{"$f":"IF(E131 = \"Yes\",1,0)","v":0},0]
[10,"Competent One Health Workforce","Does the Ministry/Department with responsibilities for the environment One Health have concurrent in-service training with participants from the other three sectors (human health, animal health, and wildlife)?   ","E",{"$f":"'6. OH Indicators By Consensus'!F132","v":"No"},0,0]

{"sheet":"7. Indicator x JPA Crosswalk ","index":13,"n_rows":15,"n_cols":11,"rows_kept":15,"cut":false,"hidden":false,"merged":[[14,0,14,3],[0,1,0,10],[1,1,3,1],[1,5,1,11],[2,2,3,2],[2,3,3,3]]}
[null,"OH Indicator X OH JPA Crosswalk "]
[null,"OH INDICATORS",null,null,null,"ACTION TRACK SCORES"]
[null,null,"INDICATOR DESCRIPTION","ACTION TRACK LINKAGE QUESTION ",null,"Action Track 1: Enhancing OH capacities to strengthen health systems","Action Track 2: Reducing the risks from emerging and re-emerging zoonotic diseases","Action Track 3: Controlling and eliminating endemic zoonotic, neglected tropical, and vector-borne diseases","Action Track 4: Strengthening the assessment, management & communication of food safety risks","Action Track 5: Curbing AMR","Action Track 6: Integrating the environment  into OH"]
[null,null,null,null,"TOTAL ",{"$f":"COUNTIF(F5:F14, \"Yes\")","v":5},8,5,9,7,4]
[1,"National One Health Coordination Mechanism","A government endorsed One Health Coordination Mechanism (or similar structure) exists, is led by a high level government official (such as a Prime Minister or Deputy Prime Minister), includes representatives from each of the Ministries/Departments responsible for human health, animal health, widlife, and the environment, and includes techincal areas relevent to all sectors (not limited to specific technical areas such as zoonotic disease, antimicrobial resistance, or food safety).  ","Does the National One Health Coordination Mechanism address or support each of the action tracks?",null,"No","Yes","No","Yes","Yes","Yes"]
[2,"Government Commitment of Human Resources to Support One Health ","The Ministries/Departments with responsibilities for human health, animal health, wildlife, and the environment commit the human resources needed for the One Health Coordination Mechanism and the One Health technical working groups, and to support One Health implementation at the sub-national and local levels.   ","Does the Ministry/Department provide the human resources needed  to support each of the action tracks? ",null,"Yes","Yes","No","Yes","Yes","No"]
[3,"Government Support for One Health Field Activity Implementation","The Ministries/Departments with responsibilities for human health, animal health, wildlife, and the environment commit the finanical resources needed to support implementation of One Health technical activitites & field implementation.  ","Does the Ministry/Department provide the finanical resources needed to support each of the action tracks? ",null,"No","Yes","No","Yes","No","Yes"]
[4,"National One Health Strategy","There is a national One Health Strategy that has been endorsed by the Ministries/Departments with responsibilities for human health, animal health, wildlife, and the environment. The OH Strategy includes technical priorities relevent to the human health, animal health, wildlife, and environment sectors. ","Does the national One Health Strategy address each of the action tracks?                                                                         ",null,"Yes","Yes","Yes","Yes","Yes","No"]
[5,"National One Health Action Plan","There is a national One Health Action Plan that has been endorsed by the Ministries/Departments with responsibilities for human health, animal health, wildlife, and the environment. The OH Action Plan includes technical activities relevent to the human health, animal health, wildlife, and environment sectors.","Does the national One Health Action Plan address each of the action tracks?                                                                         ",null,"Yes","No","Yes","Yes","No","Yes"]
[6,"One Health Information Sharing","The Ministries/Departments with responsibilities for human health, animal health, wildlife, and the environment have mechanisms in place to share relevant One Health information and data amongst the Ministries/Departments and that this information and data are shared in a consistent and timely manner at national, sub-national and local levels.","Is information relating to each of the action tracks shared across the sectors? ",null,"No","Yes","No","Yes","Yes","No"]
[7,"One Health Policy ","The Ministries/Departments with responsibilities for human health, animal health, wildlife, and the environment have policies in place that require collaboration for areas of work at the human-animal-wildlife-environment interface that are not limited to specific technical areas of work or in an emergency response.","Is there policy to support each of the action tracks ?                      ",null,"Yes","Yes","Yes","Yes","Yes","Yes"]
[8,"National One Health Risk Communication Strategy ","There is a national One Health Risk Communication Strategy that has been endorsed by the Ministries/Departments and includes priorities of the human health, animal health, wildlife, and the environment sectors.","Does the joint One Health Risk Communication Strategy address each of the action tracks?                                                                    ",null,"Yes","Yes","No","Yes","Yes","No"]
[9,"Whole of Society Approach to One Health ","There is an established network of representatives from academia, NGO's, civil society, and the private sector from across the human health, animal health, wildlife, and environment sectors who are partners in national One Health implementation.  ","Are the relevant stakeholders included in efforts to address each of the actions tracks?                                                         ",null,"No","No","Yes","Yes","Yes","No"]
[10,"Competent One Health Workforce  ","There is a competent One Health workforce consisting of representatives from human health, animal health, wildlife and the environment with established in-service training programs and joint sector One Health training. ","Does the One Health workforce have the capacity to contribute to each of the action tracks?                                               ",null,"No","Yes","Yes","No","No","No"]
["Comments"]

{"sheet":"8. Indicator x Priority Area","index":14,"n_rows":16,"n_cols":12,"rows_kept":16,"cut":false,"hidden":false,"merged":[[15,0,15,3],[1,0,1,2],[0,0,0,9],[2,0,4,0],[3,1,4,1],[3,2,4,2],[2,4,2,11]]}
[]
[" OH Indicators X Priority Areas Crosswalk"]
["OH INDICATORS",null,null,null,"PRIORITY AREA SCORES"]
[null,"INDICATOR DESCRIPTION","PRIORITY AREA LINKAGE QUESTION ",null,"Priority Area 1 : Prevent environmental degredation, preserve & restore habitat, biodiversity & ecosystems","Priority Area 2: Implement climate change adaptation & mitigation measures","Priority Area 3: Improve waste, effluent, pollution management-ecotoxicology","Priority Area 4: Prevent agriculture & urban encroachmnet through land-use planning","Priority Area 5:  Sustainable, climate smart agricultural production","Priority Area 6: Improve wildlife farming & wildlife trade management, inlcuding wildlife sales  ","Priority Area 7: Improve food safety at informal  & formal markets that mix & sell domestic & wild animals","Priority Area 8: Food Systems Transformation"]
[null,null,null," Total",{"$f":"COUNTIF(E6:E15, \"Yes\")","v":7},{"$f":"COUNTIF(F6:F15, \"Yes\")","v":5},5,5,7,6,5,3]
["National One Health Coordination Mechanism","A government endorsed One Health Coordination Mechanism (or similar structure) exists, is led by a high level government official (such as a Prime Minister or Deputy Prime Minister), includes representatives from each of the Ministries/Departments responsible for human health, animal health, widlife, and the environment, and includes techincal areas relevent to all sectors (not limited to specific technical areas such as zoonotic disease, antimicrobial resistance, or food safety).  ","Does the National One Health Coordination Mechanism address or support each of the priority areas?",null,"Yes","No","Yes","No","Yes","Yes","Yes","No"]
["Government Commitment of Human Resources to Support One Health ","The Ministries/Departments with responsibilities for human health, animal health, wildlife, and the environment commit the human resources needed for the One Health Coordination Mechanism and the One Health technical working groups, and to support One Health implementation at the sub-national and local levels.   ","Does the Ministry/Department provide the human resources needed  to support each of the priority areas? ",null,"Yes","No","No","No","No","No","No","No"]
["Government Support for One Health Field Activity Implementation","The Ministries/Departments with responsibilities for human health, animal health, wildlife, and the environment commit the finanical resources needed to support implementation of One Health technical activitites & field implementation.  ","Does the Ministry/Department provide the finanical resources needed to support each of the priority areas? ",null,"Yes","No","Yes","Yes","Yes","No","Yes","No"]
["National One Health Strategy","There is a national One Health Strategy that has been endorsed by the Ministries/Departments with responsibilities for human health, animal health, wildlife, and the environment. The OH Strategy includes technical priorities relevent to the human health, animal health, wildlife, and environment sectors. ","Does the national One Health Strategy address each of the priority areas?                                                                         ",null,"Yes","Yes","No","No","Yes","No","Yes","Yes"]
["National One Health Action Plan","There is a national One Health Action Plan that has been endorsed by the Ministries/Departments with responsibilities for human health, animal health, wildlife, and the environment. The OH Action Plan includes technical activities relevent to the human health, animal health, wildlife, and environment sectors.","Does the national One Health Action Plan address each of the priority areas?                                                                         ",null,"Yes","Yes","No","Yes","Yes","Yes","No","No"]
["One Health Information Sharing","The Ministries/Departments with responsibilities for human health, animal health, wildlife, and the environment have mechanisms in place to share relevant One Health information and data amongst the Ministries/Departments and that this information and data are shared in a consistent and timely manner at national, sub-national and local levels.","Is information relating to each of the priority areas shared across the sectors? ",null,"No","No","No","Yes","Yes","Yes","No","No"]
["One Health Policy ","The Ministries/Departments with responsibilities for human health, animal health, wildlife, and the environment have policies in place that require collaboration for areas of work at the human-animal-wildlife-environment interface that are not limited to specific technical areas of work or in an emergency response.","Is there policy to support each of the priority areas?                      ",null,"No","No","No","No","No","Yes",null,"Yes"]
["National One Health Risk Communication Strategy ","There is a national One Health Risk Communication Strategy that has been endorsed by the Ministries/Departments and includes priorities of the human health, animal health, wildlife, and the environment sectors.","Does the joint One Health Risk Communication Strategy address each of the priority areas?                                                                    ",null,"Yes","Yes","Yes","No","No","Yes","Yes","No"]
["Whole of Society Approach to One Health ","There is an established network of representatives from academia, NGO's, civil society, and the private sector from across the human health, animal health, wildlife, and environment sectors who are partners in national One Health implementation.  ","Are the relevant stakeholders included in efforts to address each of the priority areas?                                                         ",null,"Yes","Yes","Yes","Yes","Yes","No","Yes","Yes"]
["Competent One Health Workforce  ","There is a competent One Health workforce consisting of representatives from human health, animal health, wildlife and the environment with established in-service training programs and joint sector One Health training. ","Does the One Health workforce have the capacity to contribute to each of the priority areas?                                               ",null,"No","Yes","Yes","Yes","Yes","Yes","No","No"]
["Comments"]

{"sheet":"9. Results Dashboard","index":15,"n_rows":138,"n_cols":69,"rows_kept":138,"cut":false,"hidden":false,"merged":[[4,2,19,6],[98,2,101,2],[105,2,109,2],[94,5,94,15],[94,17,94,29],[24,2,28,2],[93,2,94,2],[0,26,0,30],[2,4,2,29],[0,0,0,22],[2,1,2,3],[1,1,1,29],[166,2,169,12],[166,13,169,19],[165,1,165,19],[137,2,141,24],[137,26,141,63]]}
["                                                                             Results Dashboard",null,null,null,null,null,null,null,null,null,null,null,null,null,null,null,null,null,null,null,null,null,null,null,null,null,"Country: "]
[]
[]
[]
[]
[]
[]
[]
[]
[]
[]
[]
[]
[]
[]
[]
[]
[]
[]
[null,null,null,null,null,null,null,null,null,null,null,null,null,null,null,null,null,null,null,null,null,null,null,null,null,null,null,null,null,null,null,null,null,null,null,null,null,null,null,null,null,null,null,null,null,null,null,null,null,null,null,null,null,null,null,null,null,null,null,null,null,null,null,null,null,null,null,null,"ConCon"]
[]
[]
[]
[]
[]
[]
[]
[]
[]
[]
[]
[]
[]
[]
[]
[]
[]
[]
[]
[]
[]
[]
[]
[]
[]
[]
[]
[]
[]
[]
[]
[]
[]
[]
[]
[]
[]
[]
[]
[]
[]
[]
[]
[]
[]
[]
[]
[]
[]
[]
[]
[]
[]
[]
[]
[]
[]
[]
[]
[]
[]
[]
[]
[]
[]
[]
[]
[]
[]
[]
[]
[]
[]
[]
[]
[]
[]
[]
[]
[]
[]
[]
[]
[]
[]
[]
[]
[]
[]
[]
[]
[]
[]
[]
[]
[]
[]
[]
[]
[]
[]
[]
[]
[]
[]
[]
[]
[]
[]
[]
[]
[]
[]
[]
[]
[]
[]
[null,null,"OH INDICATORS X OH JPA ACTION TRACKS CROSSWALK",null,null,null,null,null,null,null,null,null,null,null,null,null,null,null,null,null,null,null,null,null,null,null,"OH INDICATORS X PRIORITY AREAS CROSSWALK"]

{"sheet":"Dashboard_Figure_1","index":16,"n_rows":24,"n_cols":17,"rows_kept":24,"cut":false,"hidden":true,"merged":[[0,0,0,10],[1,4,1,10]]}
[]
[null,null,null,null,"Indicator Score"]
["Indicator","I10. Competent One Health Workforce","I9. Whole of Society Approach to One Health","I8. National One Health Risk Communication Strategy","I7. One Health Policy","I6. One Health Information Sharing","I5. National One Helath Action Plan","I4. National One Health Strategy ","I3. Government Support for One Health Field Activity Implementation","I2. Government Commitment of Human resources to Support One Health","I1: National One Health Coordination Mechanism"]
["Overall Score",{"$f":"ROUND(B5, 0)","v":5},7,6,{"$f":"ROUND(E5, 0)","v":6},6,6,9,5,4,7]
["Sheet Score",{"$f":"VALUE('6. OH Indicators By Consensus'!K113:K132)","v":4.5},{"$f":"VALUE('6. OH Indicators By Consensus'!K98:K112)","v":7.333333333333333},{"$f":"VALUE('6. OH Indicators By Consensus'!K83:K97)","v":6},{"$f":"VALUE('6. OH Indicators By Consensus'!K78:K82)","v":6},{"$f":"VALUE('6. OH Indicators By Consensus'!K63:K77)","v":6},{"$f":"VALUE('6. OH Indicators By Consensus'!K53:K62)","v":6},{"$f":"VALUE('6. OH Indicators By Consensus'!K43:K52)","v":9},{"$f":"VALUE('6. OH Indicators By Consensus'!K33:K42)","v":5},{"$f":"VALUE('6. OH Indicators By Consensus'!K13:K32)","v":4},{"$f":"VALUE('6. OH Indicators By Consensus'!K3:K12)","v":7},null,null,"Indicator Number","Score","Percentage","1-percentage"]
[null,0,0,0,0,0,0,0,0,0,0,null,null,1,{"$f":"K4","v":7},{"$f":"O6/10","v":0.7},{"$f":"1-P6","v":0.30000000000000004}]
[null,0,0,0,0,0,0,0,0,0,0,null,null,2,{"$f":"J4","v":4},{"$f":"O7/10","v":0.4},{"$f":"1-P7","v":0.6}]
[null,0,0,0,0,0,0,0,0,0,0,null,null,3,{"$f":"I4","v":5},0.5,0.5]
[null,0,0,0,0,0,0,0,0,0,0,null,null,4,{"$f":"H4","v":9},0.9,9.9999999999999978E-2]
[null,0,0,0,null,0,0,0,0,0,0,null,null,5,{"$f":"G4","v":6},0.6,0.4]
[null,0,0,0,null,0,0,0,0,0,0,null,null,6,{"$f":"F4","v":6},0.6,0.4]
[null,0,0,0,null,0,0,0,0,0,0,null,null,7,{"$f":"E4","v":6},0.6,0.4]
[null,0,0,0,null,0,0,0,0,0,0]
[null,0,0,0,null,0,0,0,0,0,0]
[null,0,0,0,null,0,null,null,null,0]
[null,0,0,0,null,0,null,null,null,0]
[null,0,0,0,null,0,null,null,null,0]
[null,0,0,0,null,0,null,null,null,0]
[null,0,0,0,null,0,null,null,null,0]
[null,0,null,null,null,null,null,null,null,0]
[null,0,null,null,null,null,null,null,null,0]
[null,0,null,null,null,null,null,null,null,0]
[null,0,null,null,null,null,null,null,null,0]
[null,0,null,null,null,null,null,null,null,0]

{"sheet":"Sheet7","index":17,"n_rows":14,"n_cols":2,"rows_kept":14,"cut":false,"hidden":true,"merged":[]}
["Sector","Animal Health"]
[]
["Row Labels","Max of Sector Score by Indicator"]
["I1. National One Health Coordination",5]
["I2. Government Commitment of Human Resources to Support One Health",5]
["I3. Government Support for One Health Implementation Activity",5]
["I4. National One Health Strategy",10]
["I5. National One Health Action Plan",10]
["I6. One Health Information Sharing",10]
["I7. One Health Policy",10]
["I8. National One Health Risk Communication Strategy",6.6666666666666661]
["I9. Whole of Society Approach to One Health",10]
["I10. Competent One Health Workforce",7.5]
["Grand Total",10]

{"sheet":"Hide","index":18,"n_rows":7,"n_cols":2,"rows_kept":7,"cut":false,"hidden":true,"merged":[]}
[]
["Column1","Column2"]
["AT Human",{"$f":"Table3[Yes]","v":39}]
["AT Animal",{"$f":"Table38[Yes]","v":37}]
["AT Wildlife",{"$f":"Table35[Yes]","v":33}]
["AT Environment",{"$f":"Table357[Yes]","v":33}]
["AT Consensus",{"$f":"SUM(B3:B6)","v":142}]

{"sheet":"Hide IPA","index":19,"n_rows":8,"n_cols":3,"rows_kept":8,"cut":false,"hidden":true,"merged":[]}
[]
[]
[null,"Column1","Column2"]
[null,"PA Human ",{"$f":"Table810[Yes]","v":36}]
[null,"PA Animal ",{"$f":"Table810[Yes]","v":36}]
[null,"PA Wildlife ",{"$f":"Table812[Yes]","v":39}]
[null,"PA Environment",{"$f":"Table81213[Yes]","v":42}]
[null,"PA Consensus",{"$f":"SUM(C4:C7)","v":153}]

{"sheet":"backmatter (3)","index":20,"n_rows":25,"n_cols":29,"rows_kept":25,"cut":false,"hidden":true,"merged":[[0,0,0,7],[1,1,1,7]]}
[]
[null,"Indicator Score"]
["Indicator","National One Health Coordination Mechanism","Government Commitment and Mobilisation to Support One Health ","National One Health Strategy and Action Plan","One Health Policy","One Health Communication Strategy","Whole of Society Approach to One Health","Ensure a Competent Workforce"]
["Overall Score",{"$f":"ROUND(B5, 0)","v":7},4,0,6,6,7,4]
["Sheet Score",{"$f":"VALUE('6. OH Indicators By Consensus'!K3:K11)","v":7},{"$f":"VALUE('6. OH Indicators By Consensus'!K13:K31)","v":4},null,{"$f":"VALUE('6. OH Indicators By Consensus'!K78:K82)","v":6},{"$f":"VALUE('6. OH Indicators By Consensus'!K83:K95)","v":6},{"$f":"VALUE('6. OH Indicators By Consensus'!K98:K112)","v":7.333333333333333},{"$f":"VALUE('6. OH Indicators By Consensus'!K113:K132)","v":{"$error":"#VALUE!"}}]
[null,0,0,null,0,0,0]
[null,0,0,null,0,0,0]
[null,0,0,null,0,0,0]
[null,0,0,null,0,0,0]
[null,0,0,null,null,0,0,null,null,null,null,null,null,null,null,null,null,null,null,null,null,null,"AT1: Enhancing OH capacities to strengthen health systems","AT2: Reducing the risks from emerging and re-emerging zoonotic diseases","AT3: Controlling and eliminating endemic zoonotic, neglected tropical, and vector-borne diseases","AT4:  Strengthening the assessment, management and communication of food safety risks","A5: Curbing AMR","AT6: Integrating the environment  into OH","AT7: Food systems transformation"]
[null,0,0,null,null,0,0,null,null,null,null,null,null,null,null,null,null,null,null,null,null,null,{"$f":"VALUE('8. Indicator x Priority Area'!#REF!)","v":{"$error":"#REF!"}},{"$f":"VALUE('8. Indicator x Priority Area'!#REF!)","v":{"$error":"#REF!"}},{"$f":"VALUE('8. Indicator x Priority Area'!#REF!)","v":{"$error":"#REF!"}},{"$f":"VALUE('8. Indicator x Priority Area'!#REF!)","v":{"$error":"#REF!"}},{"$f":"VALUE('8. Indicator x Priority Area'!#REF!)","v":{"$error":"#REF!"}},{"$f":"VALUE('8. Indicator x Priority Area'!#REF!)","v":{"$error":"#REF!"}},{"$f":"VALUE('8. Indicator x Priority Area'!#REF!)","v":{"$error":"#REF!"}}]
[null,0,0,null,null,0,0,null,null,null,null,null,null,null,null,null,null,null,null,null,null,null,5,3,4,6,4,4,5]
[null,0,0,null,null,0,0]
[null,null,0,null,null,0,0]
[null,null,0,null,null,0,0]
[null,null,0,null,null,0,0]
[null,null,0,null,null,0,0]
[null,null,0,null,null,null,0]
[null,null,0,null,null,null,0]
[null,null,0]
[null,null,0]
[null,null,0]
[null,null,0]
[null,"AT1: Enhancing OH capacities to strengthen health systems","AT2: Reducing the risks from emerging and re-emerging zoonotic diseases","AT3: Controlling and eliminating endemic zoonotic, neglected tropical, and vector-borne diseases","AT4:  Strengthening the assessment, management and communication of food safety risks","A5: Curbing AMR","AT6: Integrating the environment  into OH","AT7: Food systems transformation"]
[null,{"$f":"VALUE('8. Indicator x Priority Area'!E5)","v":7},{"$f":"VALUE('8. Indicator x Priority Area'!F5)","v":5},{"$f":"VALUE('8. Indicator x Priority Area'!G5)","v":5},{"$f":"VALUE('8. Indicator x Priority Area'!H5)","v":5},{"$f":"VALUE('8. Indicator x Priority Area'!I5)","v":7},{"$f":"VALUE('8. Indicator x Priority Area'!J5)","v":6},{"$f":"VALUE('8. Indicator x Priority Area'!#REF!)","v":{"$error":"#REF!"}}]

{"sheet":"Dashboard_Figure 2","index":21,"n_rows":10,"n_cols":5,"rows_kept":10,"cut":false,"hidden":true,"merged":[[0,0,0,1]]}
[]
["Overall Performance Indicator Score By Sector"]
["Sector","Overall Seector Score","%","Shape","Icon"]
["Wildlife",{"$f":"'6. OH Indicators By Consensus'!K140","v":5},{"$f":"Table2DashboardFigure2[[#This Row],[Overall Seector Score]]/10","v":0.5},null,{"$f":"Table2DashboardFigure2[[#This Row],[Overall Seector Score]]-0.6","v":4.4000000000000004}]
["Environment",{"$f":"'6. OH Indicators By Consensus'!K141","v":3.4615384615384617},{"$f":"Table2DashboardFigure2[[#This Row],[Overall Seector Score]]/10","v":0.34615384615384615},null,{"$f":"Table2DashboardFigure2[[#This Row],[Overall Seector Score]]-0.6","v":2.8615384615384616}]
["Animal Health",{"$f":"'6. OH Indicators By Consensus'!K137","v":8.8461538461538467},{"$f":"Table2DashboardFigure2[[#This Row],[Overall Seector Score]]/10","v":0.88461538461538469},null,{"$f":"Table2DashboardFigure2[[#This Row],[Overall Seector Score]]-0.6","v":8.2461538461538471}]
["Public Health",{"$f":"'6. OH Indicators By Consensus'!K136","v":7.3076923076923075},{"$f":"Table2DashboardFigure2[[#This Row],[Overall Seector Score]]/10","v":0.73076923076923073},null,{"$f":"Table2DashboardFigure2[[#This Row],[Overall Seector Score]]-0.6","v":6.7076923076923078}]
["Wildefe Disease",{"$f":"'6. OH Indicators By Consensus'!K138","v":5.7692307692307683},{"$f":"Table2DashboardFigure2[[#This Row],[Overall Seector Score]]/10","v":0.57692307692307687},null,{"$f":"Table2DashboardFigure2[[#This Row],[Overall Seector Score]]-0.6","v":5.1692307692307686}]
["Wildlife Management and Conservation",{"$f":"'6. OH Indicators By Consensus'!K139","v":4.2307692307692308},{"$f":"Table2DashboardFigure2[[#This Row],[Overall Seector Score]]/10","v":0.42307692307692307},null,{"$f":"Table2DashboardFigure2[[#This Row],[Overall Seector Score]]-0.6","v":3.6307692307692307}]
["Full Score",10,{"$f":"Table2DashboardFigure2[[#This Row],[Overall Seector Score]]/10","v":1},null,{"$f":"Table2DashboardFigure2[[#This Row],[Overall Seector Score]]-0.6","v":9.4}]

{"sheet":"10. Action Plan & Next Steps","index":22,"n_rows":120,"n_cols":15,"rows_kept":120,"cut":false,"hidden":false,"merged":[[32,5,37,5],[14,5,19,5],[14,2,19,2],[26,1,31,1],[26,2,31,2],[26,5,31,5],[71,5,74,5],[75,1,78,1],[75,2,78,2],[75,5,78,5],[0,6,0,14],[2,2,7,2],[56,1,61,1],[50,1,55,1],[44,1,49,1],[8,5,13,5],[2,5,7,5],[56,2,61,2],[20,5,25,5],[38,5,43,5],[44,5,49,5],[50,5,55,5],[50,2,55,2],[44,2,49,2],[38,2,43,2],[2,0,61,0],[38,1,43,1],[20,1,25,1],[8,1,13,1],[2,1,7,1],[20,2,25,2],[8,2,13,2],[14,1,19,1],[32,1,37,1],[32,2,37,2],[63,5,66,5],[67,1,70,1],[67,2,70,2],[67,5,70,5],[56,5,61,5],[63,0,86,0],[71,1,74,1],[71,2,74,2],[88,1,91,1],[88,2,91,2],[79,1,82,1],[79,2,82,2],[63,1,66,1],[63,2,66,2],[88,0,119,0],[104,1,107,1],[104,2,107,2],[104,5,107,5],[116,1,119,1],[116,2,119,2],[116,5,119,5],[108,1,111,1],[108,2,111,2],[108,5,111,5],[112,1,115,1],[112,2,115,2],[112,5,115,5],[79,5,82,5],[83,1,86,1],[83,2,86,2],[83,5,86,5],[100,5,103,5],[96,1,99,1],[96,2,99,2],[96,5,99,5],[100,1,103,1],[100,2,103,2],[88,5,91,5],[92,1,95,1],[92,2,95,2],[92,5,95,5]]}
[null,"                                                                         ",null,null,null,null,"Action Plan & Next Steps"]
["Category","Number","Description","Sector category","Sector Score","Consensus Score","Actions (max of 2)","Responsible Government Ministry/Department","Name of Focal Point ","Supporting Government Ministries/Department(s)","Name of Focal Point(s)","Timeline","Supporting Quadripartite Partners","Name of Focal Points","Recommedned Tools and Resources"]
["One Health Indicators",1,"National One Health Coordination Mechanism ","HH",{"$f":"'Figure 3 dashboard'!M3","v":10},{"$f":"Dashboard_Figure_1!K4","v":7},null,null,null,null,null,null,null,null,"Joint Risk Assessment Operational Tool"]
[null,null,null,"AH",{"$f":"'Figure 3 dashboard'!M4","v":5}]
[null,null,null,"W",{"$f":"'Figure 3 dashboard'!M5","v":2.5}]
[null,null,null,"WD",{"$f":"'Figure 3 dashboard'!M7","v":5}]
[null,null,null,"WMC",{"$f":"'Figure 3 dashboard'!M8","v":0}]
[null,null,null,"E",{"$f":"'Figure 3 dashboard'!M6","v":0}]
[null,2,"Government Commitment of Human Resources to Support One Health ","HH",{"$f":"'Figure 3 dashboard'!M9","v":7.5},{"$f":"Dashboard_Figure_1!J4","v":4},null,null,null,null,null,null,null,null,"Multisectoral Coordination Mechanism Operational Tool"]
[null,null,null,"AH",{"$f":"'Figure 3 dashboard'!M10","v":5}]
[null,null,null,"W",{"$f":"'Figure 3 dashboard'!M11","v":1.25}]
[null,null,null,"WD",{"$f":"'Figure 3 dashboard'!M13","v":2.5}]
[null,null,null,"WMC",{"$f":"'Figure 3 dashboard'!M14","v":0}]
[null,null,null,"E",{"$f":"'Figure 3 dashboard'!M12","v":0}]
[null,3,"Government Support for One Health Field Activity Implementation","HH",{"$f":"'Figure 3 dashboard'!M15","v":5},{"$f":"Dashboard_Figure_1!I4","v":5}]
[null,null,null,"AH",{"$f":"'Figure 3 dashboard'!M16","v":5}]
[null,null,null,"W",{"$f":"'Figure 3 dashboard'!M17","v":0}]
[null,null,null,"WD",{"$f":"'Figure 3 dashboard'!M19","v":0}]
[null,null,null,"WMC",{"$f":"'Figure 3 dashboard'!M20","v":0}]
[null,null,null,"E",{"$f":"'Figure 3 dashboard'!M18","v":5}]
[null,4,"National One Health Strategy ","HH",{"$f":"'Figure 3 dashboard'!M21","v":10},{"$f":"Dashboard_Figure_1!I4","v":5},null,null,null,null,null,null,null,null,"Surveillance & Information Sharing Operational Tool"]
[null,null,null,"AH",{"$f":"'Figure 3 dashboard'!M22","v":10}]
[null,null,null,"W",{"$f":"'Figure 3 dashboard'!M23","v":7.5}]
[null,null,null,"WD",{"$f":"'Figure 3 dashboard'!M25","v":10}]
[null,null,null,"WMC",{"$f":"'Figure 3 dashboard'!M26","v":5}]
[null,null,null,"E",{"$f":"'Figure 3 dashboard'!M24","v":5}]
[null,5,"National One Health Action Plan","HH",{"$f":"'Figure 3 dashboard'!M27","v":6.6666666666666661},{"$f":"Dashboard_Figure_1!H4","v":9}]
[null,null,null,"AH",{"$f":"'Figure 3 dashboard'!M28","v":10}]
[null,null,null,"W",{"$f":"'Figure 3 dashboard'!M29","v":7.5}]
[null,null,null,"WD",{"$f":"'Figure 3 dashboard'!M31","v":10}]
[null,null,null,"WMC",{"$f":"'Figure 3 dashboard'!M32","v":5}]
[null,null,null,"E",{"$f":"'Figure 3 dashboard'!M30","v":5}]
[null,6,"One Health Information Sharing","HH",{"$f":"'Figure 3 dashboard'!M33","v":6.6666666666666661},{"$f":"Dashboard_Figure_1!F4","v":6}]
[null,null,null,"AH",{"$f":"'Figure 3 dashboard'!M34","v":10}]
[null,null,null,"W",{"$f":"'Figure 3 dashboard'!M35","v":3.333333333333333}]
[null,null,null,"WD",{"$f":"'Figure 3 dashboard'!M37","v":6.6666666666666661}]
[null,null,null,"WMC",{"$f":"'Figure 3 dashboard'!M38","v":0}]
[null,null,null,"E",{"$f":"'Figure 3 dashboard'!M36","v":6.6666666666666661}]
[null,7,"One Health Policy","HH",{"$f":"'Figure 3 dashboard'!M39","v":10},{"$f":"Dashboard_Figure_1!H4","v":9}]
[null,null,null,"AH",{"$f":"'Figure 3 dashboard'!M40","v":10}]
[null,null,null,"W",{"$f":"'Figure 3 dashboard'!M41","v":0}]
[null,null,null,"WD",{"$f":"'Figure 3 dashboard'!M43","v":0}]
[null,null,null,"WMC",{"$f":"'Figure 3 dashboard'!M44","v":0}]
[null,null,null,"E",{"$f":"'Figure 3 dashboard'!M42","v":10}]
[null,8,"National One Health Risk Communication Strategy","HH",{"$f":"'Figure 3 dashboard'!M45","v":6.6666666666666661},{"$f":"Dashboard_Figure_1!G4","v":6}]
[null,null,null,"AH",{"$f":"'Figure 3 dashboard'!M46","v":6.6666666666666661}]
[null,null,null,"W",{"$f":"'Figure 3 dashboard'!M47","v":1.6666666666666665}]
[null,null,null,"WD",{"$f":"'Figure 3 dashboard'!M49","v":10}]
[null,null,null,"WMC",{"$f":"'Figure 3 dashboard'!M50","v":0}]
[null,null,null,"E",{"$f":"'Figure 3 dashboard'!M48","v":6.6666666666666661}]
[null,9,"Whole of Society Approach to One Health","HH",{"$f":"'Figure 3 dashboard'!M51","v":6.6666666666666661},{"$f":"Dashboard_Figure_1!F4","v":6}]
[null,null,null,"AH",{"$f":"'Figure 3 dashboard'!M52","v":10}]
[null,null,null,"W",{"$f":"'Figure 3 dashboard'!M53","v":5}]
[null,null,null,"WD",{"$f":"'Figure 3 dashboard'!M55","v":10}]
[null,null,null,"WMC",{"$f":"'Figure 3 dashboard'!M56","v":0}]
[null,null,null,"E",{"$f":"'Figure 3 dashboard'!M54","v":0}]
[null,10,"Competent One Health Workforce","HH",{"$f":"'Figure 3 dashboard'!M57","v":7.5},{"$f":"Dashboard_Figure_1!E4","v":6}]
[null,null,null,"AH",{"$f":"'Figure 3 dashboard'!M58","v":7.5}]
[null,null,null,"W",{"$f":"'Figure 3 dashboard'!M59","v":3.75}]
[null,null,null,"WD",{"$f":"'Figure 3 dashboard'!M61","v":7.5}]
[null,null,null,"WMC",{"$f":"'Figure 3 dashboard'!M62","v":0}]
[null,null,null,"E",{"$f":"'Figure 3 dashboard'!M60","v":0}]
[]
["JPA Action Tracks",1,"Enhancing OH capacities to strengthen health systems ","HH",{"$f":"'4.HH Indicator x JPA Crosswalk '!E5","v":6},{"$f":"'7. Indicator x JPA Crosswalk '!F4","v":5}]
[null,null,null,"AH",{"$f":"'4. AH Indicator x JPA Crosswalk'!E5","v":5}]
[null,null,null,"W",{"$f":"'4.W Indicator x JPA Crosswalk'!E5","v":5}]
[null,null,null,"E",{"$f":"'4. E Indicator x JPA Crosswalk'!E5","v":5}]
[null,2,"Reducing the risks from emerging and re-emerging zoonotic diseases ","HH",{"$f":"'4.HH Indicator x JPA Crosswalk '!F5","v":5},{"$f":"'7. Indicator x JPA Crosswalk '!G4","v":8}]
[null,null,null,"AH",{"$f":"'4. AH Indicator x JPA Crosswalk'!F5","v":8}]
[null,null,null,"W",{"$f":"'4.W Indicator x JPA Crosswalk'!F5","v":6}]
[null,null,null,"E",{"$f":"'4. E Indicator x JPA Crosswalk'!F5","v":4}]
[null,3,"Controlling and eliminating endemic zoonotic, neglected tropical, and vector-borne diseases ","HH",{"$f":"'4.HH Indicator x JPA Crosswalk '!G5","v":6},{"$f":"'7. Indicator x JPA Crosswalk '!H4","v":5}]
[null,null,null,"AH",{"$f":"'4. AH Indicator x JPA Crosswalk'!G5","v":7}]
[null,null,null,"W",{"$f":"'4.W Indicator x JPA Crosswalk'!G5","v":5}]
[null,null,null,"E",{"$f":"'4. E Indicator x JPA Crosswalk'!G5","v":5}]
[null,4,"Strengthening the assessment, management and communication of food safety risks ","HH",{"$f":"'4.HH Indicator x JPA Crosswalk '!H5","v":7},{"$f":"'7. Indicator x JPA Crosswalk '!I4","v":9}]
[null,null,null,"AH",{"$f":"'4. AH Indicator x JPA Crosswalk'!H5","v":9}]
[null,null,null,"W",{"$f":"'4.W Indicator x JPA Crosswalk'!H5","v":7}]
[null,null,null,"E",{"$f":"'4. E Indicator x JPA Crosswalk'!H5","v":7}]
[null,5,"Curbing AMR ","HH",{"$f":"'4.HH Indicator x JPA Crosswalk '!I5","v":5},{"$f":"'7. Indicator x JPA Crosswalk '!J4","v":7}]
[null,null,null,"AH",{"$f":"'4. AH Indicator x JPA Crosswalk'!I5","v":4}]
[null,null,null,"W",{"$f":"'4.W Indicator x JPA Crosswalk'!I5","v":5}]
[null,null,null,"E",{"$f":"'4. E Indicator x JPA Crosswalk'!I5","v":6}]
[null,6,"Integrating the environment into OH\n ","HH",{"$f":"'4.HH Indicator x JPA Crosswalk '!J5","v":5},{"$f":"'7. Indicator x JPA Crosswalk '!K4","v":4}]
[null,null,null,"AH",{"$f":"'4. AH Indicator x JPA Crosswalk'!J5","v":4}]
[null,null,null,"W",{"$f":"'4.W Indicator x JPA Crosswalk'!J5","v":5}]
[null,null,null,"E",{"$f":"'4. E Indicator x JPA Crosswalk'!J5","v":6}]
[]
["Additional Priority Areas",1,"Prevent environmental degredation, preserve & restore habitat, biodiversity & ecosystems","HH",{"$f":"'5.HH Indicator x Priority Area'!E5","v":8},{"$f":"'8. Indicator x Priority Area'!E5","v":7}]
[null,null,null,"AH",{"$f":"'5. AH Indicator x Priority Area'!E5","v":7}]
[null,null,null,"W",{"$f":"'5. W Indicator x Priority Area'!E5","v":5}]
[null,null,null,"E",{"$f":"'5. E Indicator x Priority Area'!E5","v":8}]
[null,2,"Government Commitment and Mobilisation to Support One Implement climate change adaptation & mitigation measures","HH",{"$f":"'5.HH Indicator x Priority Area'!F5","v":3},{"$f":"'8. Indicator x Priority Area'!F5","v":5}]
[null,null,null,"AH",{"$f":"'5. AH Indicator x Priority Area'!F5","v":3}]
[null,null,null,"W",{"$f":"'5. W Indicator x Priority Area'!F5","v":4}]
[null,null,null,"E",{"$f":"'5. E Indicator x Priority Area'!F5","v":3}]
[null,3,"Improve waste, effluent, pollution management-ecotoxicology","HH",{"$f":"'5.HH Indicator x Priority Area'!G5","v":3},{"$f":"'8. Indicator x Priority Area'!G5","v":5}]
[null,null,null,"AH",{"$f":"'5. AH Indicator x Priority Area'!G5","v":3}]
[null,null,null,"W",{"$f":"'5. W Indicator x Priority Area'!G5","v":4}]
[null,null,null,"E",{"$f":"'5. E Indicator x Priority Area'!G5","v":4}]
[null,4,"Prevent agriculture & urban encroachmnet through land-use planning","HH",{"$f":"'5.HH Indicator x Priority Area'!H5","v":5},{"$f":"'8. Indicator x Priority Area'!H5","v":5}]
[null,null,null,"AH",{"$f":"'5. AH Indicator x Priority Area'!H5","v":6}]
[null,null,null,"W",{"$f":"'5. W Indicator x Priority Area'!H5","v":5}]
[null,null,null,"E",{"$f":"'5. E Indicator x Priority Area'!H5","v":5}]
[null,5,"Sustainable, climate smart agricultural productioning  ","HH",{"$f":"'5.HH Indicator x Priority Area'!I5","v":5},{"$f":"'8. Indicator x Priority Area'!I5","v":7}]
[null,null,null,"AH",{"$f":"'5. AH Indicator x Priority Area'!I5","v":4}]
[null,null,null,"W",{"$f":"'5. W Indicator x Priority Area'!I5","v":7}]
[null,null,null,"E",{"$f":"'5. E Indicator x Priority Area'!I5","v":6}]
[null,6,"Improve wildlife farming & wildlife trade management, inlcuding wildlife sales ","HH",{"$f":"'5.HH Indicator x Priority Area'!J5","v":5},{"$f":"'8. Indicator x Priority Area'!J5","v":6}]
[null,null,null,"AH",{"$f":"'5. AH Indicator x Priority Area'!J5","v":4}]
[null,null,null,"W",{"$f":"'5. W Indicator x Priority Area'!J5","v":4}]
[null,null,null,"E",{"$f":"'5. E Indicator x Priority Area'!J5","v":4}]
[null,7,"Improve food safety at informal  & formal markets that mix & sell domestic & wild animals","HH",{"$f":"'5.HH Indicator x Priority Area'!K5","v":8},{"$f":"'8. Indicator x Priority Area'!K5","v":5}]
[null,null,null,"AH",{"$f":"'5. AH Indicator x Priority Area'!K5","v":7}]
[null,null,null,"W",{"$f":"'5. W Indicator x Priority Area'!K5","v":9}]
[null,null,null,"E",{"$f":"'5. E Indicator x Priority Area'!K5","v":7}]
[null,8,"Food Systems Transformation","HH",{"$f":"'5.HH Indicator x Priority Area'!L5","v":4},{"$f":"'8. Indicator x Priority Area'!L5","v":3}]
[null,null,null,"AH",{"$f":"'5. AH Indicator x Priority Area'!L5","v":2}]
[null,null,null,"W",{"$f":"'5. W Indicator x Priority Area'!L5","v":1}]
[null,null,null,"E",{"$f":"'5. E Indicator x Priority Area'!L5","v":5}]

{"sheet":"11. Definitions","index":23,"n_rows":19,"n_cols":4,"rows_kept":19,"cut":false,"hidden":false,"merged":[]}
[null,null,null,"Definitions "]
[]
[]
[null,null,"Animal Health Sector ","The animal health sector includes representatives from ministries, departments, technical agencies, organizations, or private sector enterprises with mandates, responsibilities, or objectives directed at the health of livestock and domesticated animals (terrestrial and aquatic). These respresentatives include veterinary public health, livestock,  domestic animal, and aquaculture veterinary medicine and diagnostics, animal health laboratories, agriculture, and related livestock and domestic animal techincal disciplines, programs, and policy.  "]
[null,null,"Consensus","Scores in the One Health Monitoring Tools (OHMT) that are agreed upon from four specific sectors (i) human health, (ii) animal health, (iii) wildlife, and (iv) animal health. Each consensus score is provided in the dashboard of the OHMT for the (i) One Health indicators, (ii) One Health JPA Action Tracks and OHMT Priority Areas."]
[null,null,"Environment Sector ","The environment sector includes representatives from ministries, departments, technical agecies, organizations, or private sector enterprises with mandates, responsibilities, or objectives directed at the environment (land, freshwater, marine, air).  These representatives includes environmental scientists, waste managers, pollution control, climate change experts, land use planners, natural resource managers, parks and protected area managers and rangers, biodiversity and ecosystem managers, and related environment techincal disciples, programs, and policy.   "]
[null,null,"Human Health Sector ","The human health sector includes representatives from ministries, departments, technical agencies, organizations, or private sector enterprises with mandates, responsibilities, or objectives directed at human health, including public health, medicine and diagnostics, laboratories, food safety, and related human health focused techincal disciplines, programs and policy.   "]
[null,null,"One Health ","One Health is an integrated, unifying approach that aims to sustainably balance and\noptimize the health of people, animals and ecosystems.\nIt recognizes the health of humans, domestic and wild animals, plants, and the wider\nenvironment (including ecosystems) are closely linked and inter-dependent.\nThe approach mobilizes multiple sectors, disciplines and communities at varying\nlevels of society to work together to foster well-being and tackle threats to health and\necosystems, while addressing the collective need for clean water, energy and air, safe\nand nutritious food, taking action on climate change, and contributing to sustainable\ndevelopment. \nSource: One Health High Level Expert Panel (Dec, 2021)"]
[null,null,"One Health Coordination Mechanism ","A One Health Coordination Mechinanism is a means by which representatives from the four sectors collaborate and coordinate on One Health initatives, programs, and policy. "]
[null,null,"One Health Joint Plan of Action (2022-2026) ","The One Health Joint Plan of Action (JPA) (2022-2026) was developed by the Quadripartite and the One Health High Level Expert Panel (OHHLEP).  It is framework to strengthen One Health implementation across global, regional, and local levels buildling on existing capacities, coordination, and initatives. It includes six Action Track that are linked to a set of activities.  The complete document can be found here:   \nhttps://www.fao.org/3/cc2289en/cc2289en.pdf"]
[null,null,"OH JPA Implementation Guide ","The OH JPA Implementation Guide focuses on providing national level guidance for how countries can adopt and adapt OH JPA to strengthen and support national One Health action."]
[null,null,"One Health JPA Action Tracks ","The JPA includes six interdependent action tracks that collectively contribute to achieving sustainable health and food systems, reduced global health threats, and improved ecosystem management.  The six actions tracks include: \nAction Track 1: Enhancing One Health capacities to strengthen health systems \nAction Track 2: Reducing the risks from emerging and re-emerging zoonotic\nepidemics and pandemics\nAction Track 3: Controlling and eliminating endemic zoonotic, neglected tropical and\nvector-borne diseases\nAction Track 4: Strengthening the assessment, management and communication of\nfood safety risks\nAction Track 5: Curbing the silent pandemic of antimicrobial resistance (AMR)\nAction Track 6: Integrating the environment into One Health\nFor further detail on the Action Tracks, refer to the One Health Joint Plan of Action complete document found here: https://www.fao.org/3/cc2289en/cc2289en.pdf"]
[null,null,"Priority Areas","The Priority Areas of the OHMT are technical areas that include known drivers of zoonotic diseases.  "]
[null,null,"Quadripartite ","The Quadripartite consists of the Food and Agriculture Organization of the United Nations (FAO), World Organization for Animal Health (WOAH), World Health Organization (WHO), and the Environment Programme (UNEP).  "]
[null,null,"Sector-specific","Scores in the One Health Monitoring Tools (OHMT) that are agreed upon within a specific sector. Each sector includes (i) human health, (ii) animal health, (iii) wildlife, and (iv) animal health. "]
[null,null,"Wildlife Sector ","The wildlife sector consists of two sub-sectors, which include the wildlife disease sub-sector and the wildlife management & conservation sub-sector.  "]
[null,null,"Wildlife Disease Sub-Sector ","The wildlife disease sub-sector includes representatives from ministries, departments, technical agecies, organizations, or private sector enterprises with mandates, responsibilities, or objectives directed at wildlife disease and the health of wild animals. These representatives include wildlife veterinarians, wildlife health biologists and technicians, and related wild animal disease technical disciplices, programs, and policy.  "]
[null,null,"Wildlife Management & Conservation Sub-Sector ","The wildlife management & conservation sub-sector includes representatives from ministries, departments, technical agecies, organizations, or private sector enterprises with mandates, responsibilities, or objectives directed at the management and conservation of wild animals. These representatives include wildlife resource managers, wildlife biologists and technicians, and conservation biologists and technicans, and related wild animal management and conservation technical disciplices, programs, and policy.  "]
[null,null,"Zoonotic Diseases ","Zoonotic disesase are those diseases that transmit between humans and animals.  "]

{"sheet":"12. Acknowledgements","index":24,"n_rows":9,"n_cols":4,"rows_kept":9,"cut":false,"hidden":false,"merged":[[2,2,2,3],[4,2,6,2],[8,2,16,2]]}
[null,null,null,"Acknowledgments "]
[]
[null,null,"List of Acknowledgements"]
[]
[null,null,"OHMT Developers","Institute for Infectious Animal Diseases, Texas A&M AgriLife Research\nSchool of Veterinary Medicine, Texas A&M University"]
[null,null,null,"FAO - Regional Office for Africa (RAF) "]
[null,null,null,"FAO - Regional Office for Asia and the Pacific (RAP) "]
[]
[null,null,"Reviewers","To be completed "]